Workbook

Sheet 2015 Stats (hidden)
A1: 2015 Stats
D5: Entries | G5: % | T5: Section Stats (Both Courses)
A6: Laps | B6: 1 | D6: AJ Course | E6: Exp | F6: 15 | G6: =F6/$F$9 -> 0.6818181818 | T6: 0's | U6: 1's | V6: 2's | W6: 3's | X6: 5's | Y6: 10's
A7: Sect | B7: 40 | E7: Int | F7: 4 | G7: =F7/$F$9 -> 0.1818181818 | T7: =SUM('2015 entry List'!BF15:BF114) -> 1416 | U7: =SUM('2015 entry List'!BG15:BG114) -> 553 | V7: =SUM('2015 entry List'!BH15:BH114) -> 277 | W7: =SUM('2015 entry List'!BI15:BI114) -> 535 | X7: =SUM('2015 entry List'!BJ15:BJ114) -> 226 | Y7: =SUM('2015 entry List'!BK15:BK114) -> 10
A8: Entry | B8: =F20 -> 91 | E8: Nov | F8: 4 | G8: 0.1818181818 | T8: =T7/$T$9 -> 0.389010989 | U8: 0.1519230769 | V8: 0.0760989011 | W8: 0.146978022 | X8: 0.06208791209 | Y8: 0.002747252747
D9: Total | F9: =COUNTIF('2015 entry List'!K15:K114,"1") -> 22 | T9: =B6*B7*B8 -> 3640 | W9: =SUM(T7:Y7) -> 3017
D14: 50/50 Course
E15: Exp | F15: 4 | G15: =F15/$F$18 -> 0.05797101449
E16: Int | F16: 12 | G16: =F16/$F$18 -> 0.1739130435
E17: Nov | F17: 52 | G17: 0.7536231884
D18: Total | F18: =COUNTIF('2015 entry List'!K15:K114,"2") -> 69
D20: TOTAL | F20: =SUM(F18,F9) -> 91
D23: Machines | F23: %
D24: Beta | E24: =COUNTIF('2015 entry List'!$I$15:$I$114,"bet") -> 21 | F24: =E24/$B$8 -> 0.2307692308
D25: Gas Gas | E25: =COUNTIF('2015 entry List'!$I$15:$I$114,"gas") -> 37 | F25: =E25/$B$8 -> 0.4065934066
D26: Sherco | E26: =COUNTIF('2015 entry List'!$I$15:$I$114,"She") -> 16 | F26: 0.1758241758
D27: Scorpa | E27: =COUNTIF('2015 entry List'!$I$15:$I$114,"Sco") -> 1 | F27: 0.01098901099
D28: Montesa 4RT | E28: =COUNTIF('2015 entry List'!$I$15:$I$114,"4RT") -> 5 | F28: 0.05494505495
D29: Montesa | E29: =COUNTIF('2015 entry List'!$I$15:$I$99,"mon") -> 5 | F29: 0.05494505495
D30: Yamaha | E30: =COUNTIF('2015 entry List'!$I$15:$I$99,"Yam") -> 0 | F30: 0
D31: Bultaco | E31: =COUNTIF('2015 entry List'!$I$15:$I$99,"bul") -> 0 | F31: 0
D32: Ossa | E32: =COUNTIF('2015 entry List'!$I$15:$I$99,"oss") -> 1 | F32: 0.01098901099
D33: Honda | E33: =COUNTIF('2015 entry List'!$I$15:$I$99,"hon") -> 4 | F33: 0.04395604396
E38: =A38 -> 0
J41: % of marks lost Both Courses
D42: 1 | E42: 2 | F42: 3 | G42: 4 | H42: 5 | I42: 6 | J42: 7 | K42: 8 | L42: 9 | M42: 10 | N42: 11 | O42: 12 | P42: 13 | Q42: 14 | R42: 15 | S42: 16 | T42: 17 | U42: 18 | V42: 19 | W42: 20
C43: 0 | D43: ='2015 entry List'!O115/'2015 Stats'!$B$8 -> 0.4725274725 | E43: ='2015 entry List'!P115/'2015 Stats'!$B$8 -> 0.7142857143 | F43: ='2015 entry List'!Q115/'2015 Stats'!$B$8 -> 0.4285714286 | G43: ='2015 entry List'!R115/'2015 Stats'!$B$8 -> 0.2417582418 | H43: ='2015 entry List'!S115/'2015 Stats'!$B$8 -> 0.1428571429 | I43: ='2015 entry List'!T115/'2015 Stats'!$B$8 -> 0.1648351648 | J43: ='2015 entry List'!U115/'2015 Stats'!$B$8 -> 0.1098901099 | K43: ='2015 entry List'!V115/'2015 Stats'!$B$8 -> 0.4615384615 | L43: ='2015 entry List'!W115/'2015 Stats'!$B$8 -> 0.3846153846 | M43: ='2015 entry List'!X115/'2015 Stats'!$B$8 -> 0.2857142857 | N43: ='2015 entry List'!Y115/'2015 Stats'!$B$8 -> 0.3296703297 | O43: ='2015 entry List'!Z115/'2015 Stats'!$B$8 -> 0.2857142857 | P43: ='2015 entry List'!AA115/'2015 Stats'!$B$8 -> 0.4505494505 | Q43: ='2015 entry List'!AB115/'2015 Stats'!$B$8 -> 0.2197802198 | R43: ='2015 entry List'!AC115/'2015 Stats'!$B$8 -> 0.2747252747 | S43: ='2015 entry List'!AD115/'2015 Stats'!$B$8 -> 0.3516483516 | T43: ='2015 entry List'!AE115/'2015 Stats'!$B$8 -> 0.4175824176 | U43: ='2015 entry List'!AF115/'2015 Stats'!$B$8 -> 0.4065934066 | V43: ='2015 entry List'!AG115/'2015 Stats'!$B$8 -> 0.3956043956 | W43: ='2015 entry List'!AH115/'2015 Stats'!$B$8 -> 0.01098901099
C44: 1 | D44: ='2015 entry List'!O116/'2015 Stats'!$B$8 -> 0.3076923077 | E44: ='2015 entry List'!P116/'2015 Stats'!$B$8 -> 0.0989010989 | F44: ='2015 entry List'!Q116/'2015 Stats'!$B$8 -> 0.2637362637 | G44: ='2015 entry List'!R116/'2015 Stats'!$B$8 -> 0.1318681319 | H44: ='2015 entry List'!S116/'2015 Stats'!$B$8 -> 0.1868131868 | I44: ='2015 entry List'!T116/'2015 Stats'!$B$8 -> 0.1868131868 | J44: ='2015 entry List'!U116/'2015 Stats'!$B$8 -> 0.1208791209 | K44: ='2015 entry List'!V116/'2015 Stats'!$B$8 -> 0.1868131868 | L44: ='2015 entry List'!W116/'2015 Stats'!$B$8 -> 0.2747252747 | M44: ='2015 entry List'!X116/'2015 Stats'!$B$8 -> 0.1758241758 | N44: ='2015 entry List'!Y116/'2015 Stats'!$B$8 -> 0.2417582418 | O44: ='2015 entry List'!Z116/'2015 Stats'!$B$8 -> 0.1868131868 | P44: ='2015 entry List'!AA116/'2015 Stats'!$B$8 -> 0.1098901099 | Q44: ='2015 entry List'!AB116/'2015 Stats'!$B$8 -> 0.2747252747 | R44: ='2015 entry List'!AC116/'2015 Stats'!$B$8 -> 0.0989010989 | S44: ='2015 entry List'!AD116/'2015 Stats'!$B$8 -> 0.2307692308 | T44: ='2015 entry List'!AE116/'2015 Stats'!$B$8 -> 0.1538461538 | U44: ='2015 entry List'!AF116/'2015 Stats'!$B$8 -> 0.1868131868 | V44: ='2015 entry List'!AG116/'2015 Stats'!$B$8 -> 0.1318681319 | W44: ='2015 entry List'!AH116/'2015 Stats'!$B$8 -> 0.1208791209
C45: 2 | D45: ='2015 entry List'!O117/'2015 Stats'!$B$8 -> 0.05494505495 | E45: ='2015 entry List'!P117/'2015 Stats'!$B$8 -> 0.02197802198 | F45: ='2015 entry List'!Q117/'2015 Stats'!$B$8 -> 0.06593406593 | G45: ='2015 entry List'!R117/'2015 Stats'!$B$8 -> 0.1318681319 | H45: ='2015 entry List'!S117/'2015 Stats'!$B$8 -> 0.1758241758 | I45: ='2015 entry List'!T117/'2015 Stats'!$B$8 -> 0.1428571429 | J45: ='2015 entry List'!U117/'2015 Stats'!$B$8 -> 0.06593406593 | K45: ='2015 entry List'!V117/'2015 Stats'!$B$8 -> 0.05494505495 | L45: ='2015 entry List'!W117/'2015 Stats'!$B$8 -> 0.06593406593 | M45: ='2015 entry List'!X117/'2015 Stats'!$B$8 -> 0.1648351648 | N45: ='2015 entry List'!Y117/'2015 Stats'!$B$8 -> 0.07692307692 | O45: ='2015 entry List'!Z117/'2015 Stats'!$B$8 -> 0.07692307692 | P45: ='2015 entry List'!AA117/'2015 Stats'!$B$8 -> 0.07692307692 | Q45: ='2015 entry List'!AB117/'2015 Stats'!$B$8 -> 0.1318681319 | R45: ='2015 entry List'!AC117/'2015 Stats'!$B$8 -> 0.06593406593 | S45: ='2015 entry List'!AD117/'2015 Stats'!$B$8 -> 0.1208791209 | T45: ='2015 entry List'!AE117/'2015 Stats'!$B$8 -> 0.07692307692 | U45: ='2015 entry List'!AF117/'2015 Stats'!$B$8 -> 0.06593406593 | V45: ='2015 entry List'!AG117/'2015 Stats'!$B$8 -> 0.1098901099 | W45: ='2015 entry List'!AH117/'2015 Stats'!$B$8 -> 0.1098901099
C46: 3 | D46: ='2015 entry List'!O118/'2015 Stats'!$B$8 -> 0.07692307692 | E46: ='2015 entry List'!P118/'2015 Stats'!$B$8 -> 0.02197802198 | F46: ='2015 entry List'!Q118/'2015 Stats'!$B$8 -> 0.1428571429 | G46: ='2015 entry List'!R118/'2015 Stats'!$B$8 -> 0.3186813187 | H46: ='2015 entry List'!S118/'2015 Stats'!$B$8 -> 0.3516483516 | I46: ='2015 entry List'!T118/'2015 Stats'!$B$8 -> 0.3076923077 | J46: ='2015 entry List'!U118/'2015 Stats'!$B$8 -> 0.4395604396 | K46: ='2015 entry List'!V118/'2015 Stats'!$B$8 -> 0.1538461538 | L46: ='2015 entry List'!W118/'2015 Stats'!$B$8 -> 0.1318681319 | M46: ='2015 entry List'!X118/'2015 Stats'!$B$8 -> 0.1758241758 | N46: ='2015 entry List'!Y118/'2015 Stats'!$B$8 -> 0.1978021978 | O46: ='2015 entry List'!Z118/'2015 Stats'!$B$8 -> 0.3186813187 | P46: ='2015 entry List'!AA118/'2015 Stats'!$B$8 -> 0.1318681319 | Q46: ='2015 entry List'!AB118/'2015 Stats'!$B$8 -> 0.1978021978 | R46: ='2015 entry List'!AC118/'2015 Stats'!$B$8 -> 0.2857142857 | S46: ='2015 entry List'!AD118/'2015 Stats'!$B$8 -> 0.07692307692 | T46: ='2015 entry List'!AE118/'2015 Stats'!$B$8 -> 0.07692307692 | U46: ='2015 entry List'!AF118/'2015 Stats'!$B$8 -> 0.07692307692 | V46: ='2015 entry List'!AG118/'2015 Stats'!$B$8 -> 0.1208791209 | W46: ='2015 entry List'!AH118/'2015 Stats'!$B$8 -> 0.3956043956
C47: 5 | D47: ='2015 entry List'!O119/'2015 Stats'!$B$8 -> 0 | E47: ='2015 entry List'!P119/'2015 Stats'!$B$8 -> 0.05494505495 | F47: ='2015 entry List'!Q119/'2015 Stats'!$B$8 -> 0.01098901099 | G47: ='2015 entry List'!R119/'2015 Stats'!$B$8 -> 0.07692307692 | H47: ='2015 entry List'!S119/'2015 Stats'!$B$8 -> 0.05494505495 | I47: ='2015 entry List'!T119/'2015 Stats'!$B$8 -> 0.0989010989 | J47: ='2015 entry List'!U119/'2015 Stats'!$B$8 -> 0.1648351648 | K47: ='2015 entry List'!V119/'2015 Stats'!$B$8 -> 0.04395604396 | L47: ='2015 entry List'!W119/'2015 Stats'!$B$8 -> 0.04395604396 | M47: ='2015 entry List'!X119/'2015 Stats'!$B$8 -> 0.06593406593 | N47: ='2015 entry List'!Y119/'2015 Stats'!$B$8 -> 0.02197802198 | O47: ='2015 entry List'!Z119/'2015 Stats'!$B$8 -> 0 | P47: ='2015 entry List'!AA119/'2015 Stats'!$B$8 -> 0.06593406593 | Q47: ='2015 entry List'!AB119/'2015 Stats'!$B$8 -> 0.01098901099 | R47: ='2015 entry List'!AC119/'2015 Stats'!$B$8 -> 0.07692307692 | S47: ='2015 entry List'!AD119/'2015 Stats'!$B$8 -> 0.02197802198 | T47: ='2015 entry List'!AE119/'2015 Stats'!$B$8 -> 0.07692307692 | U47: ='2015 entry List'!AF119/'2015 Stats'!$B$8 -> 0.06593406593 | V47: ='2015 entry List'!AG119/'2015 Stats'!$B$8 -> 0.04395604396 | W47: ='2015 entry List'!AH119/'2015 Stats'!$B$8 -> 0.1538461538
C48: 10 | D48: ='2015 entry List'!O120/'2015 Stats'!$B$8 -> 0 | E48: ='2015 entry List'!P120/'2015 Stats'!$B$8 -> 0 | F48: ='2015 entry List'!Q120/'2015 Stats'!$B$8 -> 0 | G48: ='2015 entry List'!R120/'2015 Stats'!$B$8 -> 0 | H48: ='2015 entry List'!S120/'2015 Stats'!$B$8 -> 0 | I48: ='2015 entry List'!T120/'2015 Stats'!$B$8 -> 0 | J48: ='2015 entry List'!U120/'2015 Stats'!$B$8 -> 0 | K48: ='2015 entry List'!V120/'2015 Stats'!$B$8 -> 0 | L48: ='2015 entry List'!W120/'2015 Stats'!$B$8 -> 0 | M48: ='2015 entry List'!X120/'2015 Stats'!$B$8 -> 0.01098901099 | N48: ='2015 entry List'!Y120/'2015 Stats'!$B$8 -> 0 | O48: ='2015 entry List'!Z120/'2015 Stats'!$B$8 -> 0 | P48: ='2015 entry List'!AA120/'2015 Stats'!$B$8 -> 0 | Q48: ='2015 entry List'!AB120/'2015 Stats'!$B$8 -> 0 | R48: ='2015 entry List'!AC120/'2015 Stats'!$B$8 -> 0 | S48: ='2015 entry List'!AD120/'2015 Stats'!$B$8 -> 0 | T48: ='2015 entry List'!AE120/'2015 Stats'!$B$8 -> 0 | U48: ='2015 entry List'!AF120/'2015 Stats'!$B$8 -> 0 | V48: ='2015 entry List'!AG120/'2015 Stats'!$B$8 -> 0 | W48: ='2015 entry List'!AH120/'2015 Stats'!$B$8 -> 0
D51: 21 | E51: 22 | F51: 23 | G51: 24 | H51: 25 | I51: 26 | J51: 27 | K51: 28 | L51: 29 | M51: 30 | N51: 31 | O51: 32 | P51: 33 | Q51: 34 | R51: 35 | S51: 36 | T51: 37 | U51: 38 | V51: 39 | W51: 40
C52: 0 | D52: ='2015 entry List'!AI115/'2015 Stats'!$B$8 -> 0.5384615385 | E52: ='2015 entry List'!AJ115/'2015 Stats'!$B$8 -> 0.1978021978 | F52: ='2015 entry List'!AK115/'2015 Stats'!$B$8 -> 0.2637362637 | G52: ='2015 entry List'!AL115/'2015 Stats'!$B$8 -> 0.6153846154 | H52: ='2015 entry List'!AM115/'2015 Stats'!$B$8 -> 0.6703296703 | I52: ='2015 entry List'!AN115/'2015 Stats'!$B$8 -> 0.6043956044 | J52: ='2015 entry List'!AO115/'2015 Stats'!$B$8 -> 0.5494505495 | K52: ='2015 entry List'!AP115/'2015 Stats'!$B$8 -> 0.4505494505 | L52: ='2015 entry List'!AQ115/'2015 Stats'!$B$8 -> 0.4615384615 | M52: ='2015 entry List'!AR115/'2015 Stats'!$B$8 -> 0.6373626374 | N52: ='2015 entry List'!AS115/'2015 Stats'!$B$8 -> 0.7912087912 | O52: ='2015 entry List'!AT115/'2015 Stats'!$B$8 -> 0.1538461538 | P52: ='2015 entry List'!AU115/'2015 Stats'!$B$8 -> 0.4615384615 | Q52: ='2015 entry List'!AV115/'2015 Stats'!$B$8 -> 0.5494505495 | R52: ='2015 entry List'!AW115/'2015 Stats'!$B$8 -> 0.7472527473 | S52: ='2015 entry List'!AX115/'2015 Stats'!$B$8 -> 0.2857142857 | T52: ='2015 entry List'!AY115/'2015 Stats'!$B$8 -> 0.3956043956 | U52: ='2015 entry List'!AZ115/'2015 Stats'!$B$8 -> 0.1208791209 | V52: ='2015 entry List'!BA115/'2015 Stats'!$B$8 -> 0.3846153846 | W52: ='2015 entry List'!BB115/'2015 Stats'!$B$8 -> 0.1318681319
C53: 1 | D53: ='2015 entry List'!AI116/'2015 Stats'!$B$8 -> 0.1318681319 | E53: ='2015 entry List'!AJ116/'2015 Stats'!$B$8 -> 0.1978021978 | F53: ='2015 entry List'!AK116/'2015 Stats'!$B$8 -> 0.2087912088 | G53: ='2015 entry List'!AL116/'2015 Stats'!$B$8 -> 0.07692307692 | H53: ='2015 entry List'!AM116/'2015 Stats'!$B$8 -> 0.0989010989 | I53: ='2015 entry List'!AN116/'2015 Stats'!$B$8 -> 0.06593406593 | J53: ='2015 entry List'!AO116/'2015 Stats'!$B$8 -> 0.08791208791 | K53: ='2015 entry List'!AP116/'2015 Stats'!$B$8 -> 0.08791208791 | L53: ='2015 entry List'!AQ116/'2015 Stats'!$B$8 -> 0.1098901099 | M53: ='2015 entry List'!AR116/'2015 Stats'!$B$8 -> 0.06593406593 | N53: ='2015 entry List'!AS116/'2015 Stats'!$B$8 -> 0 | O53: ='2015 entry List'!AT116/'2015 Stats'!$B$8 -> 0.2307692308 | P53: ='2015 entry List'!AU116/'2015 Stats'!$B$8 -> 0.1648351648 | Q53: ='2015 entry List'!AV116/'2015 Stats'!$B$8 -> 0.07692307692 | R53: ='2015 entry List'!AW116/'2015 Stats'!$B$8 -> 0.01098901099 | S53: ='2015 entry List'!AX116/'2015 Stats'!$B$8 -> 0.2747252747 | T53: ='2015 entry List'!AY116/'2015 Stats'!$B$8 -> 0.1428571429 | U53: ='2015 entry List'!AZ116/'2015 Stats'!$B$8 -> 0.1208791209 | V53: ='2015 entry List'!BA116/'2015 Stats'!$B$8 -> 0.2087912088 | W53: ='2015 entry List'!BB116/'2015 Stats'!$B$8 -> 0.04395604396
C54: 2 | D54: ='2015 entry List'!AI117/'2015 Stats'!$B$8 -> 0.01098901099 | E54: ='2015 entry List'!AJ117/'2015 Stats'!$B$8 -> 0.1318681319 | F54: ='2015 entry List'!AK117/'2015 Stats'!$B$8 -> 0.1318681319 | G54: ='2015 entry List'!AL117/'2015 Stats'!$B$8 -> 0.02197802198 | H54: ='2015 entry List'!AM117/'2015 Stats'!$B$8 -> 0.01098901099 | I54: ='2015 entry List'!AN117/'2015 Stats'!$B$8 -> 0.05494505495 | J54: ='2015 entry List'!AO117/'2015 Stats'!$B$8 -> 0.04395604396 | K54: ='2015 entry List'!AP117/'2015 Stats'!$B$8 -> 0.06593406593 | L54: ='2015 entry List'!AQ117/'2015 Stats'!$B$8 -> 0.06593406593 | M54: ='2015 entry List'!AR117/'2015 Stats'!$B$8 -> 0.01098901099 | N54: ='2015 entry List'!AS117/'2015 Stats'!$B$8 -> 0 | O54: ='2015 entry List'!AT117/'2015 Stats'!$B$8 -> 0.07692307692 | P54: ='2015 entry List'!AU117/'2015 Stats'!$B$8 -> 0.07692307692 | Q54: ='2015 entry List'!AV117/'2015 Stats'!$B$8 -> 0.06593406593 | R54: ='2015 entry List'!AW117/'2015 Stats'!$B$8 -> 0.01098901099 | S54: ='2015 entry List'!AX117/'2015 Stats'!$B$8 -> 0.08791208791 | T54: ='2015 entry List'!AY117/'2015 Stats'!$B$8 -> 0.0989010989 | U54: ='2015 entry List'!AZ117/'2015 Stats'!$B$8 -> 0.1098901099 | V54: ='2015 entry List'!BA117/'2015 Stats'!$B$8 -> 0.07692307692 | W54: ='2015 entry List'!BB117/'2015 Stats'!$B$8 -> 0.02197802198
C55: 3 | D55: ='2015 entry List'!AI118/'2015 Stats'!$B$8 -> 0.06593406593 | E55: ='2015 entry List'!AJ118/'2015 Stats'!$B$8 -> 0.1538461538 | F55: ='2015 entry List'!AK118/'2015 Stats'!$B$8 -> 0.1318681319 | G55: ='2015 entry List'!AL118/'2015 Stats'!$B$8 -> 0.04395604396 | H55: ='2015 entry List'!AM118/'2015 Stats'!$B$8 -> 0 | I55: ='2015 entry List'!AN118/'2015 Stats'!$B$8 -> 0 | J55: ='2015 entry List'!AO118/'2015 Stats'!$B$8 -> 0.03296703297 | K55: ='2015 entry List'!AP118/'2015 Stats'!$B$8 -> 0.0989010989 | L55: ='2015 entry List'!AQ118/'2015 Stats'!$B$8 -> 0.0989010989 | M55: ='2015 entry List'!AR118/'2015 Stats'!$B$8 -> 0.05494505495 | N55: ='2015 entry List'!AS118/'2015 Stats'!$B$8 -> 0 | O55: ='2015 entry List'!AT118/'2015 Stats'!$B$8 -> 0.2637362637 | P55: ='2015 entry List'!AU118/'2015 Stats'!$B$8 -> 0.07692307692 | Q55: ='2015 entry List'!AV118/'2015 Stats'!$B$8 -> 0.07692307692 | R55: ='2015 entry List'!AW118/'2015 Stats'!$B$8 -> 0 | S55: ='2015 entry List'!AX118/'2015 Stats'!$B$8 -> 0.07692307692 | T55: ='2015 entry List'!AY118/'2015 Stats'!$B$8 -> 0.06593406593 | U55: ='2015 entry List'!AZ118/'2015 Stats'!$B$8 -> 0.2967032967 | V55: ='2015 entry List'!BA118/'2015 Stats'!$B$8 -> 0.0989010989 | W55: ='2015 entry List'!BB118/'2015 Stats'!$B$8 -> 0.2197802198
C56: 5 | D56: ='2015 entry List'!AI119/'2015 Stats'!$B$8 -> 0.03296703297 | E56: ='2015 entry List'!AJ119/'2015 Stats'!$B$8 -> 0.0989010989 | F56: ='2015 entry List'!AK119/'2015 Stats'!$B$8 -> 0.05494505495 | G56: ='2015 entry List'!AL119/'2015 Stats'!$B$8 -> 0.03296703297 | H56: ='2015 entry List'!AM119/'2015 Stats'!$B$8 -> 0.01098901099 | I56: ='2015 entry List'!AN119/'2015 Stats'!$B$8 -> 0.06593406593 | J56: ='2015 entry List'!AO119/'2015 Stats'!$B$8 -> 0.07692307692 | K56: ='2015 entry List'!AP119/'2015 Stats'!$B$8 -> 0.08791208791 | L56: ='2015 entry List'!AQ119/'2015 Stats'!$B$8 -> 0.05494505495 | M56: ='2015 entry List'!AR119/'2015 Stats'!$B$8 -> 0.02197802198 | N56: ='2015 entry List'!AS119/'2015 Stats'!$B$8 -> 0 | O56: ='2015 entry List'!AT119/'2015 Stats'!$B$8 -> 0.05494505495 | P56: ='2015 entry List'!AU119/'2015 Stats'!$B$8 -> 0.01098901099 | Q56: ='2015 entry List'!AV119/'2015 Stats'!$B$8 -> 0.02197802198 | R56: ='2015 entry List'!AW119/'2015 Stats'!$B$8 -> 0.02197802198 | S56: ='2015 entry List'!AX119/'2015 Stats'!$B$8 -> 0.05494505495 | T56: ='2015 entry List'!AY119/'2015 Stats'!$B$8 -> 0.07692307692 | U56: ='2015 entry List'!AZ119/'2015 Stats'!$B$8 -> 0.1318681319 | V56: ='2015 entry List'!BA119/'2015 Stats'!$B$8 -> 0.01098901099 | W56: ='2015 entry List'!BB119/'2015 Stats'!$B$8 -> 0.3626373626
C57: 10 | D57: ='2015 entry List'!AI120/'2015 Stats'!$B$8 -> 0 | E57: ='2015 entry List'!AJ120/'2015 Stats'!$B$8 -> 0 | F57: ='2015 entry List'!AK120/'2015 Stats'!$B$8 -> 0 | G57: ='2015 entry List'!AL120/'2015 Stats'!$B$8 -> 0 | H57: ='2015 entry List'!AM120/'2015 Stats'!$B$8 -> 0 | I57: ='2015 entry List'!AN120/'2015 Stats'!$B$8 -> 0 | J57: ='2015 entry List'!AO120/'2015 Stats'!$B$8 -> 0 | K57: ='2015 entry List'!AP120/'2015 Stats'!$B$8 -> 0 | L57: ='2015 entry List'!AQ120/'2015 Stats'!$B$8 -> 0 | M57: ='2015 entry List'!AR120/'2015 Stats'!$B$8 -> 0 | N57: ='2015 entry List'!AS120/'2015 Stats'!$B$8 -> 0 | O57: ='2015 entry List'!AT120/'2015 Stats'!$B$8 -> 0 | P57: ='2015 entry List'!AU120/'2015 Stats'!$B$8 -> 0 | Q57: ='2015 entry List'!AV120/'2015 Stats'!$B$8 -> 0 | R57: ='2015 entry List'!AW120/'2015 Stats'!$B$8 -> 0 | S57: ='2015 entry List'!AX120/'2015 Stats'!$B$8 -> 0 | T57: ='2015 entry List'!AY120/'2015 Stats'!$B$8 -> 0 | U57: ='2015 entry List'!AZ120/'2015 Stats'!$B$8 -> 0 | V57: ='2015 entry List'!BA120/'2015 Stats'!$B$8 -> 0 | W57: ='2015 entry List'!BB120/'2015 Stats'!$B$8 -> 0

Sheet 2015 entry List (hidden)
O1: Enter scores from cards/punch cards 0,1,2,3,5. If missed a section enter '10' | BC1: Enter late start and/or late finish. (Max 20mins) | BE1: Do not enter numbers here these totals will auto update
C8: Laps | D8: 1
C9: Sections | D9: 40
C10: Entries | D10: =COUNTA(H15:H114) -> 92
O13: Flame Thrower | R13: Fountains Fell | V13: Litton Track | X13: Ellershaw Farm | AC13: Arncliffe Scree | AG13: Sleets | AH13: hawkswick | AI13: Redmire | AK13: Hagg Gill | AN13: Yockenthwaite | AQ13: Raisgill | AS13: Bouther Gill | AW13: Wilks | AZ13: Penters A | BB13: Halton Gill | BC13: late start | BD13: late finish | BE13: total | BF13: 0s | BG13: 1s | BH13: 2s | BI13: 3s | BJ13: 5s | BK13: 10s | BM13: Check 1 | BN13: Check2 | BO13: % completed | BP13: % of MS
A14: 100305 | B14: RJ Sadler | C14: 30 | E14: 32 | F14: 101796 | G14: 42 | H14: Richard Sadler | I14: Bet | J14: E | K14: 1 | L14: West Witton | M14: 10:21:30 | N14: =M14+TIME(7,0,0) -> 17:21:30 | O14: 0 | P14: 0 | Q14: 1 | R14: 0 | S14: 0 | T14: 0 | U14: 0 | V14: 0 | W14: 0 | X14: 2 | Y14: 0 | Z14: 0 | AA14: 0 | AB14: 0 | AC14: 0 | AD14: 0 | AE14: 0 | AF14: 0 | AG14: 0 | AH14: 0 | AI14: 0 | AJ14: 0 | AK14: 0 | AL14: 0 | AM14: 0 | AN14: 0 | AO14: 0 | AP14: 0 | AQ14: 0 | AR14: 0 | AS14: 0 | AT14: 0 | AU14: 0 | AV14: 0 | AW14: 0 | AX14: 0 | AY14: 0 | AZ14: 0 | BA14: 0 | BB14: 0 | BE14: =SUM(O14:BD14) -> 3 | BF14: =COUNTIF(O14:BB14,0) -> 38 | BG14: =COUNTIF(O14:BB14,1) -> 1 | BH14: =COUNTIF(O14:BB14,2) -> 1 | BI14: =COUNTIF(O14:BB14,3) -> 0 | BJ14: =COUNTIF(O14:BB14,5) -> 0 | BK14: =COUNTIF(O14:BB14,10) -> 0
A15: 322 | B15: Ian Austermuhle | C15: 30 | E15: 13 | F15: 5401 | G15: 56 | H15: Ian Austermuhle | I15: Bet | J15: E | K15: 1 | L15: Malton | M15: 10:28:30 | N15: =M15+TIME(7,0,0) -> 17:28:30 | O15: 0 | P15: 0 | Q15: 0 | R15: 0 | S15: 1 | T15: 1 | U15: 0 | V15: 0 | W15: 0 | X15: 0 | Y15: 0 | Z15: 0 | AA15: 1 | AB15: 1 | AC15: 0 | AD15: 0 | AE15: 0 | AF15: 0 | AG15: 2 | AH15: 0 | AI15: 3 | AJ15: 0 | AK15: 0 | AL15: 0 | AM15: 0 | AN15: 0 | AO15: 0 | AP15: 0 | AQ15: 0 | AR15: 0 | AS15: 0 | AT15: 0 | AU15: 0 | AV15: 0 | AW15: 0 | AX15: 0 | AY15: 0 | AZ15: 0 | BA15: 2 | BB15: 0 | BE15: =SUM(O15:BD15) -> 11 | BF15: =COUNTIF(O15:BB15,0) -> 33 | BG15: =COUNTIF(O15:BB15,1) -> 4 | BH15: =COUNTIF(O15:BB15,2) -> 2 | BI15: =COUNTIF(O15:BB15,3) -> 1 | BJ15: =COUNTIF(O15:BB15,5) -> 0 | BK15: =COUNTIF(O15:BB15,10) -> 0 | BM15: =$D$9*$D$8 -> 40 | BN15: =SUM(BF15:BK15) -> 40 | BO15: =BN15/BM15 -> 1 | BP15: =BK15/BN15 -> 0
A16: 260 | B16: P waite | C16: 30 | E16: 2 | F16: 109873 | G16: 57 | H16: Rob Waite | I16: bet | J16: E | K16: 1 | L16: Darlington | M16: 10:29:00 | N16: =M16+TIME(7,0,0) -> 17:29:00 | O16: 0 | P16: 0 | Q16: 0 | R16: 0 | S16: 2 | T16: 1 | U16: 0 | V16: 2 | W16: 0 | X16: 2 | Y16: 1 | Z16: 0 | AA16: 2 | AB16: 1 | AC16: 0 | AD16: 0 | AE16: 0 | AF16: 0 | AG16: 2 | AH16: 1 | AI16: 1 | AJ16: 0 | AK16: 0 | AL16: 0 | AM16: 0 | AN16: 0 | AO16: 0 | AP16: 0 | AQ16: 0 | AR16: 0 | AS16: 0 | AT16: 3 | AU16: 0 | AV16: 0 | AW16: 0 | AX16: 0 | AY16: 0 | AZ16: 0 | BA16: 1 | BB16: 0 | BE16: =SUM(O16:BD16) -> 19 | BF16: =COUNTIF(O16:BB16,0) -> 28 | BG16: =COUNTIF(O16:BB16,1) -> 6 | BH16: =COUNTIF(O16:BB16,2) -> 5 | BI16: =COUNTIF(O16:BB16,3) -> 1 | BJ16: =COUNTIF(O16:BB16,5) -> 0 | BK16: =COUNTIF(O16:BB16,10) -> 0 | BM16: =$D$9*$D$8 -> 40 | BN16: =SUM(BF16:BK16) -> 40 | BO16: =BN16/BM16 -> 1 | BP16: =BK16/BN16 -> 0
A17: 100412 | B17: D Thorpe | C17: 60 | E17: 33 | F17: 10678 | G17: 45 | H17: Dan Thorpe | I17: Gas | J17: E | K17: 1 | L17: Sheffield | M17: 10:23:00 | N17: =M17+TIME(7,0,0) -> 17:23:00 | O17: 0 | P17: 0 | Q17: 1 | R17: 0 | S17: 5 | T17: 0 | U17: 1 | V17: 5 | W17: 0 | X17: 1 | Y17: 0 | Z17: 0 | AA17: 0 | AB17: 1 | AC17: 0 | AD17: 0 | AE17: 0 | AF17: 5 | AG17: 0 | AH17: 1 | AI17: 0 | AJ17: 0 | AK17: 0 | AL17: 0 | AM17: 0 | AN17: 0 | AO17: 0 | AP17: 0 | AQ17: 0 | AR17: 0 | AS17: 0 | AT17: 1 | AU17: 0 | AV17: 0 | AW17: 0 | AX17: 1 | AY17: 1 | AZ17: 0 | BA17: 0 | BB17: 0 | BE17: =SUM(O17:BD17) -> 23 | BF17: =COUNTIF(O17:BB17,0) -> 29 | BG17: =COUNTIF(O17:BB17,1) -> 8 | BH17: =COUNTIF(O17:BB17,2) -> 0 | BI17: =COUNTIF(O17:BB17,3) -> 0 | BJ17: =COUNTIF(O17:BB17,5) -> 3 | BK17: =COUNTIF(O17:BB17,10) -> 0 | BM17: =$D$9*$D$8 -> 40 | BN17: =SUM(BF17:BK17) -> 40 | BO17: =BN17/BM17 -> 1 | BP17: =BK17/BN17 -> 0
A18: 22106 | B18: G Kendreew | C18: 30 | E18: 31 | F18: 65411 | G18: 54 | H18: Guy Kendrew | I18: Bet | J18: E | K18: 1 | L18: Faceby | M18: 10:27:30 | N18: =M18+TIME(7,0,0) -> 17:27:30 | O18: 0 | P18: 0 | Q18: 1 | R18: 0 | S18: 0 | T18: 1 | U18: 2 | V18: 0 | W18: 0 | X18: 2 | Y18: 0 | Z18: 0 | AA18: 0 | AB18: 2 | AC18: 0 | AD18: 0 | AE18: 0 | AF18: 0 | AG18: 0 | AH18: 1 | AI18: 1 | AJ18: 5 | AK18: 0 | AL18: 0 | AM18: 0 | AN18: 0 | AO18: 0 | AP18: 0 | AQ18: 1 | AR18: 0 | AS18: 0 | AT18: 0 | AU18: 0 | AV18: 0 | AW18: 0 | AX18: 0 | AY18: 2 | AZ18: 3 | BA18: 0 | BB18: 0 | BC18: 3 | BE18: =SUM(O18:BD18) -> 24 | BF18: =COUNTIF(O18:BB18,0) -> 29 | BG18: =COUNTIF(O18:BB18,1) -> 5 | BH18: =COUNTIF(O18:BB18,2) -> 4 | BI18: =COUNTIF(O18:BB18,3) -> 1 | BJ18: =COUNTIF(O18:BB18,5) -> 1 | BK18: =COUNTIF(O18:BB18,10) -> 0 | BM18: =$D$9*$D$8 -> 40 | BN18: =SUM(BF18:BK18) -> 40 | BO18: =BN18/BM18 -> 1 | BP18: =BK18/BN18 -> 0
A19: 100060 | B19: DJ Gamble | C19: 30 | E19: 55 | F19: 63776 | G19: 62 | H19: Danny Gamble | I19: She | J19: E | K19: 1 | L19: Harrogate | M19: 10:31:30 | N19: =M19+TIME(7,0,0) -> 17:31:30 | O19: 0 | P19: 0 | Q19: 0 | R19: 0 | S19: 0 | T19: 1 | U19: 3 | V19: 3 | W19: 1 | X19: 1 | Y19: 1 | Z19: 0 | AA19: 0 | AB19: 1 | AC19: 0 | AD19: 0 | AE19: 5 | AF19: 2 | AG19: 2 | AH19: 1 | AI19: 0 | AJ19: 0 | AK19: 0 | AL19: 0 | AM19: 0 | AN19: 0 | AO19: 0 | AP19: 0 | AQ19: 0 | AR19: 0 | AS19: 0 | AT19: 0 | AU19: 0 | AV19: 0 | AW19: 0 | AX19: 0 | AY19: 1 | AZ19: 3 | BA19: 0 | BB19: 0 | BE19: =SUM(O19:BD19) -> 25 | BF19: =COUNTIF(O19:BB19,0) -> 27 | BG19: =COUNTIF(O19:BB19,1) -> 7 | BH19: =COUNTIF(O19:BB19,2) -> 2 | BI19: =COUNTIF(O19:BB19,3) -> 3 | BJ19: =COUNTIF(O19:BB19,5) -> 1 | BK19: =COUNTIF(O19:BB19,10) -> 0 | BM19: =$D$9*$D$8 -> 40 | BN19: =SUM(BF19:BK19) -> 40 | BO19: =BN19/BM19 -> 1 | BP19: =BK19/BN19 -> 0
A20: 49 | B20: Area ISI Ltd | C20: 30 | E20: 61 | F20: 99931 | G20: 58 | H20: Sam Beecroft-Penny | I20: She | J20: E | K20: 1 | L20: Yeadon | M20: 10:29:30 | N20: =M20+TIME(7,0,0) -> 17:29:30 | O20: 0 | P20: 0 | Q20: 0 | R20: 0 | S20: 3 | T20: 5 | U20: 0 | V20: 1 | W20: 1 | X20: 0 | Y20: 0 | Z20: 0 | AA20: 0 | AB20: 3 | AC20: 0 | AD20: 0 | AE20: 0 | AF20: 0 | AG20: 2 | AH20: 3 | AI20: 0 | AJ20: 1 | AK20: 0 | AL20: 0 | AM20: 0 | AN20: 0 | AO20: 0 | AP20: 0 | AQ20: 3 | AR20: 0 | AS20: 0 | AT20: 1 | AU20: 0 | AV20: 0 | AW20: 0 | AX20: 5 | AY20: 1 | AZ20: 1 | BA20: 1 | BB20: 1 | BE20: =SUM(O20:BD20) -> 32 | BF20: =COUNTIF(O20:BB20,0) -> 25 | BG20: =COUNTIF(O20:BB20,1) -> 8 | BH20: =COUNTIF(O20:BB20,2) -> 1 | BI20: =COUNTIF(O20:BB20,3) -> 4 | BJ20: =COUNTIF(O20:BB20,5) -> 2 | BK20: =COUNTIF(O20:BB20,10) -> 0 | BM20: =$D$9*$D$8 -> 40 | BN20: =SUM(BF20:BK20) -> 40 | BO20: =BN20/BM20 -> 1 | BP20: =BK20/BN20 -> 0
A21: 100407 | B21: N Wrigglesworth | C21: 30 | E21: 85 | F21: 28520 | G21: 51 | H21: Nathan Wrigglesworth | I21: She | J21: E | K21: 1 | L21: Cowling | M21: 10:26:00 | N21: =M21+TIME(7,0,0) -> 17:26:00 | O21: 0 | P21: 2 | Q21: 0 | R21: 1 | S21: 0 | T21: 0 | U21: 0 | V21: 3 | W21: 0 | X21: 2 | Y21: 0 | Z21: 1 | AA21: 3 | AB21: 1 | AC21: 1 | AD21: 0 | AE21: 0 | AF21: 1 | AG21: 2 | AH21: 3 | AI21: 1 | AJ21: 0 | AK21: 0 | AL21: 0 | AM21: 0 | AN21: 0 | AO21: 0 | AP21: 1 | AQ21: 1 | AR21: 0 | AS21: 0 | AT21: 1 | AU21: 0 | AV21: 0 | AW21: 0 | AX21: 2 | AY21: 2 | AZ21: 3 | BA21: 1 | BB21: 0 | BE21: =SUM(O21:BD21) -> 32 | BF21: =COUNTIF(O21:BB21,0) -> 21 | BG21: =COUNTIF(O21:BB21,1) -> 10 | BH21: =COUNTIF(O21:BB21,2) -> 5 | BI21: =COUNTIF(O21:BB21,3) -> 4 | BJ21: =COUNTIF(O21:BB21,5) -> 0 | BK21: =COUNTIF(O21:BB21,10) -> 0 | BM21: =$D$9*$D$8 -> 40 | BN21: =SUM(BF21:BK21) -> 40 | BO21: =BN21/BM21 -> 1 | BP21: =BK21/BN21 -> 0
B22: PAY PAL | C22: 30 | E22: 86 | F22: 11400 | G22: 47 | H22: Chris Pearson | I22: She | J22: E | K22: 1 | L22: Dronfield | M22: 10:24:00 | N22: =M22+TIME(7,0,0) -> 17:24:00 | O22: 0 | P22: 0 | Q22: 1 | R22: 0 | S22: 1 | T22: 1 | U22: 1 | V22: 0 | W22: 2 | X22: 1 | Y22: 1 | Z22: 0 | AA22: 2 | AB22: 1 | AC22: 0 | AD22: 0 | AE22: 0 | AF22: 2 | AG22: 0 | AH22: 1 | AI22: 1 | AJ22: 0 | AK22: 2 | AL22: 0 | AM22: 1 | AN22: 0 | AO22: 0 | AP22: 0 | AQ22: 3 | AR22: 0 | AS22: 0 | AT22: 1 | AU22: 0 | AV22: 0 | AW22: 0 | AX22: 0 | AY22: 3 | AZ22: 5 | BA22: 1 | BB22: 1 | BE22: =SUM(O22:BD22) -> 32 | BF22: =COUNTIF(O22:BB22,0) -> 20 | BG22: =COUNTIF(O22:BB22,1) -> 13 | BH22: =COUNTIF(O22:BB22,2) -> 4 | BI22: =COUNTIF(O22:BB22,3) -> 2 | BJ22: =COUNTIF(O22:BB22,5) -> 1 | BK22: =COUNTIF(O22:BB22,10) -> 0 | BM22: =$D$9*$D$8 -> 40 | BN22: =SUM(BF22:BK22) -> 40 | BO22: =BN22/BM22 -> 1 | BP22: =BK22/BN22 -> 0
A23: 100069 | B23: A Drachenberg | C23: 30 | E23: 67 | F23: 28757 | G23: 60 | H23: Aran Drachenberg | I23: Bet | J23: E | K23: 1 | L23: Skipton | M23: 10:30:30 | N23: =M23+TIME(7,0,0) -> 17:30:30 | O23: 0 | P23: 0 | Q23: 0 | R23: 1 | S23: 2 | T23: 0 | U23: 3 | V23: 5 | W23: 1 | X23: 2 | Y23: 2 | Z23: 0 | AA23: 3 | AB23: 3 | AC23: 0 | AD23: 0 | AE23: 0 | AF23: 2 | AG23: 1 | AH23: 2 | AI23: 3 | AJ23: 5 | AK23: 0 | AL23: 0 | AM23: 1 | AN23: 0 | AO23: 0 | AP23: 1 | AQ23: 1 | AR23: 0 | AS23: 0 | AT23: 0 | AU23: 0 | AV23: 0 | AW23: 0 | AX23: 2 | AY23: 2 | AZ23: 3 | BA23: 1 | BB23: 0 | BE23: =SUM(O23:BD23) -> 46 | BF23: =COUNTIF(O23:BB23,0) -> 19 | BG23: =COUNTIF(O23:BB23,1) -> 7 | BH23: =COUNTIF(O23:BB23,2) -> 7 | BI23: =COUNTIF(O23:BB23,3) -> 5 | BJ23: =COUNTIF(O23:BB23,5) -> 2 | BK23: =COUNTIF(O23:BB23,10) -> 0 | BM23: =$D$9*$D$8 -> 40 | BN23: =SUM(BF23:BK23) -> 40 | BO23: =BN23/BM23 -> 1 | BP23: =BK23/BN23 -> 0
A24: 10 | B24: Sam Yeadon | C24: 30 | E24: 1 | F24: 99635 | G24: 63 | H24: Sam Yeadon | I24: Bet | J24: E | K24: 1 | L24: Boston Spa | M24: 10:32:00 | N24: =M24+TIME(7,0,0) -> 17:32:00 | O24: 0 | P24: 0 | Q24: 1 | R24: 5 | S24: 3 | T24: 1 | U24: 3 | V24: 0 | W24: 1 | X24: 1 | Y24: 1 | Z24: 0 | AA24: 3 | AB24: 1 | AC24: 1 | AD24: 0 | AE24: 0 | AF24: 0 | AG24: 1 | AH24: 1 | AI24: 0 | AJ24: 5 | AK24: 0 | AL24: 5 | AM24: 0 | AN24: 0 | AO24: 0 | AP24: 0 | AQ24: 2 | AR24: 3 | AS24: 0 | AT24: 3 | AU24: 0 | AV24: 1 | AW24: 0 | AX24: 0 | AY24: 5 | AZ24: 2 | BA24: 0 | BB24: 3 | BC24: 11 | BE24: =SUM(O24:BD24) -> 63 | BF24: =COUNTIF(O24:BB24,0) -> 18 | BG24: =COUNTIF(O24:BB24,1) -> 10 | BH24: =COUNTIF(O24:BB24,2) -> 2 | BI24: =COUNTIF(O24:BB24,3) -> 6 | BJ24: =COUNTIF(O24:BB24,5) -> 4 | BK24: =COUNTIF(O24:BB24,10) -> 0 | BM24: =$D$9*$D$8 -> 40 | BN24: =SUM(BF24:BK24) -> 40 | BO24: =BN24/BM24 -> 1 | BP24: =BK24/BN24 -> 0
A25: 101381 | B25: A Ayrton | C25: 30 | E25: 30 | F25: 6704 | G25: 55 | H25: Anthony Ayrton | I25: She | J25: I | K25: 1 | L25: Barnoldswick | M25: 10:28:00 | N25: =M25+TIME(7,0,0) -> 17:28:00 | O25: 0 | P25: 3 | Q25: 3 | R25: 0 | S25: 3 | T25: 0 | U25: 3 | V25: 1 | W25: 1 | X25: 3 | Y25: 0 | Z25: 3 | AA25: 2 | AB25: 3 | AC25: 3 | AD25: 0 | AE25: 1 | AF25: 1 | AG25: 2 | AH25: 3 | AI25: 1 | AJ25: 5 | AK25: 0 | AL25: 0 | AM25: 5 | AN25: 0 | AO25: 0 | AP25: 5 | AQ25: 3 | AR25: 1 | AS25: 0 | AT25: 1 | AU25: 0 | AV25: 3 | AW25: 0 | AX25: 1 | AY25: 5 | AZ25: 5 | BA25: 0 | BB25: 0 | BE25: =SUM(O25:BD25) -> 70 | BF25: =COUNTIF(O25:BB25,0) -> 14 | BG25: =COUNTIF(O25:BB25,1) -> 8 | BH25: =COUNTIF(O25:BB25,2) -> 2 | BI25: =COUNTIF(O25:BB25,3) -> 11 | BJ25: =COUNTIF(O25:BB25,5) -> 5 | BK25: =COUNTIF(O25:BB25,10) -> 0 | BM25: =$D$9*$D$8 -> 40 | BN25: =SUM(BF25:BK25) -> 40 | BO25: =BN25/BM25 -> 1 | BP25: =BK25/BN25 -> 0
A26: . | E26: 79 | F26: 11415 | G26: 49 | H26: Mark Reynolds | I26: Gas | J26: N | K26: 1 | L26: Skipton | M26: 10:25:00 | N26: =M26+TIME(7,0,0) -> 17:25:00 | O26: 1 | P26: 5 | Q26: 3 | R26: 0 | S26: 3 | T26: 1 | U26: 3 | V26: 1 | W26: 3 | X26: 3 | Y26: 0 | Z26: 2 | AA26: 3 | AB26: 3 | AC26: 2 | AD26: 0 | AE26: 1 | AF26: 3 | AG26: 3 | AH26: 5 | AI26: 3 | AJ26: 2 | AK26: 1 | AL26: 1 | AM26: 1 | AN26: 0 | AO26: 0 | AP26: 0 | AQ26: 5 | AR26: 0 | AS26: 0 | AT26: 5 | AU26: 0 | AV26: 1 | AW26: 0 | AX26: 0 | AY26: 5 | AZ26: 3 | BA26: 1 | BB26: 0 | BE26: =SUM(O26:BD26) -> 73 | BF26: =COUNTIF(O26:BB26,0) -> 12 | BG26: =COUNTIF(O26:BB26,1) -> 9 | BH26: =COUNTIF(O26:BB26,2) -> 3 | BI26: =COUNTIF(O26:BB26,3) -> 11 | BJ26: =COUNTIF(O26:BB26,5) -> 5 | BK26: =COUNTIF(O26:BB26,10) -> 0 | BM26: =$D$9*$D$8 -> 40 | BN26: =SUM(BF26:BK26) -> 40 | BO26: =BN26/BM26 -> 1 | BP26: =BK26/BN26 -> 0
A27: . | E27: 53 | F27: 76765 | G27: 43 | H27: Sam Jennings | I27: Gas | J27: N | K27: 1 | L27: Guisley | M27: 10:22:00 | N27: =M27+TIME(7,0,0) -> 17:22:00 | O27: 0 | P27: 5 | Q27: 3 | R27: 1 | S27: 5 | T27: 0 | U27: 2 | V27: 3 | W27: 3 | X27: 3 | Y27: 2 | Z27: 1 | AA27: 3 | AB27: 3 | AC27: 3 | AD27: 0 | AE27: 1 | AF27: 5 | AG27: 2 | AH27: 3 | AI27: 5 | AJ27: 2 | AK27: 0 | AL27: 1 | AM27: 2 | AN27: 0 | AO27: 1 | AP27: 0 | AQ27: 3 | AR27: 0 | AS27: 0 | AT27: 5 | AU27: 0 | AV27: 3 | AW27: 0 | AX27: 1 | AY27: 2 | AZ27: 5 | BA27: 3 | BB27: 1 | BE27: =SUM(O27:BD27) -> 82 | BF27: =COUNTIF(O27:BB27,0) -> 10 | BG27: =COUNTIF(O27:BB27,1) -> 7 | BH27: =COUNTIF(O27:BB27,2) -> 6 | BI27: =COUNTIF(O27:BB27,3) -> 11 | BJ27: =COUNTIF(O27:BB27,5) -> 6 | BK27: =COUNTIF(O27:BB27,10) -> 0 | BM27: =$D$9*$D$8 -> 40 | BN27: =SUM(BF27:BK27) -> 40 | BO27: =BN27/BM27 -> 1 | BP27: =BK27/BN27 -> 0
B28: Pay Pal | E28: 52 | F28: 108918 | G28: 44 | H28: Joe Jennings | I28: Gas | J28: E | K28: 1 | L28: Guiseley | M28: 10:22:30 | N28: =M28+TIME(7,0,0) -> 17:22:30 | O28: 0 | P28: 5 | Q28: 3 | R28: 1 | S28: 3 | T28: 3 | U28: 3 | V28: 2 | W28: 3 | X28: 2 | Y28: 0 | Z28: 1 | AA28: 3 | AB28: 3 | AC28: 0 | AD28: 0 | AE28: 1 | AF28: 3 | AG28: 1 | AH28: 5 | AI28: 1 | AJ28: 5 | AK28: 5 | AL28: 0 | AM28: 1 | AN28: 0 | AO28: 1 | AP28: 0 | AQ28: 5 | AR28: 1 | AS28: 0 | AT28: 5 | AU28: 0 | AV28: 3 | AW28: 0 | AX28: 1 | AY28: 5 | AZ28: 5 | BA28: 2 | BB28: 1 | BE28: =SUM(O28:BD28) -> 83 | BF28: =COUNTIF(O28:BB28,0) -> 10 | BG28: =COUNTIF(O28:BB28,1) -> 10 | BH28: =COUNTIF(O28:BB28,2) -> 3 | BI28: =COUNTIF(O28:BB28,3) -> 9 | BJ28: =COUNTIF(O28:BB28,5) -> 8 | BK28: =COUNTIF(O28:BB28,10) -> 0 | BM28: =$D$9*$D$8 -> 40 | BN28: =SUM(BF28:BK28) -> 40 | BO28: =BN28/BM28 -> 1 | BP28: =BK28/BN28 -> 0
A29: 1956 | B29: S Sharp | C29: 60 | E29: 78 | F29: 92940 | G29: 50 | H29: Simon Sharp | I29: Gas | J29: N | K29: 1 | L29: Flasby | M29: 10:25:30 | N29: =M29+TIME(7,0,0) -> 17:25:30 | O29: 1 | P29: 1 | Q29: 3 | R29: 0 | S29: 3 | T29: 5 | U29: 5 | V29: 3 | W29: 2 | X29: 3 | Y29: 3 | Z29: 0 | AA29: 3 | AB29: 3 | AC29: 0 | AD29: 2 | AE29: 2 | AF29: 5 | AG29: 3 | AH29: 3 | AI29: 5 | AJ29: 3 | AK29: 1 | AL29: 2 | AM29: 0 | AN29: 0 | AO29: 5 | AP29: 0 | AQ29: 5 | AR29: 0 | AS29: 0 | AT29: 3 | AU29: 0 | AV29: 1 | AW29: 0 | AX29: 1 | AY29: 5 | AZ29: 3 | BA29: 1 | BB29: 0 | BE29: =SUM(O29:BD29) -> 85 | BF29: =COUNTIF(O29:BB29,0) -> 11 | BG29: =COUNTIF(O29:BB29,1) -> 6 | BH29: =COUNTIF(O29:BB29,2) -> 4 | BI29: =COUNTIF(O29:BB29,3) -> 12 | BJ29: =COUNTIF(O29:BB29,5) -> 7 | BK29: =COUNTIF(O29:BB29,10) -> 0 | BM29: =$D$9*$D$8 -> 40 | BN29: =SUM(BF29:BK29) -> 40 | BO29: =BN29/BM29 -> 1 | BP29: =BK29/BN29 -> 0
B30: PAY PAL | C30: 30 | E30: 88 | F30: 23655 | G30: 48 | H30: Danny Cockshott | I30: Gas | J30: I | K30: 1 | L30: Guiseley | M30: 10:24:30 | N30: =M30+TIME(7,0,0) -> 17:24:30 | O30: 1 | P30: 0 | Q30: 5 | R30: 0 | S30: 3 | T30: 0 | U30: 3 | V30: 3 | W30: 1 | X30: 5 | Y30: 1 | Z30: 0 | AA30: 2 | AB30: 3 | AC30: 5 | AD30: 5 | AE30: 5 | AF30: 0 | AG30: 5 | AH30: 3 | AI30: 3 | AJ30: 5 | AK30: 1 | AL30: 3 | AM30: 0 | AN30: 0 | AO30: 0 | AP30: 0 | AQ30: 3 | AR30: 3 | AS30: 0 | AT30: 1 | AU30: 0 | AV30: 3 | AW30: 0 | AX30: 0 | AY30: 5 | AZ30: 5 | BA30: 2 | BB30: 3 | BE30: =SUM(O30:BD30) -> 87 | BF30: =COUNTIF(O30:BB30,0) -> 13 | BG30: =COUNTIF(O30:BB30,1) -> 5 | BH30: =COUNTIF(O30:BB30,2) -> 2 | BI30: =COUNTIF(O30:BB30,3) -> 11 | BJ30: =COUNTIF(O30:BB30,5) -> 9 | BK30: =COUNTIF(O30:BB30,10) -> 0 | BM30: =$D$9*$D$8 -> 40 | BN30: =SUM(BF30:BK30) -> 40 | BO30: =BN30/BM30 -> 1 | BP30: =BK30/BN30 -> 0
B31: PAY PAL | C31: 30 | E31: 5 | G31: 41 | H31: Martin Crosswaite | I31: 4RT | J31: E | K31: 1 | L31: Keighley | M31: 10:21:00 | N31: =M31+TIME(7,0,0) -> 17:21:00 | O31: 0 | P31: 0 | Q31: 1 | R31: 0 | S31: 0 | T31: 0 | U31: 0 | V31: 1 | W31: 5 | BE31: RET | BF31: =COUNTIF(O31:BB31,0) -> 6 | BG31: =COUNTIF(O31:BB31,1) -> 2 | BH31: =COUNTIF(O31:BB31,2) -> 0 | BI31: =COUNTIF(O31:BB31,3) -> 0 | BJ31: =COUNTIF(O31:BB31,5) -> 1 | BK31: =COUNTIF(O31:BB31,10) -> 0 | BM31: =$D$9*$D$8 -> 40 | BN31: =SUM(BF31:BK31) -> 9 | BO31: =BN31/BM31 -> 0.225 | BP31: =BK31/BN31 -> 0
A32: 67 | B32: Gary Rushton | C32: 30 | E32: 81 | F32: 101963 | G32: 61 | H32: Thomas Rushton | I32: 4RT | J32: I | K32: 1 | L32: Trawden | M32: 10:31:00 | N32: =M32+TIME(7,0,0) -> 17:31:00 | O32: 0 | P32: 0 | Q32: 2 | R32: 0 | S32: 3 | T32: 1 | U32: 3 | V32: 2 | W32: 3 | X32: 3 | Y32: 0 | Z32: 0 | BE32: RET | BF32: =COUNTIF(O32:BB32,0) -> 5 | BG32: =COUNTIF(O32:BB32,1) -> 1 | BH32: =COUNTIF(O32:BB32,2) -> 2 | BI32: =COUNTIF(O32:BB32,3) -> 4 | BJ32: =COUNTIF(O32:BB32,5) -> 0 | BK32: =COUNTIF(O32:BB32,10) -> 0 | BM32: =$D$9*$D$8 -> 40 | BN32: =SUM(BF32:BK32) -> 12 | BO32: =BN32/BM32 -> 0.3 | BP32: =BK32/BN32 -> 0
A33: 100060 | B33: WJ Reynolds | C33: 30 | E33: 82 | F33: 90659 | G33: 46 | H33: William Reynolds | I33: Bet | J33: E | K33: 1 | L33: Skeeby | M33: 10:23:30 | N33: =M33+TIME(7,0,0) -> 17:23:30 | O33: 0 | P33: 1 | Q33: 3 | R33: 3 | S33: 3 | T33: 0 | U33: 1 | V33: 2 | W33: 3 | X33: 3 | Y33: 0 | Z33: 0 | AA33: 5 | AB33: 5 | BC33: 2 | BE33: RET | BF33: =COUNTIF(O33:BB33,0) -> 4 | BG33: =COUNTIF(O33:BB33,1) -> 2 | BH33: =COUNTIF(O33:BB33,2) -> 1 | BI33: =COUNTIF(O33:BB33,3) -> 5 | BJ33: =COUNTIF(O33:BB33,5) -> 2 | BK33: =COUNTIF(O33:BB33,10) -> 0 | BM33: =$D$9*$D$8 -> 40 | BN33: =SUM(BF33:BK33) -> 14 | BO33: =BN33/BM33 -> 0.35 | BP33: =BK33/BN33 -> 0
A34: . | E34: 42 | F34: 127000 | G34: 59 | H34: David West | I34: Gas | J34: I | K34: 1 | L34: Stoke on Trent | M34: 10:30:00 | N34: =M34+TIME(7,0,0) -> 17:30:00 | O34: 0 | P34: 0 | Q34: 0 | R34: 0 | S34: 5 | T34: 2 | U34: 3 | V34: 2 | W34: 5 | BE34: RET | BF34: =COUNTIF(O34:BB34,0) -> 4 | BG34: =COUNTIF(O34:BB34,1) -> 0 | BH34: =COUNTIF(O34:BB34,2) -> 2 | BI34: =COUNTIF(O34:BB34,3) -> 1 | BJ34: =COUNTIF(O34:BB34,5) -> 2 | BK34: =COUNTIF(O34:BB34,10) -> 0 | BM34: =$D$9*$D$8 -> 40 | BN34: =SUM(BF34:BK34) -> 9 | BO34: =BN34/BM34 -> 0.225 | BP34: =BK34/BN34 -> 0
A35: 100121 | B35: John Lydamore | C35: 30 | E35: 77 | F35: 117927 | G35: 52 | H35: John Lydamore | I35: Gas | J35: N | K35: 1 | L35: Loathley | M35: 10:26:30 | N35: =M35+TIME(7,0,0) -> 17:26:30 | O35: 1 | P35: 5 | Q35: 3 | R35: 2 | S35: 3 | T35: 0 | U35: 5 | V35: 3 | W35: 1 | X35: 5 | Y35: 3 | Z35: 0 | AC35: 3 | AD35: 0 | AE35: 1 | AF35: 1 | AG35: 3 | BE35: RET | BF35: =COUNTIF(O35:BB35,0) -> 3 | BG35: =COUNTIF(O35:BB35,1) -> 4 | BH35: =COUNTIF(O35:BB35,2) -> 1 | BI35: =COUNTIF(O35:BB35,3) -> 6 | BJ35: =COUNTIF(O35:BB35,5) -> 3 | BK35: =COUNTIF(O35:BB35,10) -> 0 | BM35: =$D$9*$D$8 -> 40 | BN35: =SUM(BF35:BK35) -> 17 | BO35: =BN35/BM35 -> 0.425 | BP35: =BK35/BN35 -> 0
A36: . | E36: 34 | F36: 64043 | G36: 53 | H36: Phil Disney | I36: 4RT | J36: E | K36: 1 | L36: Keighley | M36: 10:27:00 | N36: =M36+TIME(7,0,0) -> 17:27:00 | O36: 0 | P36: 0 | Q36: 2 | R36: 0 | S36: 1 | T36: 1 | U36: 1 | V36: 1 | W36: 5 | BC36: 2 | BE36: RET | BF36: =COUNTIF(O36:BB36,0) -> 3 | BG36: =COUNTIF(O36:BB36,1) -> 4 | BH36: =COUNTIF(O36:BB36,2) -> 1 | BI36: =COUNTIF(O36:BB36,3) -> 0 | BJ36: =COUNTIF(O36:BB36,5) -> 1 | BK36: =COUNTIF(O36:BB36,10) -> 0 | BM36: =$D$9*$D$8 -> 40 | BN36: =SUM(BF36:BK36) -> 9 | BO36: =BN36/BM36 -> 0.225 | BP36: =BK36/BN36 -> 0
A37: Chq No | B37: Name | C37: Amount | F37: ACU | G37: No. | H37: Name | I37: Bike | J37: CL | K37: CO | L37: Town | M37: Start | N37: Finish | O37: 1 | P37: 2 | Q37: 3 | R37: 4 | S37: 5 | T37: 6 | U37: 7 | V37: 8 | W37: 9 | X37: 10 | Y37: 11 | Z37: 12 | AA37: 13 | AB37: 14 | AC37: 15 | AD37: 16 | AE37: 17 | AF37: 18 | AG37: 19 | AH37: 20 | AI37: 21 | AJ37: 22 | AK37: 23 | AL37: 24 | AM37: 25 | AN37: 26 | AO37: 27 | AP37: 28 | AQ37: 29 | AR37: 30 | AS37: 31 | AT37: 32 | AU37: 33 | AV37: 34 | AW37: 35 | AX37: 36 | AY37: 37 | AZ37: 38 | BA37: 39 | BB37: 40 | BE37: tOTal | BF37: 0 | BG37: 1 | BH37: 2 | BI37: 3 | BJ37: 5 | BK37: 10 | BM37: =$D$9*$D$8 -> 40 | BN37: =SUM(BF37:BK37) -> 21 | BO37: =BN37/BM37 -> 0.525 | BP37: =BK37/BN37 -> 0.4761904762
A38: 100079 | B38: C Stelling | C38: 30 | E38: 47 | F38: 65440 | G38: 23 | H38: Chris Stelling | I38: Hon | J38: N | K38: 2 | L38: Gilstead | M38: 10:12:00 | N38: =M38+TIME(7,0,0) -> 17:12:00 | BE38: =SUM(O38:BD38) -> 0 | BF38: =COUNTIF(O38:BB38,0) -> 0 | BG38: =COUNTIF(O38:BB38,1) -> 0 | BH38: =COUNTIF(O38:BB38,2) -> 0 | BI38: =COUNTIF(O38:BB38,3) -> 0 | BJ38: =COUNTIF(O38:BB38,5) -> 0 | BK38: =COUNTIF(O38:BB38,10) -> 0 | BM38: =$D$9*$D$8 -> 40 | BN38: =SUM(BF38:BK38) -> 0 | BO38: =BN38/BM38 -> 0 | BP38: =BK38/BN38 -> 
A39: . | B39: PAY PAL 28.88 | E39: 75 | F39: 11146 | G39: 26 | H39: Roger Williams | I39: Mon | J39: I | K39: 2 | L39: Stockton on Tees | M39: 10:13:30 | N39: =M39+TIME(7,0,0) -> 17:13:30 | O39: 0 | P39: 0 | Q39: 0 | R39: 1 | S39: 0 | T39: 0 | U39: 0 | V39: 0 | W39: 0 | X39: 0 | Y39: 0 | Z39: 0 | AA39: 0 | AB39: 0 | AC39: 0 | AD39: 0 | AE39: 0 | AF39: 0 | AG39: 0 | AH39: 1 | AI39: 0 | AJ39: 0 | AK39: 0 | AL39: 0 | AM39: 0 | AN39: 0 | AO39: 0 | AP39: 0 | AQ39: 0 | AR39: 0 | AS39: 0 | AT39: 0 | AU39: 0 | AV39: 0 | AW39: 0 | AX39: 0 | AY39: 0 | AZ39: 0 | BA39: 0 | BB39: 0 | BE39: =SUM(O39:BD39) -> 2 | BF39: =COUNTIF(O39:BB39,0) -> 38 | BG39: =COUNTIF(O39:BB39,1) -> 2 | BH39: =COUNTIF(O39:BB39,2) -> 0 | BI39: =COUNTIF(O39:BB39,3) -> 0 | BJ39: =COUNTIF(O39:BB39,5) -> 0 | BK39: =COUNTIF(O39:BB39,10) -> 0 | BM39: =$D$9*$D$8 -> 40 | BN39: =SUM(BF39:BK39) -> 40 | BO39: =BN39/BM39 -> 1 | BP39: =BK39/BN39 -> 0
A40: 22113 | B40: Alan Mudd | C40: 30 | E40: 60 | F40: 113572 | G40: 88 | H40: Alan Mudd | I40: Bet | J40: N | K40: 2 | L40: Skipton | M40: 10:45:00 | N40: =M40+TIME(7,0,0) -> 17:45:00 | O40: 0 | P40: 0 | Q40: 0 | R40: 2 | S40: 0 | T40: 0 | U40: 1 | V40: 0 | W40: 0 | X40: 0 | Y40: 0 | Z40: 0 | AA40: 0 | AB40: 1 | AC40: 0 | AD40: 0 | AE40: 0 | AF40: 0 | AG40: 0 | AH40: 5 | AI40: 0 | AJ40: 0 | AK40: 2 | AL40: 0 | AM40: 1 | AN40: 0 | AO40: 0 | AP40: 0 | AQ40: 0 | AR40: 0 | AS40: 0 | AT40: 0 | AU40: 0 | AV40: 0 | AW40: 0 | AX40: 0 | AY40: 0 | AZ40: 2 | BA40: 0 | BB40: 0 | BE40: =SUM(O40:BD40) -> 14 | BF40: =COUNTIF(O40:BB40,0) -> 33 | BG40: =COUNTIF(O40:BB40,1) -> 3 | BH40: =COUNTIF(O40:BB40,2) -> 3 | BI40: =COUNTIF(O40:BB40,3) -> 0 | BJ40: =COUNTIF(O40:BB40,5) -> 1 | BK40: =COUNTIF(O40:BB40,10) -> 0 | BM40: =$D$9*$D$8 -> 40 | BN40: =SUM(BF40:BK40) -> 40 | BO40: =BN40/BM40 -> 1 | BP40: =BK40/BN40 -> 0
A41: 111 | E41: 7 | F41: 72694 | G41: 35 | H41: Steve Swanson | I41: Bet | J41: E | K41: 2 | L41: Finedon | M41: 10:18:00 | N41: =M41+TIME(7,0,0) -> 17:18:00 | O41: 0 | P41: 0 | Q41: 0 | R41: 0 | S41: 1 | T41: 2 | U41: 0 | V41: 0 | W41: 0 | X41: 2 | Y41: 0 | Z41: 0 | AA41: 0 | AB41: 0 | AC41: 0 | AD41: 0 | AE41: 0 | AF41: 0 | AG41: 1 | AH41: 2 | AI41: 0 | AJ41: 0 | AK41: 0 | AL41: 0 | AM41: 0 | AN41: 0 | AO41: 0 | AP41: 0 | AQ41: 0 | AR41: 0 | AS41: 0 | AT41: 0 | AU41: 0 | AV41: 2 | AW41: 0 | AX41: 0 | AY41: 0 | AZ41: 3 | BA41: 0 | BB41: 3 | BC41: 1 | BE41: =SUM(O41:BD41) -> 17 | BF41: =COUNTIF(O41:BB41,0) -> 32 | BG41: =COUNTIF(O41:BB41,1) -> 2 | BH41: =COUNTIF(O41:BB41,2) -> 4 | BI41: =COUNTIF(O41:BB41,3) -> 2 | BJ41: =COUNTIF(O41:BB41,5) -> 0 | BK41: =COUNTIF(O41:BB41,10) -> 0 | BM41: =$D$9*$D$8 -> 40 | BN41: =SUM(BF41:BK41) -> 40 | BO41: =BN41/BM41 -> 1 | BP41: =BK41/BN41 -> 0
A42: 562 | B42: TA Jackson | C42: 30 | E42: 17 | F42: 5957 | G42: 83 | H42: Andrew Jackson | I42: Sco | J42: N | K42: 2 | L42: Thornhill | M42: 10:42:30 | N42: =M42+TIME(7,0,0) -> 17:42:30 | O42: 0 | P42: 0 | Q42: 0 | R42: 2 | S42: 1 | T42: 0 | U42: 2 | V42: 0 | W42: 0 | X42: 0 | Y42: 1 | Z42: 1 | AA42: 0 | AB42: 1 | AC42: 0 | AD42: 0 | AE42: 0 | AF42: 0 | AG42: 0 | AH42: 2 | AI42: 0 | AJ42: 0 | AK42: 1 | AL42: 0 | AM42: 0 | AN42: 0 | AO42: 0 | AP42: 0 | AQ42: 0 | AR42: 0 | AS42: 0 | AT42: 3 | AU42: 0 | AV42: 0 | AW42: 0 | AX42: 1 | AY42: 0 | AZ42: 0 | BA42: 0 | BB42: 2 | BE42: =SUM(O42:BD42) -> 17 | BF42: =COUNTIF(O42:BB42,0) -> 29 | BG42: =COUNTIF(O42:BB42,1) -> 6 | BH42: =COUNTIF(O42:BB42,2) -> 4 | BI42: =COUNTIF(O42:BB42,3) -> 1 | BJ42: =COUNTIF(O42:BB42,5) -> 0 | BK42: =COUNTIF(O42:BB42,10) -> 0 | BM42: =$D$9*$D$8 -> 40 | BN42: =SUM(BF42:BK42) -> 40 | BO42: =BN42/BM42 -> 1 | BP42: =BK42/BN42 -> 0
A43: 536249 | B43: PD Bennett | C43: 150 | E43: 39 | F43: 10984 | G43: 67 | H43: Paul Bennett | I43: She | J43: I | K43: 2 | L43: Tunstall | M43: 10:34:00 | N43: =M43+TIME(7,0,0) -> 17:34:00 | O43: 0 | P43: 0 | Q43: 0 | R43: 3 | S43: 2 | T43: 0 | U43: 2 | V43: 0 | W43: 0 | X43: 0 | Y43: 1 | Z43: 1 | AA43: 0 | AB43: 0 | AC43: 0 | AD43: 2 | AE43: 0 | AF43: 1 | AG43: 0 | AH43: 1 | AI43: 0 | AJ43: 0 | AK43: 1 | AL43: 0 | AM43: 0 | AN43: 0 | AO43: 0 | AP43: 0 | AQ43: 0 | AR43: 0 | AS43: 0 | AT43: 0 | AU43: 0 | AV43: 0 | AW43: 0 | AX43: 1 | AY43: 0 | AZ43: 3 | BA43: 1 | BB43: 3 | BE43: =SUM(O43:BD43) -> 22 | BF43: =COUNTIF(O43:BB43,0) -> 27 | BG43: =COUNTIF(O43:BB43,1) -> 7 | BH43: =COUNTIF(O43:BB43,2) -> 3 | BI43: =COUNTIF(O43:BB43,3) -> 3 | BJ43: =COUNTIF(O43:BB43,5) -> 0 | BK43: =COUNTIF(O43:BB43,10) -> 0 | BM43: =$D$9*$D$8 -> 40 | BN43: =SUM(BF43:BK43) -> 40 | BO43: =BN43/BM43 -> 1 | BP43: =BK43/BN43 -> 0
B44: PAY PAL 29.88 | E44: 92 | F44: 10289 | G44: 30 | H44: Howard Gulley | I44: Gas | J44: N | K44: 2 | L44: Pudsey | M44: 10:15:30 | N44: =M44+TIME(7,0,0) -> 17:15:30 | O44: 0 | P44: 0 | Q44: 1 | R44: 0 | S44: 0 | T44: 3 | U44: 3 | V44: 0 | W44: 0 | X44: 0 | Y44: 1 | Z44: 0 | AA44: 0 | AB44: 1 | AC44: 0 | AD44: 1 | AE44: 1 | AF44: 1 | AG44: 0 | AH44: 2 | AI44: 0 | AJ44: 1 | AK44: 2 | AL44: 0 | AM44: 0 | AN44: 0 | AO44: 0 | AP44: 0 | AQ44: 0 | AR44: 0 | AS44: 0 | AT44: 3 | AU44: 0 | AV44: 0 | AW44: 0 | AX44: 1 | AY44: 0 | AZ44: 2 | BA44: 1 | BB44: 3 | BE44: =SUM(O44:BD44) -> 27 | BF44: =COUNTIF(O44:BB44,0) -> 24 | BG44: =COUNTIF(O44:BB44,1) -> 9 | BH44: =COUNTIF(O44:BB44,2) -> 3 | BI44: =COUNTIF(O44:BB44,3) -> 4 | BJ44: =COUNTIF(O44:BB44,5) -> 0 | BK44: =COUNTIF(O44:BB44,10) -> 0 | BM44: =$D$9*$D$8 -> 40 | BN44: =SUM(BF44:BK44) -> 40 | BO44: =BN44/BM44 -> 1 | BP44: =BK44/BN44 -> 0
A45: 100404 | B45: K Sunter | C45: 30 | E45: 35 | F45: 20279 | G45: 39 | H45: Katy Sunter | I45: Gas | J45: N | K45: 2 | L45: Sheffield | M45: 10:20:00 | N45: =M45+TIME(7,0,0) -> 17:20:00 | O45: 1 | P45: 0 | Q45: 1 | R45: 0 | S45: 1 | T45: 5 | U45: 5 | V45: 0 | W45: 1 | X45: 0 | Y45: 0 | Z45: 1 | AA45: 0 | AB45: 0 | AC45: 0 | AD45: 0 | AE45: 1 | AF45: 0 | AG45: 0 | AH45: 1 | AI45: 0 | AJ45: 2 | AK45: 0 | AL45: 0 | AM45: 0 | AN45: 0 | AO45: 0 | AP45: 0 | AQ45: 0 | AR45: 0 | AS45: 0 | AT45: 3 | AU45: 0 | AV45: 0 | AW45: 0 | AX45: 1 | AY45: 0 | AZ45: 3 | BA45: 0 | BB45: 3 | BE45: =SUM(O45:BD45) -> 29 | BF45: =COUNTIF(O45:BB45,0) -> 26 | BG45: =COUNTIF(O45:BB45,1) -> 8 | BH45: =COUNTIF(O45:BB45,2) -> 1 | BI45: =COUNTIF(O45:BB45,3) -> 3 | BJ45: =COUNTIF(O45:BB45,5) -> 2 | BK45: =COUNTIF(O45:BB45,10) -> 0 | BM45: =$D$9*$D$8 -> 40 | BN45: =SUM(BF45:BK45) -> 40 | BO45: =BN45/BM45 -> 1 | BP45: =BK45/BN45 -> 0
A46: 292 | B46: P Scott | C46: 30 | E46: 73 | F46: 108543 | G46: 80 | H46: Phil Scott | I46: Gas | J46: N | K46: 2 | L46: Barrowford | M46: 10:41:00 | N46: =M46+TIME(7,0,0) -> 17:41:00 | O46: 0 | P46: 0 | Q46: 1 | R46: 2 | S46: 2 | T46: 1 | U46: 1 | V46: 1 | W46: 0 | X46: 1 | Y46: 0 | Z46: 1 | AC46: 0 | AD46: 1 | AE46: 0 | AF46: 1 | AG46: 0 | AH46: 2 | AK46: 1 | AL46: 0 | AM46: 0 | AN46: 0 | AO46: 0 | AP46: 5 | AQ46: 0 | AR46: 0 | AS46: 0 | AT46: 1 | AU46: 1 | AV46: 0 | AW46: 0 | AX46: 1 | AY46: 0 | AZ46: 1 | BA46: 0 | BB46: 5 | BE46: =SUM(O46:BD46) -> 29 | BF46: =COUNTIF(O46:BB46,0) -> 18 | BG46: =COUNTIF(O46:BB46,1) -> 13 | BH46: =COUNTIF(O46:BB46,2) -> 3 | BI46: =COUNTIF(O46:BB46,3) -> 0 | BJ46: =COUNTIF(O46:BB46,5) -> 2 | BK46: =COUNTIF(O46:BB46,10) -> 0 | BM46: =$D$9*$D$8 -> 40 | BN46: =SUM(BF46:BK46) -> 36 | BO46: =BN46/BM46 -> 0.9 | BP46: =BK46/BN46 -> 0
A47: 100330 | B47: JH Lee | C47: 60 | E47: 6 | F47: 6173 | G47: 34 | H47: Jonathan Lee | I47: Bet | J47: E | K47: 2 | L47: Higham Ferrers | M47: 10:17:30 | N47: =M47+TIME(7,0,0) -> 17:17:30 | O47: 0 | P47: 0 | Q47: 0 | R47: 1 | S47: 2 | T47: 1 | U47: 2 | V47: 1 | W47: 0 | X47: 5 | Y47: 1 | Z47: 0 | AA47: 0 | AB47: 2 | AC47: 0 | AD47: 0 | AE47: 0 | AF47: 0 | AG47: 0 | AH47: 3 | AI47: 0 | AJ47: 3 | AK47: 1 | AL47: 0 | AM47: 0 | AN47: 0 | AO47: 0 | AP47: 0 | AQ47: 0 | AR47: 0 | AS47: 0 | AT47: 1 | AU47: 0 | AV47: 0 | AW47: 0 | AX47: 0 | AY47: 0 | AZ47: 2 | BA47: 0 | BB47: 3 | BC47: 2 | BE47: =SUM(O47:BD47) -> 30 | BF47: =COUNTIF(O47:BB47,0) -> 26 | BG47: =COUNTIF(O47:BB47,1) -> 6 | BH47: =COUNTIF(O47:BB47,2) -> 4 | BI47: =COUNTIF(O47:BB47,3) -> 3 | BJ47: =COUNTIF(O47:BB47,5) -> 1 | BK47: =COUNTIF(O47:BB47,10) -> 0 | BM47: =$D$9*$D$8 -> 40 | BN47: =SUM(BF47:BK47) -> 40 | BO47: =BN47/BM47 -> 1 | BP47: =BK47/BN47 -> 0
A48: 922 | B48: JT Gornall | C48: 30 | E48: 76 | F48: 96572 | G48: 74 | H48: John Gornall | I48: Gas | J48: I | K48: 2 | L48: Longridge | M48: 10:38:00 | N48: =M48+TIME(7,0,0) -> 17:38:00 | O48: 0 | P48: 0 | Q48: 0 | R48: 1 | S48: 1 | T48: 3 | U48: 1 | V48: 1 | W48: 0 | X48: 0 | Y48: 2 | Z48: 1 | AA48: 0 | AB48: 0 | AC48: 3 | AD48: 0 | AE48: 0 | AF48: 0 | AG48: 0 | AH48: 3 | AI48: 0 | AJ48: 3 | AK48: 0 | AL48: 0 | AM48: 0 | AN48: 0 | AO48: 0 | AP48: 0 | AQ48: 0 | AR48: 0 | AS48: 0 | AT48: 1 | AU48: 0 | AV48: 0 | AW48: 0 | AX48: 0 | AY48: 0 | AZ48: 3 | BA48: 2 | BB48: 5 | BE48: =SUM(O48:BD48) -> 30 | BF48: =COUNTIF(O48:BB48,0) -> 26 | BG48: =COUNTIF(O48:BB48,1) -> 6 | BH48: =COUNTIF(O48:BB48,2) -> 2 | BI48: =COUNTIF(O48:BB48,3) -> 5 | BJ48: =COUNTIF(O48:BB48,5) -> 1 | BK48: =COUNTIF(O48:BB48,10) -> 0 | BM48: =$D$9*$D$8 -> 40 | BN48: =SUM(BF48:BK48) -> 40 | BO48: =BN48/BM48 -> 1 | BP48: =BK48/BN48 -> 0
A49: 100417 | B49: M Hartley | C49: 30 | E49: 83 | F49: 145940 | G49: 37 | H49: Mark Hartley | I49: Gas | J49: N | K49: 2 | L49: Roughlee | M49: 10:19:00 | N49: =M49+TIME(7,0,0) -> 17:19:00 | O49: 1 | P49: 0 | Q49: 0 | R49: 3 | S49: 1 | T49: 3 | U49: 3 | V49: 0 | W49: 2 | X49: 2 | Y49: 2 | Z49: 1 | AA49: 0 | AB49: 0 | AC49: 1 | AD49: 0 | AE49: 0 | AF49: 1 | AG49: 0 | AH49: 2 | AI49: 0 | AJ49: 0 | AK49: 1 | AL49: 0 | AM49: 0 | AN49: 0 | AO49: 0 | AP49: 0 | AQ49: 0 | AR49: 0 | AS49: 0 | AU49: 0 | AV49: 0 | AW49: 0 | AX49: 0 | AY49: 0 | AZ49: 1 | BA49: 0 | BB49: 5 | BC49: 1 | BE49: =SUM(O49:BD49) -> 30 | BF49: =COUNTIF(O49:BB49,0) -> 24 | BG49: =COUNTIF(O49:BB49,1) -> 7 | BH49: =COUNTIF(O49:BB49,2) -> 4 | BI49: =COUNTIF(O49:BB49,3) -> 3 | BJ49: =COUNTIF(O49:BB49,5) -> 1 | BK49: =COUNTIF(O49:BB49,10) -> 0 | BM49: =$D$9*$D$8 -> 40 | BN49: =SUM(BF49:BK49) -> 39 | BO49: =BN49/BM49 -> 0.975 | BP49: =BK49/BN49 -> 0
A50: PAYPAL | B50: PAY PAL | E50: 65 | F50: 63824 | G50: 40 | H50: Paul Jackson | I50: Mon | J50: i | K50: 2 | L50: Baildon | M50: 10:20:30 | N50: =M50+TIME(7,0,0) -> 17:20:30 | O50: 2 | P50: 0 | Q50: 1 | R50: 3 | S50: 0 | T50: 1 | U50: 0 | V50: 0 | W50: 1 | X50: 1 | Y50: 1 | Z50: 0 | AA50: 0 | AB50: 0 | AC50: 0 | AD50: 0 | AE50: 0 | AF50: 0 | AG50: 0 | AH50: 1 | AI50: 0 | AJ50: 1 | AK50: 1 | AL50: 0 | AM50: 0 | AN50: 0 | AO50: 1 | AP50: 1 | AQ50: 1 | AR50: 0 | AS50: 0 | AT50: 2 | AU50: 0 | AV50: 0 | AW50: 0 | AX50: 2 | AY50: 1 | AZ50: 3 | BA50: 1 | BB50: 5 | BE50: =SUM(O50:BD50) -> 30 | BF50: =COUNTIF(O50:BB50,0) -> 21 | BG50: =COUNTIF(O50:BB50,1) -> 13 | BH50: =COUNTIF(O50:BB50,2) -> 3 | BI50: =COUNTIF(O50:BB50,3) -> 2 | BJ50: =COUNTIF(O50:BB50,5) -> 1 | BK50: =COUNTIF(O50:BB50,10) -> 0 | BM50: =$D$9*$D$8 -> 40 | BN50: =SUM(BF50:BK50) -> 40 | BO50: =BN50/BM50 -> 1 | BP50: =BK50/BN50 -> 0
B51: PAY PAL 29.88 | E51: 91 | F51: 83184 | G51: 29 | H51: Mark Chippendale | I51: Gas | J51: N | K51: 2 | L51: Pudsey | M51: 10:15:00 | N51: =M51+TIME(7,0,0) -> 17:15:00 | O51: 0 | P51: 0 | Q51: 1 | R51: 3 | S51: 0 | T51: 1 | U51: 3 | V51: 0 | W51: 0 | X51: 1 | Y51: 0 | Z51: 3 | AA51: 0 | AB51: 0 | AC51: 3 | AD51: 1 | AE51: 0 | AF51: 0 | AG51: 0 | AH51: 3 | AI51: 0 | AJ51: 2 | AK51: 0 | AL51: 0 | AM51: 0 | AN51: 0 | AO51: 3 | AP51: 0 | AQ51: 1 | AR51: 0 | AS51: 0 | AT51: 1 | AU51: 0 | AV51: 0 | AW51: 0 | AX51: 1 | AY51: 1 | AZ51: 1 | BA51: 0 | BB51: 3 | BE51: =SUM(O51:BD51) -> 32 | BF51: =COUNTIF(O51:BB51,0) -> 23 | BG51: =COUNTIF(O51:BB51,1) -> 9 | BH51: =COUNTIF(O51:BB51,2) -> 1 | BI51: =COUNTIF(O51:BB51,3) -> 7 | BJ51: =COUNTIF(O51:BB51,5) -> 0 | BK51: =COUNTIF(O51:BB51,10) -> 0 | BM51: =$D$9*$D$8 -> 40 | BN51: =SUM(BF51:BK51) -> 40 | BO51: =BN51/BM51 -> 1 | BP51: =BK51/BN51 -> 0
A52: 22103 | B52: Miss Morrell | C52: 30 | E52: 44 | F52: 90891 | G52: 32 | H52: Paul Gravestock | I52: Gas | J52: N | K52: 2 | L52: Shipley | M52: 10:16:30 | N52: =M52+TIME(7,0,0) -> 17:16:30 | O52: 0 | P52: 3 | Q52: 0 | R52: 3 | S52: 1 | T52: 3 | U52: 5 | V52: 0 | W52: 1 | X52: 0 | Y52: 1 | Z52: 1 | AA52: 2 | AB52: 1 | AC52: 0 | AD52: 1 | AE52: 0 | AF52: 2 | AG52: 0 | AH52: 3 | AI52: 0 | AJ52: 0 | AK52: 0 | AL52: 0 | AM52: 0 | AN52: 0 | AO52: 0 | AP52: 2 | AQ52: 0 | AR52: 0 | AS52: 0 | AT52: 1 | AU52: 0 | AV52: 0 | AW52: 0 | AX52: 0 | AY52: 0 | AZ52: 0 | BA52: 0 | BB52: 3 | BE52: =SUM(O52:BD52) -> 33 | BF52: =COUNTIF(O52:BB52,0) -> 24 | BG52: =COUNTIF(O52:BB52,1) -> 7 | BH52: =COUNTIF(O52:BB52,2) -> 3 | BI52: =COUNTIF(O52:BB52,3) -> 5 | BJ52: =COUNTIF(O52:BB52,5) -> 1 | BK52: =COUNTIF(O52:BB52,10) -> 0 | BM52: =$D$9*$D$8 -> 40 | BN52: =SUM(BF52:BK52) -> 40 | BO52: =BN52/BM52 -> 1 | BP52: =BK52/BN52 -> 0
A53: Cash | C53: 30 | E53: 37 | F53: 124050 | G53: 20 | H53: Julian Ingham | I53: Bet | J53: E | K53: 2 | L53: Bacup | M53: 10:10:30 | N53: =M53+TIME(7,0,0) -> 17:10:30 | O53: 1 | P53: 1 | Q53: 0 | R53: 3 | S53: 0 | T53: 3 | U53: 3 | V53: 0 | W53: 3 | X53: 0 | Y53: 0 | Z53: 1 | AA53: 0 | AB53: 0 | AC53: 3 | AD53: 2 | AE53: 1 | AF53: 0 | AG53: 1 | AH53: 3 | AI53: 0 | AJ53: 0 | AK53: 1 | AL53: 0 | AM53: 0 | AN53: 0 | AO53: 0 | AP53: 0 | AQ53: 0 | AR53: 0 | AS53: 0 | AT53: 0 | AU53: 1 | AV53: 0 | AW53: 0 | AX53: 1 | AY53: 0 | AZ53: 1 | BA53: 0 | BB53: 5 | BE53: =SUM(O53:BD53) -> 34 | BF53: =COUNTIF(O53:BB53,0) -> 23 | BG53: =COUNTIF(O53:BB53,1) -> 9 | BH53: =COUNTIF(O53:BB53,2) -> 1 | BI53: =COUNTIF(O53:BB53,3) -> 6 | BJ53: =COUNTIF(O53:BB53,5) -> 1 | BK53: =COUNTIF(O53:BB53,10) -> 0 | BM53: =$D$9*$D$8 -> 40 | BN53: =SUM(BF53:BK53) -> 40 | BO53: =BN53/BM53 -> 1 | BP53: =BK53/BN53 -> 0
B54: PAY PAL 29.88 | C54: 89.64 | E54: 90 | F54: 18081 | G54: 28 | H54: Mark Forster | I54: Gas | J54: N | K54: 2 | L54: Leeds | M54: 10:14:30 | N54: =M54+TIME(7,0,0) -> 17:14:30 | O54: 1 | P54: 0 | Q54: 0 | R54: 2 | S54: 0 | T54: 3 | U54: 1 | V54: 1 | W54: 0 | X54: 0 | Y54: 3 | Z54: 3 | AA54: 0 | AB54: 1 | AC54: 1 | AD54: 0 | AE54: 0 | AF54: 0 | AG54: 0 | AH54: 3 | AI54: 0 | AJ54: 2 | AK54: 5 | AL54: 0 | AM54: 0 | AN54: 0 | AO54: 1 | AP54: 1 | AQ54: 0 | AR54: 0 | AS54: 0 | AT54: 1 | AU54: 1 | AV54: 0 | AW54: 0 | AX54: 0 | AY54: 0 | AZ54: 0 | BA54: 1 | BB54: 3 | BE54: =SUM(O54:BD54) -> 34 | BF54: =COUNTIF(O54:BB54,0) -> 22 | BG54: =COUNTIF(O54:BB54,1) -> 10 | BH54: =COUNTIF(O54:BB54,2) -> 2 | BI54: =COUNTIF(O54:BB54,3) -> 5 | BJ54: =COUNTIF(O54:BB54,5) -> 1 | BK54: =COUNTIF(O54:BB54,10) -> 0 | BM54: =$D$9*$D$8 -> 40 | BN54: =SUM(BF54:BK54) -> 40 | BO54: =BN54/BM54 -> 1 | BP54: =BK54/BN54 -> 0
B55: cash | C55: 30 | E55: 21 | F55: 25882 | G55: 13 | H55: Chris Beecroft | I55: Gas | J55: N | K55: 2 | L55: Yeadon | M55: 10:07:00 | N55: =M55+TIME(7,0,0) -> 17:07:00 | O55: 1 | P55: 0 | Q55: 0 | R55: 5 | S55: 2 | T55: 0 | U55: 0 | V55: 0 | W55: 0 | X55: 2 | Y55: 0 | Z55: 3 | AA55: 0 | AB55: 3 | AC55: 3 | AD55: 1 | AE55: 0 | AF55: 1 | AG55: 1 | AH55: 3 | AI55: 0 | AJ55: 1 | AK55: 1 | AL55: 0 | AM55: 0 | AN55: 0 | AO55: 0 | AP55: 0 | AQ55: 0 | AR55: 0 | AS55: 0 | AT55: 2 | AU55: 1 | AV55: 0 | AW55: 0 | AX55: 0 | AY55: 0 | AZ55: 0 | BA55: 0 | BB55: 5 | BE55: =SUM(O55:BD55) -> 35 | BF55: =COUNTIF(O55:BB55,0) -> 24 | BG55: =COUNTIF(O55:BB55,1) -> 7 | BH55: =COUNTIF(O55:BB55,2) -> 3 | BI55: =COUNTIF(O55:BB55,3) -> 4 | BJ55: =COUNTIF(O55:BB55,5) -> 2 | BK55: =COUNTIF(O55:BB55,10) -> 0 | BM55: =$D$9*$D$8 -> 40 | BN55: =SUM(BF55:BK55) -> 40 | BO55: =BN55/BM55 -> 1 | BP55: =BK55/BN55 -> 0
A56: 100108 | B56: TJ Bennet | E56: 38 | F56: 78984 | G56: 66 | H56: Tom Bennett | I56: She | J56: N | K56: 2 | L56: Porthill | M56: 10:33:30 | N56: =M56+TIME(7,0,0) -> 17:33:30 | O56: 0 | P56: 0 | Q56: 0 | R56: 0 | S56: 1 | T56: 3 | U56: 1 | V56: 0 | W56: 0 | X56: 2 | Y56: 0 | Z56: 2 | AA56: 0 | AB56: 0 | AC56: 5 | AD56: 1 | AE56: 0 | AF56: 0 | AG56: 0 | AH56: 3 | AI56: 0 | AJ56: 2 | AK56: 3 | AL56: 0 | AM56: 0 | AN56: 1 | AO56: 0 | AP56: 1 | AQ56: 3 | AR56: 0 | AS56: 0 | AT56: 0 | AU56: 0 | AV56: 0 | AW56: 0 | AX56: 1 | AY56: 0 | AZ56: 3 | BA56: 0 | BB56: 3 | BE56: =SUM(O56:BD56) -> 35 | BF56: =COUNTIF(O56:BB56,0) -> 24 | BG56: =COUNTIF(O56:BB56,1) -> 6 | BH56: =COUNTIF(O56:BB56,2) -> 3 | BI56: =COUNTIF(O56:BB56,3) -> 6 | BJ56: =COUNTIF(O56:BB56,5) -> 1 | BK56: =COUNTIF(O56:BB56,10) -> 0 | BM56: =$D$9*$D$8 -> 40 | BN56: =SUM(BF56:BK56) -> 40 | BO56: =BN56/BM56 -> 1 | BP56: =BK56/BN56 -> 0
A57: 459 | B57: D Mitchell | C57: 30 | E57: 46 | F57: 16611 | G57: 64 | H57: Darren Mitchell | I57: 4RT | J57: N | K57: 2 | L57: Barnoldswick | M57: 10:32:30 | N57: =M57+TIME(7,0,0) -> 17:32:30 | O57: 1 | P57: 0 | Q57: 1 | R57: 3 | S57: 1 | T57: 3 | U57: 3 | V57: 0 | W57: 0 | X57: 1 | Y57: 0 | Z57: 2 | AA57: 0 | AB57: 0 | AC57: 2 | AD57: 0 | AE57: 3 | AF57: 0 | AG57: 0 | AH57: 3 | AI57: 0 | AJ57: 1 | AK57: 0 | AL57: 0 | AM57: 0 | AN57: 0 | AO57: 1 | AP57: 0 | AQ57: 0 | AR57: 0 | AS57: 0 | AT57: 2 | AU57: 0 | AV57: 0 | AW57: 1 | AX57: 0 | AY57: 0 | AZ57: 2 | BA57: 0 | BB57: 5 | BE57: =SUM(O57:BD57) -> 35 | BF57: =COUNTIF(O57:BB57,0) -> 23 | BG57: =COUNTIF(O57:BB57,1) -> 7 | BH57: =COUNTIF(O57:BB57,2) -> 4 | BI57: =COUNTIF(O57:BB57,3) -> 5 | BJ57: =COUNTIF(O57:BB57,5) -> 1 | BK57: =COUNTIF(O57:BB57,10) -> 0 | BM57: =$D$9*$D$8 -> 40 | BN57: =SUM(BF57:BK57) -> 40 | BO57: =BN57/BM57 -> 1 | BP57: =BK57/BN57 -> 0
A58: 852 | B58: Dent Excel | C58: 120 | E58: 63 | F58: 11579 | G58: 77 | H58: Barrie Darrell | I58: Bet | J58: N | K58: 2 | L58: York | M58: 10:39:30 | N58: =M58+TIME(7,0,0) -> 17:39:30 | O58: 0 | P58: 0 | Q58: 0 | R58: 0 | S58: 1 | T58: 3 | U58: 5 | V58: 0 | W58: 1 | X58: 0 | Y58: 0 | Z58: 0 | AA58: 0 | AB58: 2 | AC58: 2 | AD58: 1 | AE58: 0 | AF58: 0 | AG58: 0 | AH58: 2 | AI58: 0 | AJ58: 1 | AK58: 0 | AL58: 0 | AM58: 0 | AN58: 0 | AO58: 0 | AP58: 0 | AQ58: 2 | AR58: 0 | AS58: 0 | AT58: 1 | AU58: 3 | AV58: 0 | AW58: 0 | AX58: 5 | AY58: 0 | AZ58: 3 | BA58: 1 | BB58: 3 | BE58: =SUM(O58:BD58) -> 36 | BF58: =COUNTIF(O58:BB58,0) -> 24 | BG58: =COUNTIF(O58:BB58,1) -> 6 | BH58: =COUNTIF(O58:BB58,2) -> 4 | BI58: =COUNTIF(O58:BB58,3) -> 4 | BJ58: =COUNTIF(O58:BB58,5) -> 2 | BK58: =COUNTIF(O58:BB58,10) -> 0 | BM58: =$D$9*$D$8 -> 40 | BN58: =SUM(BF58:BK58) -> 40 | BO58: =BN58/BM58 -> 1 | BP58: =BK58/BN58 -> 0
A59: 458 | B59: SL Hirst | C59: 30 | E59: 68 | F59: 152687 | G59: 24 | H59: Simon Hirst | I59: Gas | J59: N | K59: 2 | L59: Scunthorpe | M59: 10:12:30 | N59: =M59+TIME(7,0,0) -> 17:12:30 | O59: 3 | P59: 0 | Q59: 0 | R59: 2 | S59: 2 | T59: 3 | U59: 0 | V59: 0 | W59: 0 | X59: 0 | Y59: 5 | Z59: 2 | AA59: 0 | AB59: 0 | AC59: 3 | AD59: 0 | AE59: 0 | AF59: 0 | AG59: 0 | AH59: 3 | AI59: 0 | AJ59: 0 | AK59: 1 | AL59: 0 | AM59: 0 | AN59: 1 | AO59: 0 | AP59: 2 | AQ59: 0 | AR59: 0 | AS59: 0 | AT59: 0 | AU59: 0 | AV59: 1 | AW59: 0 | AX59: 1 | AY59: 3 | AZ59: 0 | BA59: 0 | BB59: 5 | BE59: =SUM(O59:BD59) -> 37 | BF59: =COUNTIF(O59:BB59,0) -> 25 | BG59: =COUNTIF(O59:BB59,1) -> 4 | BH59: =COUNTIF(O59:BB59,2) -> 4 | BI59: =COUNTIF(O59:BB59,3) -> 5 | BJ59: =COUNTIF(O59:BB59,5) -> 2 | BK59: =COUNTIF(O59:BB59,10) -> 0 | BM59: =$D$9*$D$8 -> 40 | BN59: =SUM(BF59:BK59) -> 40 | BO59: =BN59/BM59 -> 1 | BP59: =BK59/BN59 -> 0
A60: 100096 | B60: S hartley | C60: 30 | E60: 84 | F60: 147798 | G60: 38 | H60: Simon Hartley | I60: She | J60: N | K60: 2 | L60: Barley | M60: 10:19:30 | N60: =M60+TIME(7,0,0) -> 17:19:30 | O60: 1 | P60: 0 | Q60: 0 | R60: 1 | S60: 3 | T60: 2 | U60: 3 | V60: 0 | W60: 2 | X60: 0 | Y60: 2 | Z60: 1 | AA60: 0 | AB60: 1 | AC60: 0 | AD60: 2 | AE60: 2 | AF60: 0 | AG60: 0 | AH60: 1 | AI60: 1 | AJ60: 1 | AK60: 1 | AL60: 0 | AM60: 0 | AN60: 0 | AO60: 0 | AP60: 0 | AQ60: 0 | AR60: 0 | AS60: 0 | AT60: 3 | AU60: 3 | AV60: 0 | AW60: 0 | AX60: 1 | AY60: 0 | AZ60: 2 | BA60: 0 | BB60: 5 | BE60: =SUM(O60:BD60) -> 38 | BF60: =COUNTIF(O60:BB60,0) -> 20 | BG60: =COUNTIF(O60:BB60,1) -> 9 | BH60: =COUNTIF(O60:BB60,2) -> 6 | BI60: =COUNTIF(O60:BB60,3) -> 4 | BJ60: =COUNTIF(O60:BB60,5) -> 1 | BK60: =COUNTIF(O60:BB60,10) -> 0 | BM60: =$D$9*$D$8 -> 40 | BN60: =SUM(BF60:BK60) -> 40 | BO60: =BN60/BM60 -> 1 | BP60: =BK60/BN60 -> 0
A61: 22858 | B61: Adams Garage | C61: 120 | E61: 22 | F61: 106360 | G61: 14 | H61: Adam McCanna | I61: Hon | J61: I | K61: 2 | L61: Leigh | M61: 10:07:30 | N61: =M61+TIME(7,0,0) -> 17:07:30 | O61: 0 | P61: 0 | Q61: 0 | R61: 3 | S61: 3 | T61: 3 | U61: 1 | V61: 0 | W61: 1 | X61: 2 | Y61: 0 | Z61: 3 | AA61: 0 | AB61: 0 | AC61: 5 | AD61: 0 | AE61: 0 | AF61: 0 | AG61: 1 | AH61: 3 | AI61: 0 | AJ61: 3 | AK61: 1 | AL61: 0 | AM61: 0 | AN61: 0 | AO61: 0 | AP61: 0 | AQ61: 0 | AR61: 0 | AS61: 0 | AT61: 3 | AU61: 1 | AV61: 0 | AW61: 0 | AX61: 1 | AY61: 0 | AZ61: 2 | BA61: 0 | BB61: 5 | BE61: =SUM(O61:BD61) -> 41 | BF61: =COUNTIF(O61:BB61,0) -> 23 | BG61: =COUNTIF(O61:BB61,1) -> 6 | BH61: =COUNTIF(O61:BB61,2) -> 2 | BI61: =COUNTIF(O61:BB61,3) -> 7 | BJ61: =COUNTIF(O61:BB61,5) -> 2 | BK61: =COUNTIF(O61:BB61,10) -> 0 | BM61: =$D$9*$D$8 -> 40 | BN61: =SUM(BF61:BK61) -> 40 | BO61: =BN61/BM61 -> 1 | BP61: =BK61/BN61 -> 0
A62: Cash | C62: 30 | E62: 36 | F62: 122607 | G62: 19 | H62: Oliver Ingham | I62: She | J62: I | K62: 2 | L62: Bacup | M62: 10:10:00 | N62: =M62+TIME(7,0,0) -> 17:10:00 | O62: 1 | P62: 0 | Q62: 0 | R62: 3 | S62: 2 | T62: 3 | U62: 3 | V62: 1 | W62: 0 | X62: 0 | Y62: 0 | Z62: 3 | AA62: 1 | AB62: 0 | AC62: 1 | AD62: 3 | AE62: 0 | AF62: 2 | AG62: 3 | AH62: 5 | AI62: 0 | AJ62: 1 | AK62: 0 | AL62: 0 | AM62: 0 | AN62: 0 | AO62: 0 | AP62: 0 | AQ62: 0 | AR62: 0 | AS62: 0 | AT62: 0 | AU62: 2 | AV62: 1 | AW62: 0 | AX62: 0 | AY62: 1 | AZ62: 1 | BA62: 0 | BB62: 5 | BE62: =SUM(O62:BD62) -> 42 | BF62: =COUNTIF(O62:BB62,0) -> 21 | BG62: =COUNTIF(O62:BB62,1) -> 8 | BH62: =COUNTIF(O62:BB62,2) -> 3 | BI62: =COUNTIF(O62:BB62,3) -> 6 | BJ62: =COUNTIF(O62:BB62,5) -> 2 | BK62: =COUNTIF(O62:BB62,10) -> 0 | BM62: =$D$9*$D$8 -> 40 | BN62: =SUM(BF62:BK62) -> 40 | BO62: =BN62/BM62 -> 1 | BP62: =BK62/BN62 -> 0
A63: . | E63: 26 | F63: 16260 | G63: 18 | H63: Ian Haigh | I63: Mon | J63: N | K63: 2 | L63: Huddersfield | M63: 10:09:30 | N63: =M63+TIME(7,0,0) -> 17:09:30 | O63: 1 | P63: 0 | Q63: 1 | R63: 3 | S63: 3 | T63: 2 | U63: 3 | V63: 0 | W63: 1 | X63: 0 | Y63: 3 | Z63: 0 | AA63: 0 | AB63: 3 | AC63: 3 | AD63: 1 | AE63: 0 | AF63: 1 | AG63: 0 | AH63: 3 | AI63: 0 | AJ63: 2 | AK63: 2 | AL63: 0 | AM63: 0 | AN63: 0 | AO63: 0 | AP63: 0 | AQ63: 0 | AR63: 0 | AS63: 0 | AT63: 1 | AU63: 3 | AV63: 0 | AW63: 0 | AX63: 0 | AY63: 0 | AZ63: 1 | BA63: 0 | BB63: 5 | BE63: =SUM(O63:BD63) -> 42 | BF63: =COUNTIF(O63:BB63,0) -> 21 | BG63: =COUNTIF(O63:BB63,1) -> 7 | BH63: =COUNTIF(O63:BB63,2) -> 3 | BI63: =COUNTIF(O63:BB63,3) -> 8 | BJ63: =COUNTIF(O63:BB63,5) -> 1 | BK63: =COUNTIF(O63:BB63,10) -> 0 | BM63: =$D$9*$D$8 -> 40 | BN63: =SUM(BF63:BK63) -> 40 | BO63: =BN63/BM63 -> 1 | BP63: =BK63/BN63 -> 0
A64: . | E64: 66 | F64: 10991 | G64: 79 | H64: David Hardy | I64: Mon | J64: N | K64: 2 | L64: Sutton on Forest | M64: 10:40:30 | N64: =M64+TIME(7,0,0) -> 17:40:30 | O64: 0 | P64: 0 | Q64: 1 | R64: 3 | S64: 1 | T64: 2 | U64: 1 | V64: 0 | W64: 1 | X64: 0 | Y64: 1 | Z64: 0 | AA64: 0 | AB64: 0 | AC64: 3 | AD64: 1 | AE64: 0 | AF64: 0 | AG64: 0 | AH64: 3 | AI64: 0 | AJ64: 1 | AK64: 0 | AL64: 0 | AM64: 0 | AN64: 0 | AO64: 0 | AP64: 0 | AQ64: 0 | AR64: 5 | AS64: 0 | AT64: 5 | AU64: 0 | AV64: 0 | AW64: 0 | AX64: 0 | AY64: 5 | AZ64: 5 | BA64: 0 | BB64: 5 | BE64: =SUM(O64:BD64) -> 43 | BF64: =COUNTIF(O64:BB64,0) -> 24 | BG64: =COUNTIF(O64:BB64,1) -> 7 | BH64: =COUNTIF(O64:BB64,2) -> 1 | BI64: =COUNTIF(O64:BB64,3) -> 3 | BJ64: =COUNTIF(O64:BB64,5) -> 5 | BK64: =COUNTIF(O64:BB64,10) -> 0 | BM64: =$D$9*$D$8 -> 40 | BN64: =SUM(BF64:BK64) -> 40 | BO64: =BN64/BM64 -> 1 | BP64: =BK64/BN64 -> 0
A65: 2 | B65: S McElnea | C65: 30 | E65: 14 | F65: 126271 | G65: 9 | H65: Rob McElnea | I65: Bet | J65: I | K65: 2 | L65: Scamton | M65: 10:05:00 | N65: =M65+TIME(7,0,0) -> 17:05:00 | O65: 1 | P65: 1 | Q65: 0 | R65: 3 | S65: 3 | T65: 2 | U65: 5 | V65: 0 | W65: 0 | X65: 0 | Y65: 3 | Z65: 0 | AA65: 0 | AB65: 1 | AC65: 2 | AD65: 5 | AE65: 0 | AF65: 0 | AG65: 0 | AH65: 5 | AI65: 0 | AJ65: 1 | AK65: 0 | AL65: 0 | AM65: 0 | AN65: 0 | AO65: 0 | AP65: 5 | AQ65: 0 | AR65: 0 | AS65: 0 | AT65: 1 | AU65: 2 | AV65: 0 | AW65: 0 | AX65: 0 | AY65: 0 | AZ65: 0 | BA65: 0 | BB65: 5 | BE65: =SUM(O65:BD65) -> 45 | BF65: =COUNTIF(O65:BB65,0) -> 24 | BG65: =COUNTIF(O65:BB65,1) -> 5 | BH65: =COUNTIF(O65:BB65,2) -> 3 | BI65: =COUNTIF(O65:BB65,3) -> 3 | BJ65: =COUNTIF(O65:BB65,5) -> 5 | BK65: =COUNTIF(O65:BB65,10) -> 0 | BM65: =$D$9*$D$8 -> 40 | BN65: =SUM(BF65:BK65) -> 40 | BO65: =BN65/BM65 -> 1 | BP65: =BK65/BN65 -> 0
A66: 161 | B66: PS Marwood | C66: 30 | E66: 15 | F66: 102454 | G66: 8 | H66: Paul Marwood | I66: She | J66: I | K66: 2 | L66: Alford | M66: 10:04:30 | N66: =M66+TIME(7,0,0) -> 17:04:30 | O66: 1 | P66: 0 | Q66: 0 | R66: 3 | S66: 3 | T66: 3 | U66: 3 | V66: 0 | W66: 1 | X66: 0 | Y66: 0 | Z66: 3 | AA66: 0 | AB66: 1 | AC66: 3 | AD66: 1 | AE66: 0 | AF66: 0 | AG66: 0 | AH66: 5 | AI66: 0 | AJ66: 3 | AK66: 3 | AL66: 0 | AM66: 0 | AN66: 0 | AO66: 0 | AP66: 3 | AQ66: 0 | AR66: 0 | AS66: 0 | AT66: 1 | AU66: 1 | AV66: 0 | AW66: 0 | AX66: 1 | AY66: 0 | AZ66: 3 | BA66: 0 | BB66: 3 | BE66: =SUM(O66:BD66) -> 45 | BF66: =COUNTIF(O66:BB66,0) -> 21 | BG66: =COUNTIF(O66:BB66,1) -> 7 | BH66: =COUNTIF(O66:BB66,2) -> 0 | BI66: =COUNTIF(O66:BB66,3) -> 11 | BJ66: =COUNTIF(O66:BB66,5) -> 1 | BK66: =COUNTIF(O66:BB66,10) -> 0 | BM66: =$D$9*$D$8 -> 40 | BN66: =SUM(BF66:BK66) -> 40 | BO66: =BN66/BM66 -> 1 | BP66: =BK66/BN66 -> 0
B67: PAY PAL | C67: 30 | F67: 103208 | G67: 92 | H67: Ryan Martin | I67: Gas | J67: N | K67: 2 | L67: St Johns Chapel | M67: 10:47:00 | N67: =M67+TIME(7,0,0) -> 17:47:00 | O67: 2 | P67: 0 | Q67: 1 | R67: 2 | S67: 3 | T67: 0 | U67: 2 | V67: 0 | W67: 5 | X67: 2 | Y67: 3 | Z67: 1 | AA67: 0 | AB67: 1 | AC67: 5 | AD67: 0 | AE67: 1 | AF67: 0 | AG67: 0 | AH67: 3 | AI67: 0 | AJ67: 1 | AK67: 1 | AL67: 0 | AM67: 0 | AN67: 0 | AO67: 0 | AP67: 0 | AQ67: 0 | AR67: 0 | AS67: 0 | AT67: 1 | AU67: 0 | AV67: 0 | AW67: 0 | AX67: 1 | AY67: 0 | AZ67: 3 | BA67: 2 | BB67: 5 | BE67: =SUM(O67:BD67) -> 45 | BF67: =COUNTIF(O67:BB67,0) -> 20 | BG67: =COUNTIF(O67:BB67,1) -> 8 | BH67: =COUNTIF(O67:BB67,2) -> 5 | BI67: =COUNTIF(O67:BB67,3) -> 4 | BJ67: =COUNTIF(O67:BB67,5) -> 3 | BK67: =COUNTIF(O67:BB67,10) -> 0 | BM67: =$D$9*$D$8 -> 40 | BN67: =SUM(BF67:BK67) -> 40 | BO67: =BN67/BM67 -> 1 | BP67: =BK67/BN67 -> 0
A68: … | E68: 29 | F68: 8866 | G68: 71 | H68: Geoff Fielding | I68: Gas | J68: N | K68: 2 | L68: Hunwick | M68: 10:36:30 | N68: =M68+TIME(7,0,0) -> 17:36:30 | O68: 1 | P68: 0 | Q68: 0 | R68: 3 | S68: 3 | T68: 3 | U68: 3 | V68: 1 | W68: 0 | X68: 1 | Y68: 0 | Z68: 1 | AA68: 0 | AB68: 3 | AC68: 3 | AD68: 1 | AE68: 0 | AF68: 3 | AG68: 0 | AH68: 2 | AI68: 0 | AJ68: 1 | AK68: 1 | AL68: 0 | AM68: 0 | AN68: 0 | AO68: 0 | AP68: 2 | AQ68: 0 | AR68: 0 | AS68: 0 | AT68: 2 | AU68: 1 | AV68: 1 | AW68: 0 | AX68: 0 | AY68: 1 | AZ68: 3 | BA68: 3 | BB68: 3 | BE68: =SUM(O68:BD68) -> 46 | BF68: =COUNTIF(O68:BB68,0) -> 17 | BG68: =COUNTIF(O68:BB68,1) -> 10 | BH68: =COUNTIF(O68:BB68,2) -> 3 | BI68: =COUNTIF(O68:BB68,3) -> 10 | BJ68: =COUNTIF(O68:BB68,5) -> 0 | BK68: =COUNTIF(O68:BB68,10) -> 0 | BM68: =$D$9*$D$8 -> 40 | BN68: =SUM(BF68:BK68) -> 40 | BO68: =BN68/BM68 -> 1 | BP68: =BK68/BN68 -> 0
A69: 100448 | B69: AR Beane | C69: 30 | E69: 18 | F69: 95195 | G69: 21 | H69: Andrew Beane | I69: Gas | J69: N | K69: 2 | L69: Yarm | M69: 10:11:00 | N69: =M69+TIME(7,0,0) -> 17:11:00 | O69: 1 | P69: 1 | Q69: 2 | R69: 1 | S69: 3 | T69: 3 | U69: 3 | V69: 3 | W69: 0 | X69: 0 | Y69: 3 | Z69: 3 | AA69: 3 | AB69: 0 | AC69: 3 | AD69: 1 | AE69: 0 | AF69: 1 | AG69: 0 | AH69: 3 | AI69: 0 | AJ69: 2 | AK69: 1 | AL69: 0 | AM69: 0 | AN69: 1 | AO69: 0 | AP69: 0 | AQ69: 0 | AR69: 0 | AS69: 0 | AT69: 0 | AU69: 0 | AV69: 0 | AW69: 0 | AX69: 1 | AY69: 0 | AZ69: 2 | BA69: 1 | BB69: 5 | BE69: =SUM(O69:BD69) -> 47 | BF69: =COUNTIF(O69:BB69,0) -> 18 | BG69: =COUNTIF(O69:BB69,1) -> 9 | BH69: =COUNTIF(O69:BB69,2) -> 3 | BI69: =COUNTIF(O69:BB69,3) -> 9 | BJ69: =COUNTIF(O69:BB69,5) -> 1 | BK69: =COUNTIF(O69:BB69,10) -> 0 | BM69: =$D$9*$D$8 -> 40 | BN69: =SUM(BF69:BK69) -> 40 | BO69: =BN69/BM69 -> 1 | BP69: =BK69/BN69 -> 0
A70: . | E70: 41 | F70: 20852 | G70: 69 | H70: Mick Flanagan | I70: Oss | J70: I | K70: 2 | L70: Bridgenorth | M70: 10:35:00 | N70: =M70+TIME(7,0,0) -> 17:35:00 | O70: 1 | P70: 0 | Q70: 1 | R70: 1 | S70: 2 | T70: 2 | U70: 3 | V70: 0 | W70: 1 | X70: 1 | Y70: 2 | Z70: 3 | AA70: 1 | AB70: 2 | AC70: 0 | AD70: 1 | AE70: 0 | AF70: 0 | AG70: 0 | AH70: 3 | AI70: 0 | AJ70: 1 | AK70: 2 | AL70: 0 | AM70: 0 | AN70: 0 | AO70: 0 | AP70: 1 | AQ70: 0 | AR70: 1 | AS70: 0 | AT70: 3 | AU70: 1 | AV70: 0 | AW70: 0 | AX70: 2 | AY70: 1 | AZ70: 5 | BA70: 3 | BB70: 5 | BE70: =SUM(O70:BD70) -> 49 | BF70: =COUNTIF(O70:BB70,0) -> 15 | BG70: =COUNTIF(O70:BB70,1) -> 12 | BH70: =COUNTIF(O70:BB70,2) -> 6 | BI70: =COUNTIF(O70:BB70,3) -> 5 | BJ70: =COUNTIF(O70:BB70,5) -> 2 | BK70: =COUNTIF(O70:BB70,10) -> 0 | BM70: =$D$9*$D$8 -> 40 | BN70: =SUM(BF70:BK70) -> 40 | BO70: =BN70/BM70 -> 1 | BP70: =BK70/BN70 -> 0
A71: . | E71: 23 | F71: 106361 | G71: 15 | H71: Jimmy McCanna | I71: Hon | J71: I | K71: 2 | L71: Leigh | M71: 10:08:00 | N71: =M71+TIME(7,0,0) -> 17:08:00 | O71: 1 | P71: 0 | Q71: 1 | R71: 2 | S71: 3 | T71: 1 | U71: 5 | V71: 0 | W71: 1 | X71: 3 | Y71: 1 | Z71: 2 | AA71: 0 | AB71: 0 | AC71: 3 | AD71: 2 | AE71: 1 | AF71: 0 | AG71: 1 | AH71: 2 | AI71: 0 | AJ71: 2 | AK71: 0 | AL71: 0 | AM71: 0 | AN71: 5 | AO71: 0 | AP71: 0 | AQ71: 0 | AR71: 0 | AS71: 0 | AT71: 1 | AU71: 3 | AV71: 3 | AW71: 0 | AX71: 1 | AY71: 0 | AZ71: 1 | BA71: 0 | BB71: 5 | BE71: =SUM(O71:BD71) -> 50 | BF71: =COUNTIF(O71:BB71,0) -> 17 | BG71: =COUNTIF(O71:BB71,1) -> 10 | BH71: =COUNTIF(O71:BB71,2) -> 5 | BI71: =COUNTIF(O71:BB71,3) -> 5 | BJ71: =COUNTIF(O71:BB71,5) -> 3 | BK71: =COUNTIF(O71:BB71,10) -> 0 | BM71: =$D$9*$D$8 -> 40 | BN71: =SUM(BF71:BK71) -> 40 | BO71: =BN71/BM71 -> 1 | BP71: =BK71/BN71 -> 0
A72: 3272 | B72: Mr W Wood | C72: 60 | E72: 25 | F72: 6258 | G72: 17 | H72: William Wood | I72: Bet | J72: N | K72: 2 | L72: Rotherham | M72: 10:09:00 | N72: =M72+TIME(7,0,0) -> 17:09:00 | O72: 2 | P72: 1 | Q72: 1 | R72: 3 | S72: 3 | T72: 2 | U72: 3 | V72: 0 | W72: 1 | X72: 1 | Y72: 1 | Z72: 3 | AA72: 0 | AB72: 2 | AC72: 0 | AD72: 1 | AE72: 2 | AF72: 1 | AG72: 0 | AH72: 3 | AI72: 0 | AJ72: 0 | AK72: 2 | AL72: 0 | AM72: 0 | AN72: 0 | AO72: 1 | AP72: 0 | AQ72: 0 | AR72: 1 | AS72: 0 | AT72: 2 | AU72: 0 | AV72: 2 | AW72: 0 | AX72: 1 | AY72: 0 | AZ72: 3 | BA72: 3 | BB72: 5 | BE72: =SUM(O72:BD72) -> 50 | BF72: =COUNTIF(O72:BB72,0) -> 15 | BG72: =COUNTIF(O72:BB72,1) -> 10 | BH72: =COUNTIF(O72:BB72,2) -> 7 | BI72: =COUNTIF(O72:BB72,3) -> 7 | BJ72: =COUNTIF(O72:BB72,5) -> 1 | BK72: =COUNTIF(O72:BB72,10) -> 0 | BM72: =$D$9*$D$8 -> 40 | BN72: =SUM(BF72:BK72) -> 40 | BO72: =BN72/BM72 -> 1 | BP72: =BK72/BN72 -> 0
B73: PAY PAL | C73: 30 | E73: 4 | F73: 19975 | G73: 84 | H73: Chris Tolson | I73: Bet | J73: N | K73: 2 | L73: Huddersfield | M73: 10:43:00 | N73: =M73+TIME(7,0,0) -> 17:43:00 | O73: 1 | P73: 0 | Q73: 0 | R73: 3 | S73: 2 | T73: 1 | U73: 3 | V73: 0 | W73: 1 | X73: 2 | Y73: 1 | Z73: 3 | AA73: 0 | AB73: 1 | AC73: 2 | AD73: 1 | AE73: 1 | AF73: 0 | AG73: 2 | AH73: 2 | AI73: 0 | AJ73: 3 | AK73: 1 | AL73: 0 | AM73: 0 | AN73: 2 | AO73: 5 | AP73: 2 | AQ73: 1 | AR73: 0 | AS73: 0 | AT73: 1 | AU73: 0 | AV73: 0 | AW73: 0 | AX73: 3 | AY73: 0 | AZ73: 3 | BA73: 1 | BB73: 3 | BE73: =SUM(O73:BD73) -> 51 | BF73: =COUNTIF(O73:BB73,0) -> 14 | BG73: =COUNTIF(O73:BB73,1) -> 11 | BH73: =COUNTIF(O73:BB73,2) -> 7 | BI73: =COUNTIF(O73:BB73,3) -> 7 | BJ73: =COUNTIF(O73:BB73,5) -> 1 | BK73: =COUNTIF(O73:BB73,10) -> 0 | BM73: =$D$9*$D$8 -> 40 | BN73: =SUM(BF73:BK73) -> 40 | BO73: =BN73/BM73 -> 1 | BP73: =BK73/BN73 -> 0
A74: 100066 | B74: AD Holmes | C74: 30 | E74: 27 | F74: 77934 | G74: 31 | H74: Tony Holmes | I74: Bet | J74: N | K74: 2 | L74: Skipton | M74: 10:16:00 | N74: =M74+TIME(7,0,0) -> 17:16:00 | O74: 3 | P74: 0 | Q74: 0 | R74: 1 | S74: 2 | T74: 2 | U74: 3 | V74: 0 | W74: 0 | X74: 1 | Y74: 2 | Z74: 3 | AA74: 0 | AB74: 2 | AC74: 3 | AD74: 2 | AE74: 2 | AF74: 0 | AG74: 5 | AH74: 3 | AI74: 0 | AJ74: 1 | AK74: 2 | AL74: 2 | AM74: 0 | AN74: 1 | AO74: 0 | AP74: 0 | AQ74: 2 | AR74: 0 | AS74: 0 | AT74: 2 | AU74: 2 | AV74: 1 | AW74: 0 | AX74: 0 | AY74: 2 | AZ74: 1 | BA74: 0 | BB74: 2 | BE74: =SUM(O74:BD74) -> 52 | BF74: =COUNTIF(O74:BB74,0) -> 15 | BG74: =COUNTIF(O74:BB74,1) -> 6 | BH74: =COUNTIF(O74:BB74,2) -> 13 | BI74: =COUNTIF(O74:BB74,3) -> 5 | BJ74: =COUNTIF(O74:BB74,5) -> 1 | BK74: =COUNTIF(O74:BB74,10) -> 0 | BM74: =$D$9*$D$8 -> 40 | BN74: =SUM(BF74:BK74) -> 40 | BO74: =BN74/BM74 -> 1 | BP74: =BK74/BN74 -> 0
A75: 300599 | B75: A Dennis | C75: 30 | E75: 19 | F75: 108572 | G75: 22 | H75: Andrew Dennis | I75: Bet | J75: N | K75: 2 | L75: Stockton on Tees | M75: 10:11:30 | N75: =M75+TIME(7,0,0) -> 17:11:30 | O75: 0 | P75: 1 | Q75: 0 | R75: 1 | S75: 0 | T75: 1 | U75: 3 | V75: 0 | W75: 1 | X75: 0 | Y75: 1 | Z75: 3 | AA75: 5 | AB75: 2 | AC75: 1 | AD75: 1 | AE75: 0 | AF75: 0 | AG75: 2 | AH75: 3 | AI75: 0 | AJ75: 5 | AK75: 2 | AL75: 1 | AM75: 0 | AN75: 0 | AO75: 0 | AP75: 3 | AQ75: 3 | AR75: 1 | AS75: 0 | AT75: 3 | AU75: 0 | AV75: 0 | AW75: 0 | AX75: 1 | AY75: 1 | AZ75: 3 | BA75: 1 | BB75: 5 | BE75: =SUM(O75:BD75) -> 54 | BF75: =COUNTIF(O75:BB75,0) -> 15 | BG75: =COUNTIF(O75:BB75,1) -> 12 | BH75: =COUNTIF(O75:BB75,2) -> 3 | BI75: =COUNTIF(O75:BB75,3) -> 7 | BJ75: =COUNTIF(O75:BB75,5) -> 3 | BK75: =COUNTIF(O75:BB75,10) -> 0 | BM75: =$D$9*$D$8 -> 40 | BN75: =SUM(BF75:BK75) -> 40 | BO75: =BN75/BM75 -> 1 | BP75: =BK75/BN75 -> 0
A76: 100063 | B76: I Rutter | C76: 60 | E76: 28 | F76: 15597 | G76: 72 | H76: Ian Rutter | I76: Gas | J76: N | K76: 2 | L76: Hunwick | M76: 10:37:00 | N76: =M76+TIME(7,0,0) -> 17:37:00 | O76: 0 | P76: 0 | Q76: 0 | R76: 5 | S76: 2 | T76: 1 | U76: 3 | V76: 0 | W76: 1 | X76: 0 | Y76: 0 | Z76: 3 | AA76: 1 | AB76: 1 | AC76: 0 | AD76: 1 | AE76: 2 | AF76: 0 | AG76: 0 | AH76: 3 | AI76: 5 | AJ76: 5 | AK76: 3 | AL76: 0 | AM76: 0 | AN76: 0 | AO76: 0 | AP76: 5 | AQ76: 0 | AR76: 0 | AS76: 0 | AT76: 3 | AU76: 1 | AV76: 2 | AW76: 0 | AX76: 2 | AY76: 0 | AZ76: 5 | BA76: 1 | BB76: 3 | BE76: =SUM(O76:BD76) -> 58 | BF76: =COUNTIF(O76:BB76,0) -> 18 | BG76: =COUNTIF(O76:BB76,1) -> 7 | BH76: =COUNTIF(O76:BB76,2) -> 4 | BI76: =COUNTIF(O76:BB76,3) -> 6 | BJ76: =COUNTIF(O76:BB76,5) -> 5 | BK76: =COUNTIF(O76:BB76,10) -> 0 | BM76: =$D$9*$D$8 -> 40 | BN76: =SUM(BF76:BK76) -> 40 | BO76: =BN76/BM76 -> 1 | BP76: =BK76/BN76 -> 0
A77: . | B77: PAY PAL | C77: 29.75 | E77: 80 | F77: 81073 | G77: 90 | H77: Martin Jackson | I77: She | J77: I | K77: 2 | L77: Rochdale | M77: 10:46:00 | N77: =M77+TIME(7,0,0) -> 17:46:00 | O77: 0 | P77: 5 | Q77: 0 | R77: 3 | S77: 3 | T77: 3 | U77: 3 | V77: 0 | W77: 0 | X77: 0 | Y77: 0 | Z77: 3 | AA77: 1 | AB77: 2 | AC77: 1 | AD77: 2 | AE77: 1 | AF77: 0 | AG77: 0 | AH77: 3 | AI77: 0 | AJ77: 1 | AK77: 2 | AL77: 0 | AM77: 0 | AN77: 5 | AO77: 3 | AP77: 2 | AQ77: 5 | AR77: 0 | AS77: 0 | AT77: 1 | AU77: 0 | AV77: 0 | AW77: 0 | AX77: 2 | AY77: 2 | AZ77: 3 | BA77: 0 | BB77: 3 | BE77: =SUM(O77:BD77) -> 59 | BF77: =COUNTIF(O77:BB77,0) -> 17 | BG77: =COUNTIF(O77:BB77,1) -> 5 | BH77: =COUNTIF(O77:BB77,2) -> 6 | BI77: =COUNTIF(O77:BB77,3) -> 9 | BJ77: =COUNTIF(O77:BB77,5) -> 3 | BK77: =COUNTIF(O77:BB77,10) -> 0 | BM77: =$D$9*$D$8 -> 40 | BN77: =SUM(BF77:BK77) -> 40 | BO77: =BN77/BM77 -> 1 | BP77: =BK77/BN77 -> 0
A78: . | E78: 71 | F78: 134345 | G78: 4 | H78: Ernie Byrne | I78: Bet | J78: N | K78: 2 | L78: Spennymoor | M78: 10:02:30 | N78: =M78+TIME(7,0,0) -> 17:02:30 | O78: 1 | P78: 1 | Q78: 0 | R78: 3 | S78: 2 | T78: 3 | U78: 3 | V78: 0 | W78: 0 | X78: 1 | Y78: 1 | Z78: 0 | AA78: 1 | AB78: 1 | AC78: 1 | AD78: 3 | AE78: 3 | AF78: 1 | AG78: 3 | AH78: 5 | AI78: 0 | AJ78: 5 | AK78: 5 | AL78: 1 | AM78: 1 | AN78: 1 | AO78: 0 | AP78: 1 | AQ78: 0 | AR78: 0 | AS78: 0 | AT78: 2 | AU78: 0 | AV78: 0 | AW78: 0 | AX78: 1 | AY78: 0 | AZ78: 3 | BA78: 1 | BB78: 5 | BE78: =SUM(O78:BD78) -> 59 | BF78: =COUNTIF(O78:BB78,0) -> 13 | BG78: =COUNTIF(O78:BB78,1) -> 14 | BH78: =COUNTIF(O78:BB78,2) -> 2 | BI78: =COUNTIF(O78:BB78,3) -> 7 | BJ78: =COUNTIF(O78:BB78,5) -> 4 | BK78: =COUNTIF(O78:BB78,10) -> 0 | BM78: =$D$9*$D$8 -> 40 | BN78: =SUM(BF78:BK78) -> 40 | BO78: =BN78/BM78 -> 1 | BP78: =BK78/BN78 -> 0
A79: 46 | B79: D Byrne | C79: 90 | E79: 70 | F79: 118824 | G79: 3 | H79: John Bennett | I79: Gas | J79: N | K79: 2 | L79: Spennymoor | M79: 10:02:00 | N79: =M79+TIME(7,0,0) -> 17:02:00 | O79: 0 | P79: 0 | Q79: 1 | R79: 2 | S79: 1 | T79: 3 | U79: 3 | V79: 3 | W79: 0 | X79: 0 | Y79: 3 | Z79: 3 | AA79: 0 | AB79: 3 | AC79: 3 | AD79: 2 | AE79: 2 | AF79: 0 | AG79: 0 | AH79: 3 | AI79: 1 | AJ79: 3 | AK79: 1 | AL79: 5 | AM79: 0 | AN79: 2 | AO79: 0 | AP79: 0 | AQ79: 2 | AR79: 0 | AS79: 0 | AT79: 3 | AU79: 1 | AV79: 3 | AW79: 0 | AX79: 1 | AY79: 0 | AZ79: 1 | BA79: 0 | BB79: 5 | BE79: =SUM(O79:BD79) -> 60 | BF79: =COUNTIF(O79:BB79,0) -> 15 | BG79: =COUNTIF(O79:BB79,1) -> 7 | BH79: =COUNTIF(O79:BB79,2) -> 5 | BI79: =COUNTIF(O79:BB79,3) -> 11 | BJ79: =COUNTIF(O79:BB79,5) -> 2 | BK79: =COUNTIF(O79:BB79,10) -> 0 | BM79: =$D$9*$D$8 -> 40 | BN79: =SUM(BF79:BK79) -> 40 | BO79: =BN79/BM79 -> 1 | BP79: =BK79/BN79 -> 0
A80: 485 | B80: JTL Chatto | C80: 30 | E80: 62 | F80: 153963 | G80: 76 | H80: John Chatto | I80: Gas | J80: N | K80: 2 | L80: Chesham | M80: 10:39:00 | N80: =M80+TIME(7,0,0) -> 17:39:00 | O80: 0 | P80: 0 | Q80: 0 | R80: 0 | S80: 2 | T80: 3 | U80: 3 | V80: 0 | W80: 0 | X80: 3 | Y80: 3 | Z80: 3 | AA80: 0 | AB80: 1 | AC80: 1 | AD80: 0 | AE80: 0 | AF80: 3 | AG80: 1 | AH80: 3 | AI80: 0 | AJ80: 3 | AK80: 3 | AL80: 0 | AM80: 0 | AN80: 1 | AO80: 5 | AP80: 3 | AQ80: 0 | AR80: 0 | AS80: 0 | AT80: 3 | AU80: 1 | AV80: 2 | AW80: 0 | AX80: 5 | AY80: 3 | AZ80: 3 | BA80: 0 | BB80: 3 | BE80: =SUM(O80:BD80) -> 61 | BF80: =COUNTIF(O80:BB80,0) -> 17 | BG80: =COUNTIF(O80:BB80,1) -> 5 | BH80: =COUNTIF(O80:BB80,2) -> 2 | BI80: =COUNTIF(O80:BB80,3) -> 14 | BJ80: =COUNTIF(O80:BB80,5) -> 2 | BK80: =COUNTIF(O80:BB80,10) -> 0 | BM80: =$D$9*$D$8 -> 40 | BN80: =SUM(BF80:BK80) -> 40 | BO80: =BN80/BM80 -> 1 | BP80: =BK80/BN80 -> 0
A81: 52 | B81: L Armstrong | C81: 30 | E81: 69 | F81: 124986 | G81: 89 | H81: Richard Armstrong | I81: Bet | J81: N | K81: 2 | L81: Silsden | M81: 10:45:30 | N81: =M81+TIME(7,0,0) -> 17:45:30 | O81: 1 | P81: 0 | Q81: 0 | R81: 2 | S81: 3 | T81: 5 | U81: 3 | V81: 1 | W81: 3 | X81: 1 | Y81: 3 | Z81: 1 | AA81: 2 | AB81: 1 | AC81: 3 | AD81: 1 | AE81: 5 | AF81: 0 | AG81: 0 | AH81: 3 | AI81: 0 | AJ81: 0 | AK81: 3 | AL81: 0 | AM81: 0 | AN81: 0 | AO81: 0 | AP81: 5 | AQ81: 0 | AR81: 1 | AS81: 0 | AT81: 3 | AU81: 1 | AV81: 0 | AW81: 0 | AX81: 3 | AY81: 2 | AZ81: 3 | BA81: 0 | BB81: 5 | BE81: =SUM(O81:BD81) -> 64 | BF81: =COUNTIF(O81:BB81,0) -> 15 | BG81: =COUNTIF(O81:BB81,1) -> 8 | BH81: =COUNTIF(O81:BB81,2) -> 3 | BI81: =COUNTIF(O81:BB81,3) -> 10 | BJ81: =COUNTIF(O81:BB81,5) -> 4 | BK81: =COUNTIF(O81:BB81,10) -> 0 | BM81: =$D$9*$D$8 -> 40 | BN81: =SUM(BF81:BK81) -> 40 | BO81: =BN81/BM81 -> 1 | BP81: =BK81/BN81 -> 0
A82: 16 | B82: N Farrow | C82: 30 | E82: 20 | F82: 25543 | G82: 12 | H82: Anthony Farrow | I82: Mon | J82: N | K82: 2 | L82: Brierfield | M82: 10:06:30 | N82: =M82+TIME(7,0,0) -> 17:06:30 | O82: 3 | P82: 0 | Q82: 1 | R82: 3 | S82: 1 | T82: 3 | U82: 3 | V82: 1 | W82: 1 | X82: 2 | Y82: 3 | Z82: 3 | AA82: 1 | AB82: 0 | AC82: 3 | AD82: 2 | AE82: 0 | AF82: 1 | AG82: 5 | AH82: 3 | AI82: 1 | AJ82: 0 | AK82: 2 | AL82: 0 | AM82: 0 | AN82: 2 | AO82: 0 | AP82: 0 | AQ82: 1 | AR82: 0 | AS82: 0 | AT82: 3 | AU82: 0 | AV82: 2 | AW82: 0 | AX82: 5 | AY82: 1 | AZ82: 0 | BA82: 3 | BB82: 5 | BE82: =SUM(O82:BD82) -> 64 | BF82: =COUNTIF(O82:BB82,0) -> 13 | BG82: =COUNTIF(O82:BB82,1) -> 9 | BH82: =COUNTIF(O82:BB82,2) -> 5 | BI82: =COUNTIF(O82:BB82,3) -> 10 | BJ82: =COUNTIF(O82:BB82,5) -> 3 | BK82: =COUNTIF(O82:BB82,10) -> 0 | BM82: =$D$9*$D$8 -> 40 | BN82: =SUM(BF82:BK82) -> 40 | BO82: =BN82/BM82 -> 1 | BP82: =BK82/BN82 -> 0
A83: . | E83: 72 | F83: 146405 | G83: 5 | H83: Zack Hubery | I83: She | J83: N | K83: 2 | L83: Spennymoor | M83: 10:03:00 | N83: =M83+TIME(7,0,0) -> 17:03:00 | O83: 2 | P83: 0 | Q83: 1 | R83: 3 | S83: 3 | T83: 3 | U83: 3 | V83: 3 | W83: 2 | X83: 3 | Y83: 3 | Z83: 1 | AA83: 1 | AB83: 1 | AC83: 3 | AD83: 0 | AE83: 5 | AF83: 1 | AG83: 3 | AH83: 3 | AI83: 1 | AJ83: 1 | AK83: 2 | AL83: 5 | AM83: 0 | AN83: 0 | AO83: 5 | AP83: 3 | AQ83: 1 | AR83: 0 | AS83: 0 | AT83: 3 | AU83: 3 | AV83: 0 | AW83: 0 | AX83: 0 | AY83: 0 | AZ83: 1 | BA83: 1 | BB83: 3 | BE83: =SUM(O83:BD83) -> 73 | BF83: =COUNTIF(O83:BB83,0) -> 10 | BG83: =COUNTIF(O83:BB83,1) -> 10 | BH83: =COUNTIF(O83:BB83,2) -> 3 | BI83: =COUNTIF(O83:BB83,3) -> 14 | BJ83: =COUNTIF(O83:BB83,5) -> 3 | BK83: =COUNTIF(O83:BB83,10) -> 0 | BM83: =$D$9*$D$8 -> 40 | BN83: =SUM(BF83:BK83) -> 40 | BO83: =BN83/BM83 -> 1 | BP83: =BK83/BN83 -> 0
A84: 179 | B84: Mr SJ Smith | C84: 60 | E84: 56 | F84: 122283 | G84: 1 | H84: Stephen Smith | I84: Gas | J84: N | K84: 2 | L84: Barnoldswick | M84: 10:01:00 | N84: =M84+TIME(7,0,0) -> 17:01:00 | O84: 1 | P84: 0 | Q84: 1 | R84: 3 | S84: 2 | T84: 2 | U84: 3 | V84: 0 | W84: 3 | X84: 2 | Y84: 1 | Z84: 3 | AA84: 5 | AB84: 0 | AC84: 3 | AD84: 0 | AE84: 1 | AF84: 1 | AG84: 3 | AH84: 3 | AI84: 3 | AJ84: 1 | AK84: 3 | AL84: 0 | AM84: 0 | AN84: 5 | AO84: 5 | AP84: 0 | AQ84: 0 | AR84: 0 | AS84: 0 | AT84: 3 | AU84: 2 | AV84: 5 | AW84: 0 | AX84: 2 | AY84: 1 | AZ84: 2 | BA84: 0 | BB84: 5 | BE84: =SUM(O84:BD84) -> 74 | BF84: =COUNTIF(O84:BB84,0) -> 12 | BG84: =COUNTIF(O84:BB84,1) -> 7 | BH84: =COUNTIF(O84:BB84,2) -> 6 | BI84: =COUNTIF(O84:BB84,3) -> 10 | BJ84: =COUNTIF(O84:BB84,5) -> 5 | BK84: =COUNTIF(O84:BB84,10) -> 0 | BM84: =$D$9*$D$8 -> 40 | BN84: =SUM(BF84:BK84) -> 40 | BO84: =BN84/BM84 -> 1 | BP84: =BK84/BN84 -> 0
A85: 100047 | B85: AG Frith | C85: 30 | E85: 16 | F85: 103690 | G85: 7 | H85: Adam Frith | I85: Gas | J85: N | K85: 2 | L85: Horncastle | M85: 10:04:00 | N85: =M85+TIME(7,0,0) -> 17:04:00 | O85: 3 | P85: 0 | Q85: 3 | R85: 5 | S85: 3 | T85: 5 | U85: 3 | V85: 1 | W85: 3 | X85: 1 | Y85: 1 | Z85: 3 | AA85: 3 | AB85: 0 | AC85: 3 | AD85: 1 | AE85: 5 | AF85: 1 | AG85: 1 | AH85: 5 | AI85: 0 | AJ85: 3 | AK85: 0 | AL85: 0 | AM85: 0 | AN85: 0 | AO85: 0 | AP85: 3 | AQ85: 5 | AR85: 0 | AS85: 0 | AT85: 1 | AU85: 3 | AV85: 0 | AW85: 0 | AX85: 2 | AY85: 0 | AZ85: 5 | BA85: 0 | BB85: 5 | BE85: =SUM(O85:BD85) -> 77 | BF85: =COUNTIF(O85:BB85,0) -> 14 | BG85: =COUNTIF(O85:BB85,1) -> 7 | BH85: =COUNTIF(O85:BB85,2) -> 1 | BI85: =COUNTIF(O85:BB85,3) -> 11 | BJ85: =COUNTIF(O85:BB85,5) -> 7 | BK85: =COUNTIF(O85:BB85,10) -> 0 | BM85: =$D$9*$D$8 -> 40 | BN85: =SUM(BF85:BK85) -> 40 | BO85: =BN85/BM85 -> 1 | BP85: =BK85/BN85 -> 0
A86: 100136 | B86: Mr N cockerham | C86: 30 | E86: 3 | F86: 99444 | G86: 73 | H86: Nigel Cockerham | I86: She | J86: N | K86: 2 | L86: Castleford | M86: 10:37:30 | N86: =M86+TIME(7,0,0) -> 17:37:30 | O86: 0 | P86: 0 | Q86: 2 | R86: 2 | S86: 3 | T86: 5 | U86: 5 | V86: 5 | W86: 0 | X86: 3 | Y86: 0 | Z86: 3 | AA86: 0 | AB86: 1 | AC86: 2 | AD86: 1 | AE86: 3 | AF86: 3 | AG86: 1 | AH86: 3 | AI86: 0 | AJ86: 3 | AK86: 3 | AL86: 0 | AM86: 0 | AN86: 0 | AO86: 2 | AP86: 3 | AQ86: 1 | AR86: 0 | AS86: 0 | AT86: 3 | AU86: 1 | AV86: 0 | AW86: 5 | AX86: 3 | AY86: 0 | AZ86: 3 | BA86: 2 | BB86: 3 | BC86: 3 | BE86: =SUM(O86:BD86) -> 77 | BF86: =COUNTIF(O86:BB86,0) -> 13 | BG86: =COUNTIF(O86:BB86,1) -> 5 | BH86: =COUNTIF(O86:BB86,2) -> 5 | BI86: =COUNTIF(O86:BB86,3) -> 13 | BJ86: =COUNTIF(O86:BB86,5) -> 4 | BK86: =COUNTIF(O86:BB86,10) -> 0 | BM86: =$D$9*$D$8 -> 40 | BN86: =SUM(BF86:BK86) -> 40 | BO86: =BN86/BM86 -> 1 | BP86: =BK86/BN86 -> 0
A87: 100198 | B87: JR Spensley | C87: 30 | E87: 50 | F87: 154960 | G87: 86 | H87: John Spensley | I87: Gas | J87: N | K87: 2 | L87: Skipton | M87: 10:44:00 | N87: =M87+TIME(7,0,0) -> 17:44:00 | O87: 1 | P87: 0 | Q87: 0 | R87: 2 | S87: 3 | T87: 3 | U87: 3 | V87: 1 | W87: 3 | X87: 3 | Y87: 1 | Z87: 0 | AA87: 3 | AB87: 1 | AC87: 5 | AD87: 2 | AE87: 3 | AF87: 0 | AG87: 1 | AH87: 5 | AI87: 1 | AJ87: 2 | AK87: 3 | AL87: 0 | AM87: 0 | AN87: 2 | AO87: 5 | AP87: 2 | AQ87: 1 | AR87: 0 | AS87: 0 | AT87: 3 | AU87: 1 | AV87: 0 | AW87: 0 | AX87: 0 | AY87: 3 | AZ87: 5 | BA87: 5 | BB87: 5 | BE87: =SUM(O87:BD87) -> 78 | BF87: =COUNTIF(O87:BB87,0) -> 11 | BG87: =COUNTIF(O87:BB87,1) -> 8 | BH87: =COUNTIF(O87:BB87,2) -> 5 | BI87: =COUNTIF(O87:BB87,3) -> 10 | BJ87: =COUNTIF(O87:BB87,5) -> 6 | BK87: =COUNTIF(O87:BB87,10) -> 0 | BM87: =$D$9*$D$8 -> 40 | BN87: =SUM(BF87:BK87) -> 40 | BO87: =BN87/BM87 -> 1 | BP87: =BK87/BN87 -> 0
A88: 100036 | B88: AJ West | C88: 30 | E88: 10 | F88: 86944 | G88: 10 | H88: Adam West | I88: Bet | J88: N | K88: 2 | L88: Messingham | M88: 10:05:30 | N88: =M88+TIME(7,0,0) -> 17:05:30 | O88: 1 | P88: 0 | Q88: 2 | R88: 3 | S88: 3 | T88: 5 | U88: 5 | V88: 1 | W88: 0 | X88: 3 | Y88: 3 | Z88: 3 | AA88: 1 | AB88: 1 | AC88: 5 | AD88: 1 | AE88: 2 | AF88: 1 | AG88: 0 | AH88: 3 | AI88: 0 | AJ88: 2 | AK88: 5 | AL88: 0 | AM88: 0 | AN88: 2 | AO88: 1 | AP88: 5 | AQ88: 0 | AR88: 2 | AS88: 0 | AT88: 5 | AU88: 2 | AV88: 0 | AW88: 2 | AX88: 3 | AY88: 2 | AZ88: 2 | BA88: 1 | BB88: 5 | BE88: =SUM(O88:BD88) -> 82 | BF88: =COUNTIF(O88:BB88,0) -> 9 | BG88: =COUNTIF(O88:BB88,1) -> 8 | BH88: =COUNTIF(O88:BB88,2) -> 9 | BI88: =COUNTIF(O88:BB88,3) -> 7 | BJ88: =COUNTIF(O88:BB88,5) -> 7 | BK88: =COUNTIF(O88:BB88,10) -> 0 | BM88: =$D$9*$D$8 -> 40 | BN88: =SUM(BF88:BK88) -> 40 | BO88: =BN88/BM88 -> 1 | BP88: =BK88/BN88 -> 0
B89: PAY PAL | C89: 30 | E89: 89 | F89: 96188 | G89: 27 | H89: Andrew Washington | I89: Bet | J89: N | K89: 2 | L89: Huddersfield | M89: 10:14:00 | N89: =M89+TIME(7,0,0) -> 17:14:00 | O89: 3 | P89: 0 | Q89: 2 | R89: 5 | S89: 5 | T89: 2 | U89: 3 | V89: 3 | W89: 1 | X89: 5 | Y89: 0 | Z89: 2 | AA89: 3 | AB89: 2 | AC89: 3 | AD89: 3 | AE89: 1 | AF89: 5 | AG89: 3 | AH89: 5 | AI89: 0 | AJ89: 1 | AK89: 3 | AL89: 1 | AM89: 0 | AN89: 0 | AO89: 5 | AP89: 1 | AQ89: 0 | AR89: 0 | AS89: 0 | AT89: 0 | AU89: 1 | AV89: 0 | AW89: 0 | AX89: 5 | AY89: 1 | AZ89: 3 | BA89: 2 | BB89: 5 | BE89: =SUM(O89:BD89) -> 84 | BF89: =COUNTIF(O89:BB89,0) -> 11 | BG89: =COUNTIF(O89:BB89,1) -> 7 | BH89: =COUNTIF(O89:BB89,2) -> 5 | BI89: =COUNTIF(O89:BB89,3) -> 9 | BJ89: =COUNTIF(O89:BB89,5) -> 8 | BK89: =COUNTIF(O89:BB89,10) -> 0 | BM89: =$D$9*$D$8 -> 40 | BN89: =SUM(BF89:BK89) -> 40 | BO89: =BN89/BM89 -> 1 | BP89: =BK89/BN89 -> 0
A90: 100127 | B90: RE Thornton | C90: 30 | E90: 59 | F90: 79834 | G90: 75 | H90: Richard Thornton | I90: Gas | J90: N | K90: 2 | L90: Leeds | M90: 10:38:30 | N90: =M90+TIME(7,0,0) -> 17:38:30 | O90: 0 | P90: 0 | Q90: 3 | R90: 3 | S90: 1 | T90: 3 | U90: 5 | V90: 3 | W90: 0 | X90: 3 | Y90: 3 | Z90: 3 | AA90: 3 | AB90: 2 | AC90: 3 | AD90: 2 | AE90: 3 | AF90: 3 | AG90: 2 | AH90: 5 | AI90: 1 | AJ90: 2 | AK90: 3 | AL90: 1 | AM90: 1 | AN90: 5 | AO90: 1 | AP90: 3 | AQ90: 2 | AR90: 5 | AS90: 0 | AT90: 3 | AU90: 0 | AV90: 0 | AW90: 0 | AX90: 3 | AY90: 3 | AZ90: 3 | BA90: 3 | BB90: 5 | BE90: =SUM(O90:BD90) -> 94 | BF90: =COUNTIF(O90:BB90,0) -> 7 | BG90: =COUNTIF(O90:BB90,1) -> 5 | BH90: =COUNTIF(O90:BB90,2) -> 5 | BI90: =COUNTIF(O90:BB90,3) -> 18 | BJ90: =COUNTIF(O90:BB90,5) -> 5 | BK90: =COUNTIF(O90:BB90,10) -> 0 | BM90: =$D$9*$D$8 -> 40 | BN90: =SUM(BF90:BK90) -> 40 | BO90: =BN90/BM90 -> 1 | BP90: =BK90/BN90 -> 0
A91: 100770 | B91: MR Whelan | C91: 30 | E91: 51 | F91: 77960 | G91: 6 | H91: Mark Whelan | I91: Gas | J91: N | K91: 2 | L91: Aberford | M91: 10:03:30 | N91: =M91+TIME(7,0,0) -> 17:03:30 | O91: 1 | P91: 0 | Q91: 1 | R91: 3 | S91: 3 | T91: 3 | U91: 5 | V91: 1 | W91: 3 | X91: 3 | Y91: 5 | Z91: 3 | AA91: 5 | AB91: 2 | AC91: 3 | AD91: 3 | AE91: 5 | AF91: 2 | AG91: 3 | AH91: 5 | AI91: 3 | AJ91: 3 | AK91: 5 | AL91: 3 | AM91: 0 | AN91: 0 | AO91: 2 | AP91: 3 | AQ91: 3 | AR91: 3 | AS91: 0 | AT91: 3 | AU91: 2 | AV91: 2 | AW91: 0 | AX91: 1 | AY91: 1 | AZ91: 3 | BA91: 3 | BB91: 5 | BE91: =SUM(O91:BD91) -> 104 | BF91: =COUNTIF(O91:BB91,0) -> 5 | BG91: =COUNTIF(O91:BB91,1) -> 5 | BH91: =COUNTIF(O91:BB91,2) -> 5 | BI91: =COUNTIF(O91:BB91,3) -> 18 | BJ91: =COUNTIF(O91:BB91,5) -> 7 | BK91: =COUNTIF(O91:BB91,10) -> 0 | BM91: =$D$9*$D$8 -> 40 | BN91: =SUM(BF91:BK91) -> 40 | BO91: =BN91/BM91 -> 1 | BP91: =BK91/BN91 -> 0
A92: 100209 | B92: S Hodson | C92: 30 | E92: 54 | F92: 103378 | G92: 65 | H92: Simon Hodson | I92: She | J92: N | K92: 2 | L92: Waddington | M92: 10:33:00 | N92: =M92+TIME(7,0,0) -> 17:33:00 | O92: 3 | P92: 0 | Q92: 3 | R92: 5 | S92: 3 | T92: 5 | U92: 5 | V92: 3 | W92: 2 | X92: 3 | Y92: 3 | Z92: 3 | AA92: 5 | AB92: 3 | AC92: 3 | AD92: 3 | AE92: 3 | AF92: 3 | AG92: 3 | AH92: 5 | AI92: 2 | AJ92: 3 | AK92: 3 | AL92: 3 | AM92: 0 | AN92: 0 | AO92: 3 | AP92: 5 | AQ92: 0 | AR92: 3 | AS92: 0 | AT92: 3 | AU92: 2 | AV92: 0 | AW92: 0 | AX92: 3 | AY92: 2 | AZ92: 5 | BA92: 3 | BB92: 5 | BE92: =SUM(O92:BD92) -> 111 | BF92: =COUNTIF(O92:BB92,0) -> 7 | BG92: =COUNTIF(O92:BB92,1) -> 0 | BH92: =COUNTIF(O92:BB92,2) -> 4 | BI92: =COUNTIF(O92:BB92,3) -> 21 | BJ92: =COUNTIF(O92:BB92,5) -> 8 | BK92: =COUNTIF(O92:BB92,10) -> 0 | BM92: =$D$9*$D$8 -> 40 | BN92: =SUM(BF92:BK92) -> 40 | BO92: =BN92/BM92 -> 1 | BP92: =BK92/BN92 -> 0
A93: . | E93: 64 | F93: 64911 | G93: 78 | H93: Richard Sanderson | I93: Gas | J93: N | K93: 2 | L93: Sutton on Forest | M93: 10:40:00 | N93: =M93+TIME(7,0,0) -> 17:40:00 | O93: 1 | P93: 0 | Q93: 3 | R93: 3 | S93: 1 | T93: 3 | U93: 5 | V93: 5 | W93: 3 | X93: 5 | Y93: 3 | Z93: 3 | AA93: 5 | AB93: 3 | AC93: 3 | AD93: 3 | AE93: 3 | AF93: 5 | AG93: 5 | AH93: 3 | AI93: 0 | AJ93: 3 | AK93: 2 | AL93: 3 | AM93: 1 | AN93: 5 | AO93: 2 | AP93: 3 | AQ93: 2 | AR93: 3 | AS93: 0 | AT93: 3 | AU93: 3 | AV93: 3 | AW93: 5 | AX93: 3 | AY93: 3 | AZ93: 5 | BA93: 3 | BB93: 5 | BE93: =SUM(O93:BD93) -> 122 | BF93: =COUNTIF(O93:BB93,0) -> 3 | BG93: =COUNTIF(O93:BB93,1) -> 3 | BH93: =COUNTIF(O93:BB93,2) -> 3 | BI93: =COUNTIF(O93:BB93,3) -> 21 | BJ93: =COUNTIF(O93:BB93,5) -> 10 | BK93: =COUNTIF(O93:BB93,10) -> 0 | BM93: =$D$9*$D$8 -> 40 | BN93: =SUM(BF93:BK93) -> 40 | BO93: =BN93/BM93 -> 1 | BP93: =BK93/BN93 -> 0
A94: . | E94: 57 | F94: 166345 | G94: 2 | H94: Lee Marsden | I94: She | J94: N | K94: 2 | L94: Barnoldswick | M94: 10:01:30 | N94: =M94+TIME(7,0,0) -> 17:01:30 | BE94: NS | BF94: =COUNTIF(O94:BB94,0) -> 0 | BG94: =COUNTIF(O94:BB94,1) -> 0 | BH94: =COUNTIF(O94:BB94,2) -> 0 | BI94: =COUNTIF(O94:BB94,3) -> 0 | BJ94: =COUNTIF(O94:BB94,5) -> 0 | BK94: =COUNTIF(O94:BB94,10) -> 0 | BM94: =$D$9*$D$8 -> 40 | BN94: =SUM(BF94:BK94) -> 0 | BO94: =BN94/BM94 -> 0 | BP94: =BK94/BN94 -> 
A95: . | E95: 24 | F95: 1947 | G95: 16 | H95: Peter McCanna | I95: Hon | J95: N | K95: 2 | L95: Leigh | M95: 10:08:30 | N95: =M95+TIME(7,0,0) -> 17:08:30 | BE95: NS | BF95: =COUNTIF(O95:BB95,0) -> 0 | BG95: =COUNTIF(O95:BB95,1) -> 0 | BH95: =COUNTIF(O95:BB95,2) -> 0 | BI95: =COUNTIF(O95:BB95,3) -> 0 | BJ95: =COUNTIF(O95:BB95,5) -> 0 | BK95: =COUNTIF(O95:BB95,10) -> 0 | BM95: =$D$9*$D$8 -> 40 | BN95: =SUM(BF95:BK95) -> 0 | BO95: =BN95/BM95 -> 0 | BP95: =BK95/BN95 -> 
A96: 4 | B96: B Quinlan | C96: 30 | E96: 48 | F96: 157076 | G96: 33 | H96: Brendon Quinlan | I96: Bet | J96: N | K96: 2 | L96: Guiseley | M96: 10:17:00 | N96: =M96+TIME(7,0,0) -> 17:17:00 | BE96: NS | BF96: =COUNTIF(O96:BB96,0) -> 0 | BG96: =COUNTIF(O96:BB96,1) -> 0 | BH96: =COUNTIF(O96:BB96,2) -> 0 | BI96: =COUNTIF(O96:BB96,3) -> 0 | BJ96: =COUNTIF(O96:BB96,5) -> 0 | BK96: =COUNTIF(O96:BB96,10) -> 0 | BM96: =$D$9*$D$8 -> 40 | BN96: =SUM(BF96:BK96) -> 0 | BO96: =BN96/BM96 -> 0 | BP96: =BK96/BN96 -> 
A97: 100134 | B97: E Payne | C97: 30 | E97: 45 | F97: 140012 | G97: 36 | H97: Ian payne | I97: Gas | J97: N | K97: 2 | L97: Clitheroe | M97: 10:18:30 | N97: =M97+TIME(7,0,0) -> 17:18:30 | BE97: NS | BF97: =COUNTIF(O97:BB97,0) -> 0 | BG97: =COUNTIF(O97:BB97,1) -> 0 | BH97: =COUNTIF(O97:BB97,2) -> 0 | BI97: =COUNTIF(O97:BB97,3) -> 0 | BJ97: =COUNTIF(O97:BB97,5) -> 0 | BK97: =COUNTIF(O97:BB97,10) -> 0 | BM97: =$D$9*$D$8 -> 40 | BN97: =SUM(BF97:BK97) -> 0 | BO97: =BN97/BM97 -> 0 | BP97: =BK97/BN97 -> 
A98: . | E98: 40 | F98: 20610 | G98: 68 | H98: Patrick Plant | I98: Gas | J98: N | K98: 2 | L98: Mow Cop | M98: 10:34:30 | N98: =M98+TIME(7,0,0) -> 17:34:30 | BE98: NS | BF98: =COUNTIF(O98:BB98,0) -> 0 | BG98: =COUNTIF(O98:BB98,1) -> 0 | BH98: =COUNTIF(O98:BB98,2) -> 0 | BI98: =COUNTIF(O98:BB98,3) -> 0 | BJ98: =COUNTIF(O98:BB98,5) -> 0 | BK98: =COUNTIF(O98:BB98,10) -> 0 | BM98: =$D$9*$D$8 -> 40 | BN98: =SUM(BF98:BK98) -> 0 | BO98: =BN98/BM98 -> 0 | BP98: =BK98/BN98 -> 
A99: 922 | B99: DM Holmes | C99: 30 | E99: 49 | F99: 106011 | G99: 85 | H99: Darren Holmes | I99: 4RT | J99: N | K99: 2 | L99: Oakworth | M99: 10:43:30 | N99: =M99+TIME(7,0,0) -> 17:43:30 | BE99: ns | BF99: =COUNTIF(O99:BB99,0) -> 0 | BG99: =COUNTIF(O99:BB99,1) -> 0 | BH99: =COUNTIF(O99:BB99,2) -> 0 | BI99: =COUNTIF(O99:BB99,3) -> 0 | BJ99: =COUNTIF(O99:BB99,5) -> 0 | BK99: =COUNTIF(O99:BB99,10) -> 0 | BM99: =$D$9*$D$8 -> 40 | BN99: =SUM(BF99:BK99) -> 0 | BO99: =BN99/BM99 -> 0 | BP99: =BK99/BN99 -> 
A100: 22003 | B100: G tales | C100: 30 | E100: 58 | F100: 20600 | G100: 87 | H100: Graham Tales | I100: Mon | J100: I | K100: 2 | L100: Ilkley | M100: 10:44:30 | N100: =M100+TIME(7,0,0) -> 17:44:30 | BE100: ns | BF100: =COUNTIF(O100:BB100,0) -> 0 | BG100: =COUNTIF(O100:BB100,1) -> 0 | BH100: =COUNTIF(O100:BB100,2) -> 0 | BI100: =COUNTIF(O100:BB100,3) -> 0 | BJ100: =COUNTIF(O100:BB100,5) -> 0 | BK100: =COUNTIF(O100:BB100,10) -> 0 | BM100: =$D$9*$D$8 -> 40 | BN100: =SUM(BF100:BK100) -> 0 | BO100: =BN100/BM100 -> 0 | BP100: =BK100/BN100 -> 
A101: 100921 | B101: David Fallows | C101: 30 | E101: 87 | F101: 94526 | G101: 91 | H101: David Fallows | I101: Gas | J101: N | K101: 2 | L101: Bolton | M101: 10:46:30 | N101: =M101+TIME(7,0,0) -> 17:46:30 | BE101: ns | BF101: =COUNTIF(O101:BB101,0) -> 0 | BG101: =COUNTIF(O101:BB101,1) -> 0 | BH101: =COUNTIF(O101:BB101,2) -> 0 | BI101: =COUNTIF(O101:BB101,3) -> 0 | BJ101: =COUNTIF(O101:BB101,5) -> 0 | BK101: =COUNTIF(O101:BB101,10) -> 0 | BM101: =$D$9*$D$8 -> 40 | BN101: =SUM(BF101:BK101) -> 0 | BO101: =BN101/BM101 -> 0 | BP101: =BK101/BN101 -> 
A102: 100173 | B102: DM Coulson | C102: 30 | E102: 9 | F102: 77921 | G102: 82 | H102: Mark Coulson | I102: Gas | J102: E | K102: 2 | L102: York | M102: 10:42:00 | N102: =M102+TIME(7,0,0) -> 17:42:00 | O102: 0 | P102: 0 | Q102: 0 | R102: 0 | S102: 0 | T102: 3 | U102: 3 | V102: 0 | W102: 0 | X102: 0 | Y102: 0 | Z102: 2 | AA102: 1 | AB102: 3 | BE102: RET | BF102: =COUNTIF(O102:BB102,0) -> 9 | BG102: =COUNTIF(O102:BB102,1) -> 1 | BH102: =COUNTIF(O102:BB102,2) -> 1 | BI102: =COUNTIF(O102:BB102,3) -> 3 | BJ102: =COUNTIF(O102:BB102,5) -> 0 | BK102: =COUNTIF(O102:BB102,10) -> 0 | BM102: =$D$9*$D$8 -> 40 | BN102: =SUM(BF102:BK102) -> 14 | BO102: =BN102/BM102 -> 0.35 | BP102: =BK102/BN102 -> 0
A103: 422456 | B103: Mayne |Gas heatin | C103: 30 | E103: 11 | F103: 141824 | G103: 11 | H103: Darren Mayne | I103: Gas | J103: N | K103: 2 | L103: Grimsby | M103: 10:06:00 | N103: =M103+TIME(7,0,0) -> 17:06:00 | O103: 3 | P103: 0 | Q103: 3 | R103: 5 | S103: 3 | T103: 5 | U103: 5 | V103: 3 | W103: 1 | X103: 5 | Y103: 1 | Z103: 3 | AA103: 0 | AB103: 3 | AC103: 5 | AD103: 3 | AE103: 5 | AF103: 5 | AG103: 3 | AH103: 5 | AI103: 0 | AJ103: 3 | AK103: 3 | AL103: 1 | AM103: 1 | AN103: 5 | AO103: 2 | AP103: 5 | AQ103: 3 | AR103: 0 | AS103: 0 | AT103: 3 | AU103: 5 | AV103: 5 | AW103: 0 | BC103: 1 | BE103: rET | BF103: =COUNTIF(O103:BB103,0) -> 6 | BG103: =COUNTIF(O103:BB103,1) -> 4 | BH103: =COUNTIF(O103:BB103,2) -> 1 | BI103: =COUNTIF(O103:BB103,3) -> 12 | BJ103: =COUNTIF(O103:BB103,5) -> 12 | BK103: =COUNTIF(O103:BB103,10) -> 0 | BM103: =$D$9*$D$8 -> 40 | BN103: =SUM(BF103:BK103) -> 35 | BO103: =BN103/BM103 -> 0.875 | BP103: =BK103/BN103 -> 0
A104: 100175 | B104: DM Coulson | C104: 30 | E104: 8 | F104: 108669 | G104: 81 | H104: David Coulson | I104: Gas | J104: N | K104: 2 | L104: York | M104: 10:41:30 | N104: =M104+TIME(7,0,0) -> 17:41:30 | O104: 0 | P104: 0 | Q104: 1 | R104: 3 | S104: 3 | T104: 2 | U104: 5 | V104: 0 | W104: 0 | X104: 3 | Y104: 3 | Z104: 3 | AA104: 0 | AB104: 3 | BE104: RET | BF104: =COUNTIF(O104:BB104,0) -> 5 | BG104: =COUNTIF(O104:BB104,1) -> 1 | BH104: =COUNTIF(O104:BB104,2) -> 1 | BI104: =COUNTIF(O104:BB104,3) -> 6 | BJ104: =COUNTIF(O104:BB104,5) -> 1 | BK104: =COUNTIF(O104:BB104,10) -> 0 | BM104: =$D$9*$D$8 -> 40 | BN104: =SUM(BF104:BK104) -> 14 | BO104: =BN104/BM104 -> 0.35 | BP104: =BK104/BN104 -> 0
A105: . | B105: PAY PAL 28.88 | C105: 57.76 | E105: 74 | F105: 55969 | G105: 25 | H105: Colin Chapman | I105: She | J105: N | K105: 2 | L105: Maltby | M105: 10:13:00 | N105: =M105+TIME(7,0,0) -> 17:13:00 | O105: 2 | P105: 0 | Q105: 0 | R105: 3 | S105: 2 | T105: 3 | U105: 3 | V105: 0 | W105: 0 | X105: 2 | Y105: 1 | Z105: 1 | AA105: 2 | AB105: 3 | BC105: 2 | BE105: RET | BF105: =COUNTIF(O105:BB105,0) -> 4 | BG105: =COUNTIF(O105:BB105,1) -> 2 | BH105: =COUNTIF(O105:BB105,2) -> 4 | BI105: =COUNTIF(O105:BB105,3) -> 4 | BJ105: =COUNTIF(O105:BB105,5) -> 0 | BK105: =COUNTIF(O105:BB105,10) -> 0 | BM105: =$D$9*$D$8 -> 40 | BN105: =SUM(BF105:BK105) -> 14 | BO105: =BN105/BM105 -> 0.35 | BP105: =BK105/BN105 -> 0
A106: . | E106: 43 | F106: 105434 | G106: 70 | H106: Richard Whalley | I106: Gas | J106: N | K106: 2 | L106: Bignall End | M106: 10:36:00 | N106: =M106+TIME(7,0,0) -> 17:36:00 | O106: 0 | P106: 1 | Q106: 1 | R106: 3 | S106: 3 | T106: 2 | U106: 3 | V106: 3 | W106: 1 | X106: 1 | Y106: 3 | Z106: 3 | AA106: 0 | AB106: 2 | BE106: RET | BF106: =COUNTIF(O106:BB106,0) -> 2 | BG106: =COUNTIF(O106:BB106,1) -> 4 | BH106: =COUNTIF(O106:BB106,2) -> 2 | BI106: =COUNTIF(O106:BB106,3) -> 6 | BJ106: =COUNTIF(O106:BB106,5) -> 0 | BK106: =COUNTIF(O106:BB106,10) -> 0 | BM106: =$D$9*$D$8 -> 40 | BN106: =SUM(BF106:BK106) -> 14 | BO106: =BN106/BM106 -> 0.35 | BP106: =BK106/BN106 -> 0
BE107: =SUM(O107:BD107) -> 0 | BF107: =COUNTIF(O107:BB107,0) -> 0 | BG107: =COUNTIF(O107:BB107,1) -> 0 | BH107: =COUNTIF(O107:BB107,2) -> 0 | BI107: =COUNTIF(O107:BB107,3) -> 0 | BJ107: =COUNTIF(O107:BB107,5) -> 0 | BK107: =COUNTIF(O107:BB107,10) -> 0 | BM107: =$D$9*$D$8 -> 40 | BN107: =SUM(BF107:BK107) -> 0 | BO107: =BN107/BM107 -> 0 | BP107: =BK107/BN107 -> 
BE108: 0 | BF108: 0 | BG108: 0 | BH108: 0 | BI108: 0 | BJ108: 0 | BK108: 0 | BM108: 40 | BN108: 0 | BO108: 0
BE114: 0 | BF114: 0 | BG114: 0 | BH114: 0 | BI114: 0 | BJ114: 0 | BK114: 0 | BM114: 40 | BN114: 0 | BO114: 0
N115: 0 | O115: =COUNTIF(O15:O114,0) -> 43 | P115: 65 | Q115: 39 | R115: 22 | S115: 13 | T115: 15 | U115: 10 | V115: 42 | W115: 35 | X115: 26 | Y115: 30 | Z115: 26 | AA115: 41 | AB115: 20 | AC115: 25 | AD115: 32 | AE115: 38 | AF115: 37 | AG115: 36 | AH115: 1 | AI115: 49 | AJ115: 18 | AK115: 24 | AL115: 56 | AM115: 61 | AN115: 55 | AO115: 50 | AP115: 41 | AQ115: 42 | AR115: 58 | AS115: 72 | AT115: 14 | AU115: 42 | AV115: 50 | AW115: 68 | AX115: 26 | AY115: 36 | AZ115: 11 | BA115: 35 | BB115: 12
N116: 1 | O116: =COUNTIF(O15:O114,1) -> 28 | P116: 9 | Q116: 24 | R116: 12 | S116: 17 | T116: 17 | U116: 11 | V116: 17 | W116: 25 | X116: 16 | Y116: 22 | Z116: 17 | AA116: 10 | AB116: 25 | AC116: 9 | AD116: 21 | AE116: 14 | AF116: 17 | AG116: 12 | AH116: 11 | AI116: 12 | AJ116: 18 | AK116: 19 | AL116: 7 | AM116: 9 | AN116: 6 | AO116: 8 | AP116: 8 | AQ116: 10 | AR116: 6 | AS116: 0 | AT116: 21 | AU116: 15 | AV116: 7 | AW116: 1 | AX116: 25 | AY116: 13 | AZ116: 11 | BA116: 19 | BB116: 4
N117: 2 | O117: =COUNTIF(O15:O114,2) -> 5 | P117: 2 | Q117: 6 | R117: 12 | S117: 16 | T117: 13 | U117: 6 | V117: 5 | W117: 6 | X117: 15 | Y117: 7 | Z117: 7 | AA117: 7 | AB117: 12 | AC117: 6 | AD117: 11 | AE117: 7 | AF117: 6 | AG117: 10 | AH117: 10 | AI117: 1 | AJ117: 12 | AK117: 12 | AL117: 2 | AM117: 1 | AN117: 5 | AO117: 4 | AP117: 6 | AQ117: 6 | AR117: 1 | AS117: 0 | AT117: 7 | AU117: 7 | AV117: 6 | AW117: 1 | AX117: 8 | AY117: 9 | AZ117: 10 | BA117: 7 | BB117: 2
N118: 3 | O118: =COUNTIF(O15:O114,3) -> 7 | P118: 2 | Q118: 13 | R118: 29 | S118: 32 | T118: 28 | U118: 40 | V118: 14 | W118: 12 | X118: 16 | Y118: 18 | Z118: 29 | AA118: 12 | AB118: 18 | AC118: 26 | AD118: 7 | AE118: 7 | AF118: 7 | AG118: 11 | AH118: 36 | AI118: 6 | AJ118: 14 | AK118: 12 | AL118: 4 | AM118: 0 | AN118: 0 | AO118: 3 | AP118: 9 | AQ118: 9 | AR118: 5 | AS118: 0 | AT118: 24 | AU118: 7 | AV118: 7 | AW118: 0 | AX118: 7 | AY118: 6 | AZ118: 27 | BA118: 9 | BB118: 20
N119: 5 | O119: =COUNTIF(O15:O114,5) -> 0 | P119: 5 | Q119: 1 | R119: 7 | S119: 5 | T119: 9 | U119: 15 | V119: 4 | W119: 4 | X119: 6 | Y119: 2 | Z119: 0 | AA119: 6 | AB119: 1 | AC119: 7 | AD119: 2 | AE119: 7 | AF119: 6 | AG119: 4 | AH119: 14 | AI119: 3 | AJ119: 9 | AK119: 5 | AL119: 3 | AM119: 1 | AN119: 6 | AO119: 7 | AP119: 8 | AQ119: 5 | AR119: 2 | AS119: 0 | AT119: 5 | AU119: 1 | AV119: 2 | AW119: 2 | AX119: 5 | AY119: 7 | AZ119: 12 | BA119: 1 | BB119: 33
N120: 10 | O120: =COUNTIF(O15:O114,10) -> 0 | P120: 0 | Q120: 0 | R120: 0 | S120: 0 | T120: 0 | U120: 0 | V120: 0 | W120: 0 | X120: 1 | Y120: 0 | Z120: 0 | AA120: 0 | AB120: 0 | AC120: 0 | AD120: 0 | AE120: 0 | AF120: 0 | AG120: 0 | AH120: 0 | AI120: 0 | AJ120: 0 | AK120: 0 | AL120: 0 | AM120: 0 | AN120: 0 | AO120: 0 | AP120: 0 | AQ120: 0 | AR120: 0 | AS120: 0 | AT120: 0 | AU120: 0 | AV120: 0 | AW120: 0 | AX120: 0 | AY120: 0 | AZ120: 0 | BA120: 0 | BB120: 0

Sheet Time On Off (hidden)

Sheet Sign On (hidden)

Sheet Sign Off (hidden)

Sheet 2014 Entry (hidden)
M1: Flame Thrower | P1: Fountains Fell | S1: Litton Track | V1: Ellershaw Farm | Z1: Arncliffe Scree | AD1: Hawkswick | AE1: Sleets | AG1: Hagg Gill | AK1: Yockenthwaite | AO1: Raisgill | AQ1: Bouther Gill | AS1: Wilks Field | AV1: Robbo's A | AX1: Newshot Gill | AZ1: Halton Gill
A2: Chq No | B2: Name | C2: Amount | D2: Start | E2: Finish | F2: ACU | G2: No. | H2: Name | I2: Bike | J2: CL | K2: CO | L2: Town | M2: 1 | N2: 2 | O2: 3 | P2: 4 | Q2: 5 | R2: 6 | S2: 7 | T2: 8 | U2: 9 | V2: 10 | W2: 11 | X2: 12 | Y2: 13 | Z2: 14 | AA2: 15 | AB2: 16 | AC2: 17 | AD2: 18 | AE2: 19 | AF2: 20 | AG2: 21 | AH2: 22 | AI2: 23 | AJ2: 24 | AK2: 25 | AL2: 26 | AM2: 27 | AN2: 28 | AO2: 29 | AP2: 30 | AQ2: 31 | AR2: 32 | AS2: 33 | AT2: 34 | AU2: 35 | AV2: 36 | AW2: 37 | AX2: 38 | AY2: 39 | AZ2: 40 | BA2: late start | BB2: late finish | BC2: total | BD2: 0s | BE2: 1s | BF2: 2s | BG2: 3s | BH2: 5s | BI2: 10s | BK2: Check 1 | BL2: Check2
D3: 10:01:00 | E3: =D3+TIME(7,0,0) -> 17:01:00 | G3: 1 | BC3: =SUM(M3:BB3) -> 0 | BD3: =COUNTIF(M3:AZ3,0) -> 0 | BE3: =COUNTIF(M3:AZ3,1) -> 0 | BF3: =COUNTIF(M3:AZ3,2) -> 0 | BG3: =COUNTIF(M3:AZ3,3) -> 0 | BH3: =COUNTIF(M3:AZ3,5) -> 0 | BI3: =COUNTIF(M3:AZ3,10) -> 0 | BK3: =COUNTA(M3:AZ3) -> 0 | BL3: =SUM(BD3:BI3) -> 0
D4: 10:01:30 | E4: =D4+TIME(7,0,0) -> 17:01:30 | G4: 2 | BC4: 0 | BD4: 0 | BE4: 0 | BF4: 0 | BG4: 0 | BH4: 0 | BI4: 0 | BK4: 0 | BL4: 0
D5: 10:02:00 | E5: 17:02:00 | G5: 3 | BC5: 0 | BD5: 0 | BE5: 0 | BF5: 0 | BG5: 0 | BH5: 0 | BI5: 0 | BK5: 0 | BL5: 0
D6: 10:02:30 | E6: 17:02:30 | G6: 4 | BC6: 0 | BD6: 0 | BE6: 0 | BF6: 0 | BG6: 0 | BH6: 0 | BI6: 0 | BK6: 0 | BL6: 0
A7: 100605 | B7: JP Banks | C7: 84 | D7: 10:03:00 | E7: 17:03:00 | F7: 148919 | G7: 5 | H7: John Banks | I7: Mon | J7: N | K7: B | L7: Thirsk | BC7: 0 | BD7: 0 | BE7: 0 | BF7: 0 | BG7: 0 | BH7: 0 | BI7: 0 | BK7: 0 | BL7: 0
D8: 10:03:30 | E8: 17:03:30 | F8: 10991 | G8: 6 | H8: David Hardy | I8: Mon | J8: N | K8: B | L8: Sutton on Forest | BC8: 0 | BD8: 0 | BE8: 0 | BF8: 0 | BG8: 0 | BH8: 0 | BI8: 0 | BK8: 0 | BL8: 0
D9: 10:04:00 | E9: 17:04:00 | F9: 64977 | G9: 7 | H9: Richard Sanderson | I9: Gas | J9: N | K9: B | L9: Eastwold | BC9: 0 | BD9: 0 | BE9: 0 | BF9: 0 | BG9: 0 | BH9: 0 | BI9: 0 | BK9: 0 | BL9: 0
A10: 299803 | B10: Yorkshire BS | C10: 28 | D10: 10:04:30 | E10: 17:04:30 | F10: 5957 | G10: 8 | H10: Andrew Jackson | I10: Gas | J10: N | K10: B | L10: Thornhill | BC10: 0 | BD10: 0 | BE10: 0 | BF10: 0 | BG10: 0 | BH10: 0 | BI10: 0 | BK10: 0 | BL10: 0
A11: 100320 | B11: JH Lee | C11: 56 | D11: 10:05:00 | E11: 17:05:00 | F11: 6173 | G11: 9 | H11: Jonathan Lee | I11: She | J11: E | K11: B | L11: Higham Ferrers | BC11: 0 | BD11: 0 | BE11: 0 | BF11: 0 | BG11: 0 | BH11: 0 | BI11: 0 | BK11: 0 | BL11: 0
D12: 10:05:30 | E12: 17:05:30 | F12: 72694 | G12: 10 | H12: Steve Swanson | I12: Bet | J12: E | K12: B | L12: Finedon | BC12: 0 | BD12: 0 | BE12: 0 | BF12: 0 | BG12: 0 | BH12: 0 | BI12: 0 | BK12: 0 | BL12: 0
A13: 100051 | B13: I Rutter | C13: 56 | D13: 10:06:00 | E13: 17:06:00 | F13: 15597 | G13: 11 | H13: Ian Rutter | I13: Gas | J13: N | K13: B | L13: Hunwick | BC13: 0 | BD13: 0 | BE13: 0 | BF13: 0 | BG13: 0 | BH13: 0 | BI13: 0 | BK13: 0 | BL13: 0
D14: 10:06:30 | E14: 17:06:30 | F14: 8866 | G14: 12 | H14: Geoff Fielding | I14: Gas | J14: N | K14: B | L14: Hunwick | BC14: 0 | BD14: 0 | BE14: 0 | BF14: 0 | BG14: 0 | BH14: 0 | BI14: 0 | BK14: 0 | BL14: 0
A15: 100147 | B15: Mr DM Coulson | C15: 28 | D15: 10:07:00 | E15: 17:07:00 | F15: 108669 | G15: 13 | H15: David Coulson | I15: Gas | J15: N | K15: B | L15: York | BC15: 0 | BD15: 0 | BE15: 0 | BF15: 0 | BG15: 0 | BH15: 0 | BI15: 0 | BK15: 0 | BL15: 0
A16: 100145 | B16: Mr DM Coulson | C16: 28 | D16: 10:07:30 | E16: 17:07:30 | F16: 44656 | G16: 14 | H16: Alan Carr | I16: Gas | J16: E | K16: B | L16: Scarborough | BC16: 0 | BD16: 0 | BE16: 0 | BF16: 0 | BG16: 0 | BH16: 0 | BI16: 0 | BK16: 0 | BL16: 0
A17: 100146 | B17: Mr DM Coulson | C17: 28 | D17: 10:08:00 | E17: 17:08:00 | F17: 77921 | G17: 15 | H17: Mark Coulson | I17: Gas | J17: E | K17: B | L17: York | BC17: 0 | BD17: 0 | BE17: 0 | BF17: 0 | BG17: 0 | BH17: 0 | BI17: 0 | BK17: 0 | BL17: 0
A18: 22003 | B18: P Kershaw | C18: 28 | D18: 10:08:30 | E18: 17:08:30 | F18: 108787 | G18: 16 | H18: Mark Taylor | I18: Bet | J18: I | K18: B | L18: Scarborough | BC18: 0 | BD18: 0 | BE18: 0 | BF18: 0 | BG18: 0 | BH18: 0 | BI18: 0 | BK18: 0 | BL18: 0
A19: 22004 | B19: P Kershaw | C19: 28 | D19: 10:09:00 | E19: 17:09:00 | F19: 25414 | G19: 17 | H19: Simon Kershaw | I19: Bet | J19: E | K19: A | L19: Scarborough | BC19: 0 | BD19: 0 | BE19: 0 | BF19: 0 | BG19: 0 | BH19: 0 | BI19: 0 | BK19: 0 | BL19: 0
A20: 264 | B20: P Scott | C20: 28 | D20: 10:09:30 | E20: 17:09:30 | F20: 108543 | G20: 18 | H20: Phil Scott | I20: Gas | J20: N | K20: B | L20: Barrowford | BC20: 0 | BD20: 0 | BE20: 0 | BF20: 0 | BG20: 0 | BH20: 0 | BI20: 0 | BK20: 0 | BL20: 0
A21: 100087 | B21: R Barber | C21: 28 | D21: 10:10:00 | E21: 17:10:00 | F21: 77120 | G21: 19 | H21: Rob Barber | I21: Bet | J21: N | K21: B | L21: Skipton | BC21: 0 | BD21: 0 | BE21: 0 | BF21: 0 | BG21: 0 | BH21: 0 | BI21: 0 | BK21: 0 | BL21: 0
A22: 100068 | B22: JJ Moorhouse | C22: 28 | D22: 10:10:30 | E22: 17:10:30 | F22: 131789 | G22: 20 | H22: James Moorhouse | I22: Gas | J22: N | K22: B | L22: Skipton | BC22: 0 | BD22: 0 | BE22: 0 | BF22: 0 | BG22: 0 | BH22: 0 | BI22: 0 | BK22: 0 | BL22: 0
A23: 100122 | B23: A Barber | C23: 28 | D23: 10:11:00 | E23: 17:11:00 | F23: 112591 | G23: 21 | H23: Ant Barber | I23: Bet | J23: N | K23: B | L23: Skipton | BC23: 0 | BD23: 0 | BE23: 0 | BF23: 0 | BG23: 0 | BH23: 0 | BI23: 0 | BK23: 0 | BL23: 0
A24: 22071 | B24: Alan Mudd Construction | C24: 28 | D24: 10:11:30 | E24: 17:11:30 | F24: 113572 | G24: 22 | H24: Alan Mudd | I24: Gas | J24: N | K24: B | L24: Skipton | BC24: 0 | BD24: 0 | BE24: 0 | BF24: 0 | BG24: 0 | BH24: 0 | BI24: 0 | BK24: 0 | BL24: 0
A25: 100199 | B25: Mr MC ward | C25: 28 | D25: 10:12:00 | E25: 17:12:00 | F25: 10514 | G25: 23 | H25: Michael Ward | I25: Bet | J25: N | K25: B | L25: Bradford | BC25: 0 | BD25: 0 | BE25: 0 | BF25: 0 | BG25: 0 | BH25: 0 | BI25: 0 | BK25: 0 | BL25: 0
A26: 100130 | B26: N Cockerham | C26: 28 | D26: 10:12:30 | E26: 17:12:30 | F26: 99444 | G26: 24 | H26: Nigel Cockerham | I26: She | J26: N | K26: B | L26: Castleford | BC26: 0 | BD26: 0 | BE26: 0 | BF26: 0 | BG26: 0 | BH26: 0 | BI26: 0 | BK26: 0 | BL26: 0
A27: 100112 | B27: RE Thornton | C27: 28 | D27: 10:13:00 | E27: 17:13:00 | F27: 79834 | G27: 25 | H27: Richard Thornton | I27: Gas | J27: N | K27: B | L27: Leeds | BC27: 0 | BD27: 0 | BE27: 0 | BF27: 0 | BG27: 0 | BH27: 0 | BI27: 0 | BK27: 0 | BL27: 0
A28: 22130 | B28: R Armstrong | C28: 28 | D28: 10:13:30 | E28: 17:13:30 | F28: 124986 | G28: 26 | H28: Richard Armstrong | I28: Bet | J28: N | K28: B | L28: Silsden | BC28: 0 | BD28: 0 | BE28: 0 | BF28: 0 | BG28: 0 | BH28: 0 | BI28: 0 | BK28: 0 | BL28: 0
A29: 100751 | B29: M R Whelan | C29: 28 | D29: 10:14:00 | E29: 17:14:00 | F29: 77960 | G29: 27 | H29: Mark Whelan | I29: 4RT | J29: N | K29: B | L29: Aberford | BC29: 0 | BD29: 0 | BE29: 0 | BF29: 0 | BG29: 0 | BH29: 0 | BI29: 0 | BK29: 0 | BL29: 0
A30: TO PAY | D30: 10:14:30 | E30: 17:14:30 | F30: 126272 | G30: 28 | H30: Richard Midgley | I30: Bet | J30: N | K30: B | L30: Silsden | BC30: 0 | BD30: 0 | BE30: 0 | BF30: 0 | BG30: 0 | BH30: 0 | BI30: 0 | BK30: 0 | BL30: 0
A31: TO PAY | D31: 10:15:00 | E31: 17:15:00 | G31: 29 | H31: Tim Woodhead | I31: She | J31: N | K31: B | L31: Silsden | BC31: 0 | BD31: 0 | BE31: 0 | BF31: 0 | BG31: 0 | BH31: 0 | BI31: 0 | BK31: 0 | BL31: 0
A32: BACS | C32: 140 | D32: 10:15:30 | E32: 17:15:30 | F32: 118825 | G32: 30 | H32: Stephen Bennett | I32: Bet | J32: N | K32: B | L32: Shilden | BC32: 0 | BD32: 0 | BE32: 0 | BF32: 0 | BG32: 0 | BH32: 0 | BI32: 0 | BK32: 0 | BL32: 0
D33: 10:16:00 | E33: 17:16:00 | F33: 134345 | G33: 31 | H33: Ernie Byrne | I33: Bet | J33: N | K33: B | L33: Spennymoor | BC33: 0 | BD33: 0 | BE33: 0 | BF33: 0 | BG33: 0 | BH33: 0 | BI33: 0 | BK33: 0 | BL33: 0
D34: 10:16:30 | E34: 17:16:30 | F34: 118824 | G34: 32 | H34: John Bennett | I34: Oss | J34: N | K34: B | L34: Shilden | BC34: 0 | BD34: 0 | BE34: 0 | BF34: 0 | BG34: 0 | BH34: 0 | BI34: 0 | BK34: 0 | BL34: 0
D35: 10:17:00 | E35: 17:17:00 | F35: 147526 | G35: 33 | H35: Richard Hawes | I35: Bet | J35: N | K35: B | L35: Kiphill Stanley | BC35: 0 | BD35: 0 | BE35: 0 | BF35: 0 | BG35: 0 | BH35: 0 | BI35: 0 | BK35: 0 | BL35: 0
D36: 10:17:30 | E36: 17:17:30 | F36: 9036 | G36: 34 | H36: Scott Mayhew | I36: She | J36: N | K36: B | L36: Bishop Middleham | BC36: 0 | BD36: 0 | BE36: 0 | BF36: 0 | BG36: 0 | BH36: 0 | BI36: 0 | BK36: 0 | BL36: 0
A37: 100085 | B37: IE Payne | C37: 28 | D37: 10:18:00 | E37: 17:18:00 | F37: 140012 | G37: 35 | H37: Ian Payne | I37: Oss | J37: N | K37: B | L37: Clitheroe | BC37: 0 | BD37: 0 | BE37: 0 | BF37: 0 | BG37: 0 | BH37: 0 | BI37: 0 | BK37: 0 | BL37: 0
A38: CASH | C38: 28 | D38: 10:18:30 | E38: 17:18:30 | F38: 122283 | G38: 36 | H38: Stephen Smith | I38: Gas | J38: N | K38: B | L38: Barnoldswick | BC38: 0 | BD38: 0 | BE38: 0 | BF38: 0 | BG38: 0 | BH38: 0 | BI38: 0 | BK38: 0 | BL38: 0
A39: CASH | C39: 30 | D39: 10:19:00 | E39: 17:19:00 | F39: 122284 | G39: 37 | H39: Tom Smith | I39: 4RT | J39: I | K39: B | L39: Glusburn | BC39: 0 | BD39: 0 | BE39: 0 | BF39: 0 | BG39: 0 | BH39: 0 | BI39: 0 | BK39: 0 | BL39: 0
A40: CASH | C40: 30 | D40: 10:19:30 | E40: 17:19:30 | F40: 25543 | G40: 38 | H40: Anthony Farrow | I40: Mon | J40: I | K40: B | L40: Nelsom | BC40: 0 | BD40: 0 | BE40: 0 | BF40: 0 | BG40: 0 | BH40: 0 | BI40: 0 | BK40: 0 | BL40: 0
A41: 199 | B41: L Black | C41: 168 | D41: 10:20:00 | E41: 17:20:00 | F41: 129472 | G41: 39 | H41: Lee Black | I41: Gas | J41: N | K41: B | L41: Waterthorpe | BC41: 0 | BD41: 0 | BE41: 0 | BF41: 0 | BG41: 0 | BH41: 0 | BI41: 0 | BK41: 0 | BL41: 0
D42: 10:20:30 | E42: 17:20:30 | F42: 13156 | G42: 40 | H42: Lewis Black | I42: Gas | J42: N | K42: A | L42: Stannington | BC42: 0 | BD42: 0 | BE42: 0 | BF42: 0 | BG42: 0 | BH42: 0 | BI42: 0 | BK42: 0 | BL42: 0
D43: 10:21:00 | E43: 17:21:00 | F43: 31017 | G43: 41 | H43: Oliver Twigg | I43: Gas | J43: N | K43: B | L43: Rotherham | BC43: 0 | BD43: 0 | BE43: 0 | BF43: 0 | BG43: 0 | BH43: 0 | BI43: 0 | BK43: 0 | BL43: 0
D44: 10:21:30 | E44: 17:21:30 | F44: 112584 | G44: 42 | H44: Andy Turner | I44: Bet | J44: N | K44: B | L44: Barnsley | BC44: 0 | BD44: 0 | BE44: 0 | BF44: 0 | BG44: 0 | BH44: 0 | BI44: 0 | BK44: 0 | BL44: 0
D45: 10:22:00 | E45: 17:22:00 | F45: 20482 | G45: 43 | H45: Gavin Black | I45: 4RT | J45: I | K45: A | L45: Barnsley | BC45: 0 | BD45: 0 | BE45: 0 | BF45: 0 | BG45: 0 | BH45: 0 | BI45: 0 | BK45: 0 | BL45: 0
D46: 10:22:30 | E46: 17:22:30 | F46: 118207 | G46: 44 | H46: Richard Hardwick | I46: Gas | J46: N | K46: B | L46: Chapletown | BC46: 0 | BD46: 0 | BE46: 0 | BF46: 0 | BG46: 0 | BH46: 0 | BI46: 0 | BK46: 0 | BL46: 0
A47: 26 | B47: Sam Boocock | C47: 28 | D47: 10:23:00 | E47: 17:23:00 | F47: 88036 | G47: 45 | H47: Sam Boocock | I47: She | J47: N | K47: A | L47: Halifax | BC47: 0 | BD47: 0 | BE47: 0 | BF47: 0 | BG47: 0 | BH47: 0 | BI47: 0 | BK47: 0 | BL47: 0
A48: 100151 | B48: NP Cahill | C48: 28 | D48: 10:23:30 | E48: 17:23:30 | F48: 114327 | G48: 46 | H48: Sam Cahill | I48: She | J48: N | K48: A | L48: Ilkley | BC48: 0 | BD48: 0 | BE48: 0 | BF48: 0 | BG48: 0 | BH48: 0 | BI48: 0 | BK48: 0 | BL48: 0
A49: 50 | B49: Gary Rushton | C49: 28 | D49: 10:24:00 | E49: 17:24:00 | F49: 101963 | G49: 47 | H49: Thomas Rushton | I49: Bet | J49: I | K49: A | L49: Colne | BC49: 0 | BD49: 0 | BE49: 0 | BF49: 0 | BG49: 0 | BH49: 0 | BI49: 0 | BK49: 0 | BL49: 0
A50: 100046 | B50: DJ Gamble | C50: 28 | D50: 10:24:30 | E50: 17:24:30 | F50: 63776 | G50: 48 | H50: Danny Gamble | I50: Bet | J50: E | K50: A | L50: Harrogate | BC50: 0 | BD50: 0 | BE50: 0 | BF50: 0 | BG50: 0 | BH50: 0 | BI50: 0 | BK50: 0 | BL50: 0
A51: TO PAY | D51: 10:25:00 | E51: 17:25:00 | G51: 49 | H51: Nathan Wriggleworth | I51: She | J51: E | K51: A | L51: Cowling | BC51: 0 | BD51: 0 | BE51: 0 | BF51: 0 | BG51: 0 | BH51: 0 | BI51: 0 | BK51: 0 | BL51: 0
A52: 100372 | B52: MJ Reynolds | C52: 28 | D52: 10:25:30 | E52: 17:25:30 | F52: 90659 | G52: 50 | H52: William Reynolds | I52: Bet | J52: E | K52: A | L52: Skeeby | BC52: 0 | BD52: 0 | BE52: 0 | BF52: 0 | BG52: 0 | BH52: 0 | BI52: 0 | BK52: 0 | BL52: 0
A53: 196 | B53: P waite | C53: 28 | D53: 10:26:00 | E53: 17:26:00 | F53: 109873 | G53: 51 | H53: Rob Waite | I53: Bet | J53: E | K53: A | L53: Darlington | BC53: 0 | BD53: 0 | BE53: 0 | BF53: 0 | BG53: 0 | BH53: 0 | BI53: 0 | BK53: 0 | BL53: 0
A54: 305 | B54: Ian Austermuhle | C54: 28 | D54: 10:26:30 | E54: 17:26:30 | F54: 5401 | G54: 52 | H54: Ian Austermuhle | I54: Bet | J54: E | K54: A | L54: Malton | BC54: 0 | BD54: 0 | BE54: 0 | BF54: 0 | BG54: 0 | BH54: 0 | BI54: 0 | BK54: 0 | BL54: 0
A55: 10 | B55: RH Crosby | C55: 28 | D55: 10:27:00 | E55: 17:27:00 | G55: 53 | H55: Ross Crosby | I55: Bet | J55: E | K55: A | L55: Trawden | BC55: 0 | BD55: 0 | BE55: 0 | BF55: 0 | BG55: 0 | BH55: 0 | BI55: 0 | BK55: 0 | BL55: 0
D56: 10:27:30 | E56: 17:27:30 | G56: 54 | BC56: 0 | BD56: 0 | BE56: 0 | BF56: 0 | BG56: 0 | BH56: 0 | BI56: 0 | BK56: 0 | BL56: 0
A57: 18 | B57: SD Traves | C57: 28 | D57: 10:28:00 | E57: 17:28:00 | G57: 55 | H57: Simon Traves | I57: She | J57: E | K57: A | L57: Salby | BC57: 0 | BD57: 0 | BE57: 0 | BF57: 0 | BG57: 0 | BH57: 0 | BI57: 0 | BK57: 0 | BL57: 0
A58: 100032 | B58: AG Frith | C58: 28 | D58: 10:28:30 | E58: 17:28:30 | F58: 103690 | G58: 56 | H58: Adam Frith | I58: Gas | J58: I | K58: A | L58: Horncastle | BC58: 0 | BD58: 0 | BE58: 0 | BF58: 0 | BG58: 0 | BH58: 0 | BI58: 0 | BK58: 0 | BL58: 0
A59: 148 | B59: PS Marwood | C59: 28 | D59: 10:29:00 | E59: 17:29:00 | F59: 102454 | G59: 57 | H59: Paul Marwood | I59: She | J59: I | K59: B | L59: Alford | BC59: 0 | BD59: 0 | BE59: 0 | BF59: 0 | BG59: 0 | BH59: 0 | BI59: 0 | BK59: 0 | BL59: 0
A60: 80007 | B60: MJ Awcock | C60: 28 | D60: 10:29:30 | E60: 17:29:30 | F60: 116235 | G60: 58 | H60: Mark Awcock | I60: Bet | J60: I | K60: B | L60: Gt Gonerby | BC60: 0 | BD60: 0 | BE60: 0 | BF60: 0 | BG60: 0 | BH60: 0 | BI60: 0 | BK60: 0 | BL60: 0
A61: 102142 | B61: Rob Mcelnea | C61: 28 | D61: 10:30:00 | E61: 17:30:00 | F61: 126271 | G61: 59 | H61: Rob McElner | I61: Bet | J61: I | K61: B | L61: Lincoln | BC61: 0 | BD61: 0 | BE61: 0 | BF61: 0 | BG61: 0 | BH61: 0 | BI61: 0 | BK61: 0 | BL61: 0
D62: 10:30:30 | E62: 17:30:30 | G62: 60 | BC62: 0 | BD62: 0 | BE62: 0 | BF62: 0 | BG62: 0 | BH62: 0 | BI62: 0 | BK62: 0 | BL62: 0
A63: BACS | C63: 28 | D63: 10:31:00 | E63: 17:31:00 | F63: 116820 | G63: 61 | H63: Andrew Curwen | I63: She | J63: I | K63: B | L63: Scorton | BC63: 0 | BD63: 0 | BE63: 0 | BF63: 0 | BG63: 0 | BH63: 0 | BI63: 0 | BK63: 0 | BL63: 0
A64: Cash | D64: 10:31:30 | E64: 17:31:30 | F64: 103638 | G64: 62 | H64: Lee Whelan | I64: 4RT | J64: E | K64: A | L64: Waterfoot | BC64: 0 | BD64: 0 | BE64: 0 | BF64: 0 | BG64: 0 | BH64: 0 | BI64: 0 | BK64: 0 | BL64: 0
A65: Cash | D65: 10:32:00 | E65: 17:32:00 | G65: 63 | H65: Steve Shutt | I65: Bet | J65: N | K65: B | L65: Blackburn | BC65: 0 | BD65: 0 | BE65: 0 | BF65: 0 | BG65: 0 | BH65: 0 | BI65: 0 | BK65: 0 | BL65: 0
A66: Cash | D66: 10:32:30 | E66: 17:32:30 | F66: 27530 | G66: 64 | H66: Daniel Ralphs | I66: 4RT | J66: N | K66: B | L66: Accrington | BC66: 0 | BD66: 0 | BE66: 0 | BF66: 0 | BG66: 0 | BH66: 0 | BI66: 0 | BK66: 0 | BL66: 0
A67: 2229 | B67: CM Wilkinson | C67: 28 | D67: 10:33:00 | E67: 17:33:00 | F67: 133233 | G67: 65 | H67: John Wilkinson | I67: Mon | J67: N | K67: B | L67: Rochdale | BC67: =SUM(M67:BB67) -> 0 | BD67: =COUNTIF(M67:AZ67,0) -> 0 | BE67: =COUNTIF(M67:AZ67,1) -> 0 | BF67: =COUNTIF(M67:AZ67,2) -> 0 | BG67: =COUNTIF(M67:AZ67,3) -> 0 | BH67: =COUNTIF(M67:AZ67,5) -> 0 | BI67: =COUNTIF(M67:AZ67,10) -> 0 | BK67: =COUNTA(M67:AZ67) -> 0 | BL67: =SUM(BD67:BI67) -> 0
A68: 41 | B68: SC Collinson | C68: 28 | D68: 10:33:30 | E68: =D68+TIME(7,0,0) -> 17:33:30 | F68: 130439 | G68: 66 | H68: Stephen Collinson | I68: Bet | J68: N | K68: B | L68: Gt Harwood | BC68: 0 | BD68: 0 | BE68: 0 | BF68: 0 | BG68: 0 | BH68: 0 | BI68: 0 | BK68: 0 | BL68: 0
A69: 102059 | B69: BNI Construction | C69: 28 | D69: 10:34:00 | E69: 17:34:00 | F69: 124050 | G69: 67 | H69: Julian Ingham | I69: Bet | J69: N | K69: B | L69: Ramsbottom | BC69: 0 | BD69: 0 | BE69: 0 | BF69: 0 | BG69: 0 | BH69: 0 | BI69: 0 | BK69: 0 | BL69: 0
A70: 22049 | B70: BNI Builders | C70: 28 | D70: 10:34:30 | E70: 17:34:30 | F70: 122607 | G70: 68 | H70: Oliver Ingham | I70: She | J70: N | K70: B | L70: Bacup | BC70: 0 | BD70: 0 | BE70: 0 | BF70: 0 | BG70: 0 | BH70: 0 | BI70: 0 | BK70: 0 | BL70: 0
B71: Ben Johnson | D71: 10:35:00 | E71: 17:35:00 | G71: 69 | H71: Ben Johnson | I71: She | J71: E | K71: B | L71: Shaffesbury | BC71: 0 | BD71: 0 | BE71: 0 | BF71: 0 | BG71: 0 | BH71: 0 | BI71: 0 | BK71: 0 | BL71: 0
A72: 176 | B72: Oliver ward | C72: 56 | D72: 10:35:30 | E72: 17:35:30 | F72: 51096 | G72: 70 | H72: Oliver Ward | I72: She | J72: N | K72: B | L72: Bruton | BC72: 0 | BD72: 0 | BE72: 0 | BF72: 0 | BG72: 0 | BH72: 0 | BI72: 0 | BK72: 0 | BL72: 0
A73: 100434 | B73: GR Tales | C73: 28 | D73: 10:36:00 | E73: 17:36:00 | F73: 20600 | G73: 71 | H73: Graham Tales | I73: She | J73: I | K73: B | L73: Ilkley | BC73: 0 | BD73: 0 | BE73: 0 | BF73: 0 | BG73: 0 | BH73: 0 | BI73: 0 | BK73: 0 | BL73: 0
A74: 100743 | B74: A Tales | C74: 28 | D74: 10:36:30 | E74: 17:36:30 | F74: 63953 | G74: 72 | H74: Andy Tales | I74: Bet | J74: N | K74: B | L74: Ilkley | BC74: 0 | BD74: 0 | BE74: 0 | BF74: 0 | BG74: 0 | BH74: 0 | BI74: 0 | BK74: 0 | BL74: 0
A75: 3241 | B75: Mr W Wood | C75: 56 | D75: 10:37:00 | E75: 17:37:00 | F75: 6258 | G75: 73 | H75: William Wood | I75: Bet | J75: N | K75: B | L75: Rotherham | BC75: 0 | BD75: 0 | BE75: 0 | BF75: 0 | BG75: 0 | BH75: 0 | BI75: 0 | BK75: 0 | BL75: 0
D76: 10:37:30 | E76: 17:37:30 | F76: 16260 | G76: 74 | H76: Ian Haigh | I76: Gas | J76: N | K76: B | L76: Huddersfield | BC76: 0 | BD76: 0 | BE76: 0 | BF76: 0 | BG76: 0 | BH76: 0 | BI76: 0 | BK76: 0 | BL76: 0
A77: 958 | B77: Mr C Tolson | C77: 38 | D77: 10:38:00 | E77: 17:38:00 | F77: 19975 | G77: 75 | H77: Chris Tolson | I77: Bet | J77: N | K77: B | L77: Huddersfield | BC77: 0 | BD77: 0 | BE77: 0 | BF77: 0 | BG77: 0 | BH77: 0 | BI77: 0 | BK77: 0 | BL77: 0
A78: BACS | C78: 28 | D78: 10:38:30 | E78: 17:38:30 | F78: 70012368 | G78: 76 | H78: Barrie Darrell | I78: Bet | J78: N | K78: B | L78: Great Edstone | BC78: 0 | BD78: 0 | BE78: 0 | BF78: 0 | BG78: 0 | BH78: 0 | BI78: 0 | BK78: 0 | BL78: 0
A79: 100059 | B79: L Standring | C79: 28 | D79: 10:39:00 | E79: 17:39:00 | F79: 134197 | G79: 77 | H79: Luke Standring | I79: Gas | J79: N | K79: B | L79: Nelsom | BC79: 0 | BD79: 0 | BE79: 0 | BF79: 0 | BG79: 0 | BH79: 0 | BI79: 0 | BK79: 0 | BL79: 0
A80: BACS | B80: BACS | C80: 28 | D80: 10:39:30 | E80: 17:39:30 | F80: 80693 | G80: 78 | H80: Roman Kyrnycryj | I80: She | J80: I | K80: B | L80: Gainsbrough | BC80: 0 | BD80: 0 | BE80: 0 | BF80: 0 | BG80: 0 | BH80: 0 | BI80: 0 | BK80: 0 | BL80: 0
A81: 10097 | B81: SP Clark | C81: 28 | D81: 10:40:00 | E81: 17:40:00 | F81: 100536 | G81: 79 | H81: Sam Clarke | I81: Bet | J81: I | K81: B | L81: Dronfield | BC81: 0 | BD81: 0 | BE81: 0 | BF81: 0 | BG81: 0 | BH81: 0 | BI81: 0 | BK81: 0 | BL81: 0
A82: 100007 | B82: J Philo | C82: 28 | D82: 10:40:30 | E82: 17:40:30 | F82: 147607 | G82: 80 | H82: James Philo | I82: Gas | J82: I | K82: B | L82: Irchester | BC82: 0 | BD82: 0 | BE82: 0 | BF82: 0 | BG82: 0 | BH82: 0 | BI82: 0 | BK82: 0 | BL82: 0
A83: 300035 | B83: GJ Richards | C83: 28 | D83: 10:41:00 | E83: 17:41:00 | F83: 23466 | G83: 81 | H83: Gavin J Richards | I83: Gas | J83: E | K83: B | L83: Merthyer Tydfil | BC83: 0 | BD83: 0 | BE83: 0 | BF83: 0 | BG83: 0 | BH83: 0 | BI83: 0 | BK83: 0 | BL83: 0
A84: 201404 | B84: BRB King | C84: 28 | D84: 10:41:30 | E84: 17:41:30 | F84: 12835 | G84: 82 | H84: Bretton King | I84: 4RT | J84: N | K84: B | L84: Malmesbury | BC84: 0 | BD84: 0 | BE84: 0 | BF84: 0 | BG84: 0 | BH84: 0 | BI84: 0 | BK84: 0 | BL84: 0
A85: BACS | D85: 10:42:00 | E85: 17:42:00 | F85: 147203 | G85: 83 | H85: Simon Armstrong | I85: She | J85: N | K85: B | L85: Harrogate | BC85: 0 | BD85: 0 | BE85: 0 | BF85: 0 | BG85: 0 | BH85: 0 | BI85: 0 | BK85: 0 | BL85: 0
A86: 100778 | B86: DS Arnall | C86: 28 | D86: 10:42:30 | E86: 17:42:30 | F86: 102705 | G86: 84 | H86: Stephen Arnall | I86: Bet | J86: N | K86: B | L86: Pudsey | BC86: 0 | BD86: 0 | BE86: 0 | BF86: 0 | BG86: 0 | BH86: 0 | BI86: 0 | BK86: 0 | BL86: 0
A87: 611 | B87: M Chippendale | C87: 28 | D87: 10:43:00 | E87: 17:43:00 | F87: 83184 | G87: 85 | H87: Mark Chippendale | I87: Gas | J87: N | K87: B | L87: Pudsey | BC87: 0 | BD87: 0 | BE87: 0 | BF87: 0 | BG87: 0 | BH87: 0 | BI87: 0 | BK87: 0 | BL87: 0
A88: 1531 | B88: D harper | C88: 28 | D88: 10:43:30 | E88: 17:43:30 | F88: 151409 | G88: 86 | H88: Daniel Harper | I88: Bet | J88: N | K88: B | L88: Nelson | BC88: 0 | BD88: 0 | BE88: 0 | BF88: 0 | BG88: 0 | BH88: 0 | BI88: 0 | BK88: 0 | BL88: 0
A89: 100354 | B89: AM Hartley | C89: 28 | D89: 10:44:00 | E89: 17:44:00 | G89: 87 | H89: Mark Hartley | I89: Gas | J89: N | K89: B | L89: Nelson | BC89: 0 | BD89: 0 | BE89: 0 | BF89: 0 | BG89: 0 | BH89: 0 | BI89: 0 | BK89: 0 | BL89: 0
A90: 100053 | B90: S hartley | C90: 28 | D90: 10:44:30 | E90: 17:44:30 | F90: 147798 | G90: 88 | H90: Simon Hartley | I90: She | J90: N | K90: B | L90: Nelson | BC90: 0 | BD90: 0 | BE90: 0 | BF90: 0 | BG90: 0 | BH90: 0 | BI90: 0 | BK90: 0 | BL90: 0
A91: 406 | B91: David Cocker | C91: 28 | D91: 10:45:00 | E91: 17:45:00 | G91: 89 | H91: David Cocker | I91: Mon | J91: N | K91: B | L91: Nelson | BC91: 0 | BD91: 0 | BE91: 0 | BF91: 0 | BG91: 0 | BH91: 0 | BI91: 0 | BK91: 0 | BL91: 0
A92: 102184 | B92: RF Welford | C92: 28 | D92: 10:45:30 | E92: 17:45:30 | F92: 142937 | G92: 90 | H92: Richard Welford | I92: She | J92: N | K92: B | L92: Ripon | BC92: 0 | BD92: 0 | BE92: 0 | BF92: 0 | BG92: 0 | BH92: 0 | BI92: 0 | BK92: 0 | BL92: 0
A93: 100434 | B93: AR Beane | C93: 28 | D93: 10:46:00 | E93: 17:46:00 | F93: 95195 | G93: 91 | H93: Andrew Beane | I93: Gas | J93: N | K93: B | L93: Yarm | BC93: 0 | BD93: 0 | BE93: 0 | BF93: 0 | BG93: 0 | BH93: 0 | BI93: 0 | BK93: 0 | BL93: 0
A94: 300592 | B94: A Denis | C94: 28 | D94: 10:46:30 | E94: 17:46:30 | F94: 108572 | G94: 92 | H94: Andrew Dennis | I94: Gas | J94: N | K94: B | L94: Stockton on Tees | BC94: 0 | BD94: 0 | BE94: 0 | BF94: 0 | BG94: 0 | BH94: 0 | BI94: 0 | BK94: 0 | BL94: 0
A95: 109223 | B95: Mrs Bennett | C95: 56 | D95: 10:47:00 | E95: 17:47:00 | F95: 20610 | G95: 93 | H95: Paul Bennett | I95: She | J95: E | K95: B | L95: Tunstall | BC95: 0 | BD95: 0 | BE95: 0 | BF95: 0 | BG95: 0 | BH95: 0 | BI95: 0 | BK95: 0 | BL95: 0
D96: 10:47:30 | E96: 17:47:30 | G96: 94 | H96: Patrick Plant | I96: Gas | J96: E | K96: B | L96: Tunstall | BC96: 0 | BD96: 0 | BE96: 0 | BF96: 0 | BG96: 0 | BH96: 0 | BI96: 0 | BK96: 0 | BL96: 0
A97: 100061 | B97: AD Holmes | C97: 28 | D97: 10:48:00 | E97: 17:48:00 | F97: 77934 | G97: 95 | H97: Tony Holmes | I97: Bet | J97: N | K97: B | L97: Skipton | BC97: 0 | BD97: 0 | BE97: 0 | BF97: 0 | BG97: 0 | BH97: 0 | BI97: 0 | BK97: 0 | BL97: 0
A98: 1008 | B98: DM Holmes | C98: 28 | D98: 10:48:30 | E98: 17:48:30 | F98: 106011 | G98: 98 | H98: Darren Holmes | I98: Bet | J98: N | K98: B | L98: Oakworth | BC98: 0 | BD98: 0 | BE98: 0 | BF98: 0 | BG98: 0 | BH98: 0 | BI98: 0 | BK98: 0 | BL98: 0
A99: FREE | D99: 10:49:00 | E99: 17:49:00 | F99: 80986 | G99: 99 | H99: Tom Middleton | I99: Bet | J99: N | K99: A | L99: Skipton | BC99: 0 | BD99: 0 | BE99: 0 | BF99: 0 | BG99: 0 | BH99: 0 | BI99: 0 | BK99: 0 | BL99: 0
A100: FREE | D100: 10:49:30 | E100: 17:49:30 | G100: 100 | H100: John Spensley | I100: Mon | J100: N | K100: B | L100: Skipton | BC100: 0 | BD100: 0 | BE100: 0 | BF100: 0 | BG100: 0 | BH100: 0 | BI100: 0 | BK100: 0 | BL100: 0
BC101: 0 | BD101: 0 | BE101: 0 | BF101: 0 | BG101: 0 | BH101: 0 | BI101: 0 | BK101: 0 | BL101: 0
BC102: 0 | BD102: 0 | BE102: 0 | BF102: 0 | BG102: 0 | BH102: 0 | BI102: 0 | BK102: 0 | BL102: 0
BC103: 0 | BD103: 0 | BE103: 0 | BF103: 0 | BG103: 0 | BH103: 0 | BI103: 0 | BK103: 0 | BL103: 0
H104: Exp | J104: =COUNTIF(J3:J103,"e") -> 17
H105: Int | J105: =COUNTIF(J4:J104,"i") -> 14
C106: =SUM(C3:C102) -> 2338 | H106: Nov | J106: =COUNTIF(J5:J105,"n") -> 61
H107: A Course | K107: =COUNTIF(K3:K101,"A") -> 16
H108: B Course | K108: =COUNTIF(K3:K103,"B") -> 76
H109: Total | I109: =COUNTA(H3:H101) -> 92 | J109: =SUM(J104:J108) -> 92 | K109: =SUM(K107:K108) -> 92
H111: Types of machine | I111: Bet | J111: =COUNTIF(I3:I103,"Bet") -> 33 | L111: Total 0s | M111: =SUM(BD14:BD102) -> 0
I112: Gas | J112: =COUNTIF(I3:I103,"Gas") -> 26 | L112: Total 1s | M112: =SUM(BE14:BE102) -> 0
I113: She | J113: =COUNTIF(I3:I103,"She") -> 19 | L113: Total 2s | M113: =SUM(BF14:BF102) -> 0
I114: Sco | J114: =COUNTIF(I3:I103,"sco") -> 0 | L114: Total 3s | M114: =SUM(BG14:BG102) -> 0
I115: 4RT | J115: =COUNTIF(I3:I103,"4rt") -> 6 | L115: Total5s | M115: =SUM(BH14:BH102) -> 0
I116: Mon | J116: =COUNTIF(I3:I103,"mon") -> 6 | L116: Total 10s | M116: =SUM(BI14:BI102) -> 0
I117: Yam | J117: =COUNTIF(I3:I103,"yam") -> 0
I118: Bul | J118: =COUNTIF(I6:I103,"Bul") -> 0
I119: Ossa | J119: =COUNTIF(I6:I103,"Oss") -> 2
I120: Bet 4T | J120: =COUNTIF(I6:I109,"Bet 4t") -> 0
J121: =SUM(J111:J120) -> 92

Sheet Cheques (hidden)
B4: Chq No | C4: Name | D4: Amount
B5: 10 | C5: Sam Yeadon | D5: 30
B6: 260 | C6: P waite | D6: 30
B7: 100136 | C7: Mr N cockerham | D7: 30
C8: PAY PAL | D8: 30
C9: PAY PAL | D9: 30
B10: 100330 | C10: JH Lee | D10: 60
B11: 111
B12: 100175 | C12: DM Coulson | D12: 30
B13: 100173 | C13: DM Coulson | D13: 30
B14: 100036 | C14: AJ West | D14: 30
B15: 422456 | C15: Mayne |Gas heatin | D15: 30
C16: NOT PAID
B17: 322 | C17: Ian Austermuhle | D17: 30
B18: 2 | C18: S McElnea | D18: 30
B19: 161 | C19: PS Marwood | D19: 30
B20: 100047 | C20: AG Frith | D20: 30
B21: 562 | C21: TA Jackson | D21: 30
B22: 100448 | C22: AR Beane | D22: 30
B23: 300599 | C23: A Dennis | D23: 30
B24: 16 | C24: N Farrow | D24: 30
B25: 22858 | C25: Adams Garage | D25: 120
B26: .
B27: .
B28: .
B29: 3272 | C29: Mr W Wood | D29: 60
B30: .
B31: 100066 | C31: AD Holmes | D31: 30
B32: 100063 | C32: I Rutter | D32: 60
B33: …
B34: 101381 | C34: A Ayrton | D34: 30
B35: 22106 | C35: G Kendreew | D35: 30
B36: 100305 | C36: RJ Sadler | D36: 30
B37: 100412 | C37: D Thorpe | D37: 60
B38: .
B39: 100404 | C39: K Sunter | D39: 30
B40: Cash | D40: 30
B41: Cash | D41: 30
B42: 100108 | C42: TJ Bennet
B43: 536249 | C43: PD Bennett | D43: 150
B44: .
B45: .
B46: .
B47: .
B48: 22103 | C48: Miss Morrell | D48: 30
B49: 100134 | C49: E Payne | D49: 30
B50: 459 | C50: D Mitchell | D50: 30
B51: 100079 | C51: C Stelling | D51: 30
B52: 4 | C52: B Quinlan | D52: 30
B53: 922 | C53: DM Holmes | D53: 30
B54: 100198 | C54: JR Spensley | D54: 30
B55: 100770 | C55: MR Whelan | D55: 30
C56: Pay Pal
B57: .
B58: 100209 | C58: S Hodson | D58: 30
B59: 100060 | C59: DJ Gamble | D59: 30
B60: 179 | C60: Mr SJ Smith | D60: 60
B61: .
B62: 22003 | C62: G tales | D62: 30
B63: 100127 | C63: RE Thornton | D63: 30
B64: 22113 | C64: Alan Mudd | D64: 30
B65: 49 | C65: Area ISI Ltd | D65: 30
B66: 485 | C66: JTL Chatto | D66: 30
B67: 852 | C67: Dent Excel | D67: 120
B68: .
B69: PAYPAL | C69: PAY PAL
B70: .
B71: 100069 | C71: A Drachenberg | D71: 30
B72: 458 | C72: SL Hirst | D72: 30
B73: 52 | C73: L Armstrong | D73: 30
B74: 46 | C74: D Byrne | D74: 90
B75: .
B76: .
B77: 292 | C77: P Scott | D77: 30
B78: . | C78: PAY PAL 28.88 | D78: 57.76
B79: . | C79: PAY PAL 28.88
B80: 922 | C80: JT Gornall | D80: 30
B81: 100121 | C81: John Lydamore | D81: 30
B82: 1956 | C82: S Sharp | D82: 60
B83: .
B84: . | C84: PAY PAL | D84: 29.75
B85: 67 | C85: Gary Rushton | D85: 30
B86: 100060 | C86: WJ Reynolds | D86: 30
B87: 100417 | C87: M Hartley | D87: 30
B88: 100096 | C88: S hartley | D88: 30
B89: 100407 | C89: N Wrigglesworth | D89: 30
C90: PAY PAL | D90: 30
B91: 100921 | C91: David Fallows | D91: 30
C92: PAY PAL | D92: 30
C93: PAY PAL | D93: 30
C94: PAY PAL 29.88 | D94: 89.64
C95: PAY PAL 29.88
C96: PAY PAL 29.88

Sheet 2015 entry List (2)
O1: Enter scores from cards/punch cards 0,1,2,3,5. If missed a section enter '10' | BC1: Enter late start and/or late finish. (Max 20mins) | BE1: Do not enter numbers here these totals will auto update
C8: Laps | D8: 1
C9: Sections | D9: 40
C10: Entries | D10: =COUNTA(H15:H114) -> 92
O13: Flame Thrower | R13: Fountains Fell | V13: Litton Track | X13: Ellershaw Farm | AC13: Arncliffe Scree | AG13: Sleets | AH13: hawkswick | AI13: Redmire | AK13: Hagg Gill | AN13: Yockenthwaite | AQ13: Raisgill | AS13: Bouther Gill | AW13: Wilks | AZ13: Penters A | BB13: Halton Gill | BC13: late start | BD13: late finish | BE13: total | BF13: 0s | BG13: 1s | BH13: 2s | BI13: 3s | BJ13: 5s | BK13: 10s | BM13: Check 1 | BN13: Check2 | BO13: % completed | BP13: % of MS
A14: 100305 | B14: RJ Sadler | C14: 30 | E14: 32 | F14: 101796 | G14: 42 | H14: Richard Sadler | I14: Bet | J14: E | K14: 1 | L14: West Witton | M14: 10:21:30 | N14: =M14+TIME(7,0,0) -> 17:21:30 | O14: 0 | P14: 0 | Q14: 1 | R14: 0 | S14: 0 | T14: 0 | U14: 0 | V14: 0 | W14: 0 | X14: 2 | Y14: 0 | Z14: 0 | AA14: 0 | AB14: 0 | AC14: 0 | AD14: 0 | AE14: 0 | AF14: 0 | AG14: 0 | AH14: 0 | AI14: 0 | AJ14: 0 | AK14: 0 | AL14: 0 | AM14: 0 | AN14: 0 | AO14: 0 | AP14: 0 | AQ14: 0 | AR14: 0 | AS14: 0 | AT14: 0 | AU14: 0 | AV14: 0 | AW14: 0 | AX14: 0 | AY14: 0 | AZ14: 0 | BA14: 0 | BB14: 0 | BE14: =SUM(O14:BD14) -> 3 | BF14: =COUNTIF(O14:BB14,0) -> 38 | BG14: =COUNTIF(O14:BB14,1) -> 1 | BH14: =COUNTIF(O14:BB14,2) -> 1 | BI14: =COUNTIF(O14:BB14,3) -> 0 | BJ14: =COUNTIF(O14:BB14,5) -> 0 | BK14: =COUNTIF(O14:BB14,10) -> 0
A15: 322 | B15: Ian Austermuhle | C15: 30 | E15: 13 | F15: 5401 | G15: 56 | H15: Ian Austermuhle | I15: Bet | J15: E | K15: 1 | L15: Malton | M15: 10:28:30 | N15: =M15+TIME(7,0,0) -> 17:28:30 | O15: 0 | P15: 0 | Q15: 0 | R15: 0 | S15: 1 | T15: 1 | U15: 0 | V15: 0 | W15: 0 | X15: 0 | Y15: 0 | Z15: 0 | AA15: 1 | AB15: 1 | AC15: 0 | AD15: 0 | AE15: 0 | AF15: 0 | AG15: 2 | AH15: 0 | AI15: 3 | AJ15: 0 | AK15: 0 | AL15: 0 | AM15: 0 | AN15: 0 | AO15: 0 | AP15: 0 | AQ15: 0 | AR15: 0 | AS15: 0 | AT15: 0 | AU15: 0 | AV15: 0 | AW15: 0 | AX15: 0 | AY15: 0 | AZ15: 0 | BA15: 2 | BB15: 0 | BE15: =SUM(O15:BD15) -> 11 | BF15: =COUNTIF(O15:BB15,0) -> 33 | BG15: =COUNTIF(O15:BB15,1) -> 4 | BH15: =COUNTIF(O15:BB15,2) -> 2 | BI15: =COUNTIF(O15:BB15,3) -> 1 | BJ15: =COUNTIF(O15:BB15,5) -> 0 | BK15: =COUNTIF(O15:BB15,10) -> 0 | BM15: =$D$9*$D$8 -> 40 | BN15: =SUM(BF15:BK15) -> 40 | BO15: =BN15/BM15 -> 1 | BP15: =BK15/BN15 -> 0
A16: 260 | B16: P waite | C16: 30 | E16: 2 | F16: 109873 | G16: 57 | H16: Rob Waite | I16: bet | J16: E | K16: 1 | L16: Darlington | M16: 10:29:00 | N16: =M16+TIME(7,0,0) -> 17:29:00 | O16: 0 | P16: 0 | Q16: 0 | R16: 0 | S16: 2 | T16: 1 | U16: 0 | V16: 2 | W16: 0 | X16: 2 | Y16: 1 | Z16: 0 | AA16: 2 | AB16: 1 | AC16: 0 | AD16: 0 | AE16: 0 | AF16: 0 | AG16: 2 | AH16: 1 | AI16: 1 | AJ16: 0 | AK16: 0 | AL16: 0 | AM16: 0 | AN16: 0 | AO16: 0 | AP16: 0 | AQ16: 0 | AR16: 0 | AS16: 0 | AT16: 3 | AU16: 0 | AV16: 0 | AW16: 0 | AX16: 0 | AY16: 0 | AZ16: 0 | BA16: 1 | BB16: 0 | BE16: =SUM(O16:BD16) -> 19 | BF16: =COUNTIF(O16:BB16,0) -> 28 | BG16: =COUNTIF(O16:BB16,1) -> 6 | BH16: =COUNTIF(O16:BB16,2) -> 5 | BI16: =COUNTIF(O16:BB16,3) -> 1 | BJ16: =COUNTIF(O16:BB16,5) -> 0 | BK16: =COUNTIF(O16:BB16,10) -> 0 | BM16: =$D$9*$D$8 -> 40 | BN16: =SUM(BF16:BK16) -> 40 | BO16: =BN16/BM16 -> 1 | BP16: =BK16/BN16 -> 0
A17: 100412 | B17: D Thorpe | C17: 60 | E17: 33 | F17: 10678 | G17: 45 | H17: Dan Thorpe | I17: Gas | J17: E | K17: 1 | L17: Sheffield | M17: 10:23:00 | N17: =M17+TIME(7,0,0) -> 17:23:00 | O17: 0 | P17: 0 | Q17: 1 | R17: 0 | S17: 5 | T17: 0 | U17: 1 | V17: 5 | W17: 0 | X17: 1 | Y17: 0 | Z17: 0 | AA17: 0 | AB17: 1 | AC17: 0 | AD17: 0 | AE17: 0 | AF17: 5 | AG17: 0 | AH17: 1 | AI17: 0 | AJ17: 0 | AK17: 0 | AL17: 0 | AM17: 0 | AN17: 0 | AO17: 0 | AP17: 0 | AQ17: 0 | AR17: 0 | AS17: 0 | AT17: 1 | AU17: 0 | AV17: 0 | AW17: 0 | AX17: 1 | AY17: 1 | AZ17: 0 | BA17: 0 | BB17: 0 | BE17: =SUM(O17:BD17) -> 23 | BF17: =COUNTIF(O17:BB17,0) -> 29 | BG17: =COUNTIF(O17:BB17,1) -> 8 | BH17: =COUNTIF(O17:BB17,2) -> 0 | BI17: =COUNTIF(O17:BB17,3) -> 0 | BJ17: =COUNTIF(O17:BB17,5) -> 3 | BK17: =COUNTIF(O17:BB17,10) -> 0 | BM17: =$D$9*$D$8 -> 40 | BN17: =SUM(BF17:BK17) -> 40 | BO17: =BN17/BM17 -> 1 | BP17: =BK17/BN17 -> 0
A18: 22106 | B18: G Kendreew | C18: 30 | E18: 31 | F18: 65411 | G18: 54 | H18: Guy Kendrew | I18: Bet | J18: E | K18: 1 | L18: Faceby | M18: 10:27:30 | N18: =M18+TIME(7,0,0) -> 17:27:30 | O18: 0 | P18: 0 | Q18: 1 | R18: 0 | S18: 0 | T18: 1 | U18: 2 | V18: 0 | W18: 0 | X18: 2 | Y18: 0 | Z18: 0 | AA18: 0 | AB18: 2 | AC18: 0 | AD18: 0 | AE18: 0 | AF18: 0 | AG18: 0 | AH18: 1 | AI18: 1 | AJ18: 5 | AK18: 0 | AL18: 0 | AM18: 0 | AN18: 0 | AO18: 0 | AP18: 0 | AQ18: 1 | AR18: 0 | AS18: 0 | AT18: 0 | AU18: 0 | AV18: 0 | AW18: 0 | AX18: 0 | AY18: 2 | AZ18: 3 | BA18: 0 | BB18: 0 | BC18: 3 | BE18: =SUM(O18:BD18) -> 24 | BF18: =COUNTIF(O18:BB18,0) -> 29 | BG18: =COUNTIF(O18:BB18,1) -> 5 | BH18: =COUNTIF(O18:BB18,2) -> 4 | BI18: =COUNTIF(O18:BB18,3) -> 1 | BJ18: =COUNTIF(O18:BB18,5) -> 1 | BK18: =COUNTIF(O18:BB18,10) -> 0 | BM18: =$D$9*$D$8 -> 40 | BN18: =SUM(BF18:BK18) -> 40 | BO18: =BN18/BM18 -> 1 | BP18: =BK18/BN18 -> 0
A19: 100060 | B19: DJ Gamble | C19: 30 | E19: 55 | F19: 63776 | G19: 62 | H19: Danny Gamble | I19: She | J19: E | K19: 1 | L19: Harrogate | M19: 10:31:30 | N19: =M19+TIME(7,0,0) -> 17:31:30 | O19: 0 | P19: 0 | Q19: 0 | R19: 0 | S19: 0 | T19: 1 | U19: 3 | V19: 3 | W19: 1 | X19: 1 | Y19: 1 | Z19: 0 | AA19: 0 | AB19: 1 | AC19: 0 | AD19: 0 | AE19: 5 | AF19: 2 | AG19: 2 | AH19: 1 | AI19: 0 | AJ19: 0 | AK19: 0 | AL19: 0 | AM19: 0 | AN19: 0 | AO19: 0 | AP19: 0 | AQ19: 0 | AR19: 0 | AS19: 0 | AT19: 0 | AU19: 0 | AV19: 0 | AW19: 0 | AX19: 0 | AY19: 1 | AZ19: 3 | BA19: 0 | BB19: 0 | BE19: =SUM(O19:BD19) -> 25 | BF19: =COUNTIF(O19:BB19,0) -> 27 | BG19: =COUNTIF(O19:BB19,1) -> 7 | BH19: =COUNTIF(O19:BB19,2) -> 2 | BI19: =COUNTIF(O19:BB19,3) -> 3 | BJ19: =COUNTIF(O19:BB19,5) -> 1 | BK19: =COUNTIF(O19:BB19,10) -> 0 | BM19: =$D$9*$D$8 -> 40 | BN19: =SUM(BF19:BK19) -> 40 | BO19: =BN19/BM19 -> 1 | BP19: =BK19/BN19 -> 0
A20: 49 | B20: Area ISI Ltd | C20: 30 | E20: 61 | F20: 99931 | G20: 58 | H20: Sam Beecroft-Penny | I20: She | J20: E | K20: 1 | L20: Yeadon | M20: 10:29:30 | N20: =M20+TIME(7,0,0) -> 17:29:30 | O20: 0 | P20: 0 | Q20: 0 | R20: 0 | S20: 3 | T20: 5 | U20: 0 | V20: 1 | W20: 1 | X20: 0 | Y20: 0 | Z20: 0 | AA20: 0 | AB20: 3 | AC20: 0 | AD20: 0 | AE20: 0 | AF20: 0 | AG20: 2 | AH20: 3 | AI20: 0 | AJ20: 1 | AK20: 0 | AL20: 0 | AM20: 0 | AN20: 0 | AO20: 0 | AP20: 0 | AQ20: 3 | AR20: 0 | AS20: 0 | AT20: 1 | AU20: 0 | AV20: 0 | AW20: 0 | AX20: 5 | AY20: 1 | AZ20: 1 | BA20: 1 | BB20: 1 | BE20: =SUM(O20:BD20) -> 32 | BF20: =COUNTIF(O20:BB20,0) -> 25 | BG20: =COUNTIF(O20:BB20,1) -> 8 | BH20: =COUNTIF(O20:BB20,2) -> 1 | BI20: =COUNTIF(O20:BB20,3) -> 4 | BJ20: =COUNTIF(O20:BB20,5) -> 2 | BK20: =COUNTIF(O20:BB20,10) -> 0 | BM20: =$D$9*$D$8 -> 40 | BN20: =SUM(BF20:BK20) -> 40 | BO20: =BN20/BM20 -> 1 | BP20: =BK20/BN20 -> 0
A21: 100407 | B21: N Wrigglesworth | C21: 30 | E21: 85 | F21: 28520 | G21: 51 | H21: Nathan Wrigglesworth | I21: She | J21: E | K21: 1 | L21: Cowling | M21: 10:26:00 | N21: =M21+TIME(7,0,0) -> 17:26:00 | O21: 0 | P21: 2 | Q21: 0 | R21: 1 | S21: 0 | T21: 0 | U21: 0 | V21: 3 | W21: 0 | X21: 2 | Y21: 0 | Z21: 1 | AA21: 3 | AB21: 1 | AC21: 1 | AD21: 0 | AE21: 0 | AF21: 1 | AG21: 2 | AH21: 3 | AI21: 1 | AJ21: 0 | AK21: 0 | AL21: 0 | AM21: 0 | AN21: 0 | AO21: 0 | AP21: 1 | AQ21: 1 | AR21: 0 | AS21: 0 | AT21: 1 | AU21: 0 | AV21: 0 | AW21: 0 | AX21: 2 | AY21: 2 | AZ21: 3 | BA21: 1 | BB21: 0 | BE21: =SUM(O21:BD21) -> 32 | BF21: =COUNTIF(O21:BB21,0) -> 21 | BG21: =COUNTIF(O21:BB21,1) -> 10 | BH21: =COUNTIF(O21:BB21,2) -> 5 | BI21: =COUNTIF(O21:BB21,3) -> 4 | BJ21: =COUNTIF(O21:BB21,5) -> 0 | BK21: =COUNTIF(O21:BB21,10) -> 0 | BM21: =$D$9*$D$8 -> 40 | BN21: =SUM(BF21:BK21) -> 40 | BO21: =BN21/BM21 -> 1 | BP21: =BK21/BN21 -> 0
B22: PAY PAL | C22: 30 | E22: 86 | F22: 11400 | G22: 47 | H22: Chris Pearson | I22: She | J22: E | K22: 1 | L22: Dronfield | M22: 10:24:00 | N22: =M22+TIME(7,0,0) -> 17:24:00 | O22: 0 | P22: 0 | Q22: 1 | R22: 0 | S22: 1 | T22: 1 | U22: 1 | V22: 0 | W22: 2 | X22: 1 | Y22: 1 | Z22: 0 | AA22: 2 | AB22: 1 | AC22: 0 | AD22: 0 | AE22: 0 | AF22: 2 | AG22: 0 | AH22: 1 | AI22: 1 | AJ22: 0 | AK22: 2 | AL22: 0 | AM22: 1 | AN22: 0 | AO22: 0 | AP22: 0 | AQ22: 3 | AR22: 0 | AS22: 0 | AT22: 1 | AU22: 0 | AV22: 0 | AW22: 0 | AX22: 0 | AY22: 3 | AZ22: 5 | BA22: 1 | BB22: 1 | BE22: =SUM(O22:BD22) -> 32 | BF22: =COUNTIF(O22:BB22,0) -> 20 | BG22: =COUNTIF(O22:BB22,1) -> 13 | BH22: =COUNTIF(O22:BB22,2) -> 4 | BI22: =COUNTIF(O22:BB22,3) -> 2 | BJ22: =COUNTIF(O22:BB22,5) -> 1 | BK22: =COUNTIF(O22:BB22,10) -> 0 | BM22: =$D$9*$D$8 -> 40 | BN22: =SUM(BF22:BK22) -> 40 | BO22: =BN22/BM22 -> 1 | BP22: =BK22/BN22 -> 0
A23: 100069 | B23: A Drachenberg | C23: 30 | E23: 67 | F23: 28757 | G23: 60 | H23: Aran Drachenberg | I23: Bet | J23: E | K23: 1 | L23: Skipton | M23: 10:30:30 | N23: =M23+TIME(7,0,0) -> 17:30:30 | O23: 0 | P23: 0 | Q23: 0 | R23: 1 | S23: 2 | T23: 0 | U23: 3 | V23: 5 | W23: 1 | X23: 2 | Y23: 2 | Z23: 0 | AA23: 3 | AB23: 3 | AC23: 0 | AD23: 0 | AE23: 0 | AF23: 2 | AG23: 1 | AH23: 2 | AI23: 3 | AJ23: 5 | AK23: 0 | AL23: 0 | AM23: 1 | AN23: 0 | AO23: 0 | AP23: 1 | AQ23: 1 | AR23: 0 | AS23: 0 | AT23: 0 | AU23: 0 | AV23: 0 | AW23: 0 | AX23: 2 | AY23: 2 | AZ23: 3 | BA23: 1 | BB23: 0 | BE23: =SUM(O23:BD23) -> 46 | BF23: =COUNTIF(O23:BB23,0) -> 19 | BG23: =COUNTIF(O23:BB23,1) -> 7 | BH23: =COUNTIF(O23:BB23,2) -> 7 | BI23: =COUNTIF(O23:BB23,3) -> 5 | BJ23: =COUNTIF(O23:BB23,5) -> 2 | BK23: =COUNTIF(O23:BB23,10) -> 0 | BM23: =$D$9*$D$8 -> 40 | BN23: =SUM(BF23:BK23) -> 40 | BO23: =BN23/BM23 -> 1 | BP23: =BK23/BN23 -> 0
A24: 10 | B24: Sam Yeadon | C24: 30 | E24: 1 | F24: 99635 | G24: 63 | H24: Sam Yeadon | I24: Bet | J24: E | K24: 1 | L24: Boston Spa | M24: 10:32:00 | N24: =M24+TIME(7,0,0) -> 17:32:00 | O24: 0 | P24: 0 | Q24: 1 | R24: 5 | S24: 3 | T24: 1 | U24: 3 | V24: 0 | W24: 1 | X24: 1 | Y24: 1 | Z24: 0 | AA24: 3 | AB24: 1 | AC24: 1 | AD24: 0 | AE24: 0 | AF24: 0 | AG24: 1 | AH24: 1 | AI24: 0 | AJ24: 5 | AK24: 0 | AL24: 5 | AM24: 0 | AN24: 0 | AO24: 0 | AP24: 0 | AQ24: 2 | AR24: 3 | AS24: 0 | AT24: 3 | AU24: 0 | AV24: 1 | AW24: 0 | AX24: 0 | AY24: 5 | AZ24: 2 | BA24: 0 | BB24: 3 | BC24: 11 | BE24: =SUM(O24:BD24) -> 63 | BF24: =COUNTIF(O24:BB24,0) -> 18 | BG24: =COUNTIF(O24:BB24,1) -> 10 | BH24: =COUNTIF(O24:BB24,2) -> 2 | BI24: =COUNTIF(O24:BB24,3) -> 6 | BJ24: =COUNTIF(O24:BB24,5) -> 4 | BK24: =COUNTIF(O24:BB24,10) -> 0 | BM24: =$D$9*$D$8 -> 40 | BN24: =SUM(BF24:BK24) -> 40 | BO24: =BN24/BM24 -> 1 | BP24: =BK24/BN24 -> 0
A25: 101381 | B25: A Ayrton | C25: 30 | E25: 30 | F25: 6704 | G25: 55 | H25: Anthony Ayrton | I25: She | J25: I | K25: 1 | L25: Barnoldswick | M25: 10:28:00 | N25: =M25+TIME(7,0,0) -> 17:28:00 | O25: 0 | P25: 3 | Q25: 3 | R25: 0 | S25: 3 | T25: 0 | U25: 3 | V25: 1 | W25: 1 | X25: 3 | Y25: 0 | Z25: 3 | AA25: 2 | AB25: 3 | AC25: 3 | AD25: 0 | AE25: 1 | AF25: 1 | AG25: 2 | AH25: 3 | AI25: 1 | AJ25: 5 | AK25: 0 | AL25: 0 | AM25: 5 | AN25: 0 | AO25: 0 | AP25: 5 | AQ25: 3 | AR25: 1 | AS25: 0 | AT25: 1 | AU25: 0 | AV25: 3 | AW25: 0 | AX25: 1 | AY25: 5 | AZ25: 5 | BA25: 0 | BB25: 0 | BE25: =SUM(O25:BD25) -> 70 | BF25: =COUNTIF(O25:BB25,0) -> 14 | BG25: =COUNTIF(O25:BB25,1) -> 8 | BH25: =COUNTIF(O25:BB25,2) -> 2 | BI25: =COUNTIF(O25:BB25,3) -> 11 | BJ25: =COUNTIF(O25:BB25,5) -> 5 | BK25: =COUNTIF(O25:BB25,10) -> 0 | BM25: =$D$9*$D$8 -> 40 | BN25: =SUM(BF25:BK25) -> 40 | BO25: =BN25/BM25 -> 1 | BP25: =BK25/BN25 -> 0
A26: . | E26: 79 | F26: 11415 | G26: 49 | H26: Mark Reynolds | I26: Gas | J26: N | K26: 1 | L26: Skipton | M26: 10:25:00 | N26: =M26+TIME(7,0,0) -> 17:25:00 | O26: 1 | P26: 5 | Q26: 3 | R26: 0 | S26: 3 | T26: 1 | U26: 3 | V26: 1 | W26: 3 | X26: 3 | Y26: 0 | Z26: 2 | AA26: 3 | AB26: 3 | AC26: 2 | AD26: 0 | AE26: 1 | AF26: 3 | AG26: 3 | AH26: 5 | AI26: 3 | AJ26: 2 | AK26: 1 | AL26: 1 | AM26: 1 | AN26: 0 | AO26: 0 | AP26: 0 | AQ26: 5 | AR26: 0 | AS26: 0 | AT26: 5 | AU26: 0 | AV26: 1 | AW26: 0 | AX26: 0 | AY26: 5 | AZ26: 3 | BA26: 1 | BB26: 0 | BE26: =SUM(O26:BD26) -> 73 | BF26: =COUNTIF(O26:BB26,0) -> 12 | BG26: =COUNTIF(O26:BB26,1) -> 9 | BH26: =COUNTIF(O26:BB26,2) -> 3 | BI26: =COUNTIF(O26:BB26,3) -> 11 | BJ26: =COUNTIF(O26:BB26,5) -> 5 | BK26: =COUNTIF(O26:BB26,10) -> 0 | BM26: =$D$9*$D$8 -> 40 | BN26: =SUM(BF26:BK26) -> 40 | BO26: =BN26/BM26 -> 1 | BP26: =BK26/BN26 -> 0
A27: . | E27: 53 | F27: 76765 | G27: 43 | H27: Sam Jennings | I27: Gas | J27: N | K27: 1 | L27: Guisley | M27: 10:22:00 | N27: =M27+TIME(7,0,0) -> 17:22:00 | O27: 0 | P27: 5 | Q27: 3 | R27: 1 | S27: 5 | T27: 0 | U27: 2 | V27: 3 | W27: 3 | X27: 3 | Y27: 2 | Z27: 1 | AA27: 3 | AB27: 3 | AC27: 3 | AD27: 0 | AE27: 1 | AF27: 5 | AG27: 2 | AH27: 3 | AI27: 5 | AJ27: 2 | AK27: 0 | AL27: 1 | AM27: 2 | AN27: 0 | AO27: 1 | AP27: 0 | AQ27: 3 | AR27: 0 | AS27: 0 | AT27: 5 | AU27: 0 | AV27: 3 | AW27: 0 | AX27: 1 | AY27: 2 | AZ27: 5 | BA27: 3 | BB27: 1 | BE27: =SUM(O27:BD27) -> 82 | BF27: =COUNTIF(O27:BB27,0) -> 10 | BG27: =COUNTIF(O27:BB27,1) -> 7 | BH27: =COUNTIF(O27:BB27,2) -> 6 | BI27: =COUNTIF(O27:BB27,3) -> 11 | BJ27: =COUNTIF(O27:BB27,5) -> 6 | BK27: =COUNTIF(O27:BB27,10) -> 0 | BM27: =$D$9*$D$8 -> 40 | BN27: =SUM(BF27:BK27) -> 40 | BO27: =BN27/BM27 -> 1 | BP27: =BK27/BN27 -> 0
B28: Pay Pal | E28: 52 | F28: 108918 | G28: 44 | H28: Joe Jennings | I28: Gas | J28: E | K28: 1 | L28: Guiseley | M28: 10:22:30 | N28: =M28+TIME(7,0,0) -> 17:22:30 | O28: 0 | P28: 5 | Q28: 3 | R28: 1 | S28: 3 | T28: 3 | U28: 3 | V28: 2 | W28: 3 | X28: 2 | Y28: 0 | Z28: 1 | AA28: 3 | AB28: 3 | AC28: 0 | AD28: 0 | AE28: 1 | AF28: 3 | AG28: 1 | AH28: 5 | AI28: 1 | AJ28: 5 | AK28: 5 | AL28: 0 | AM28: 1 | AN28: 0 | AO28: 1 | AP28: 0 | AQ28: 5 | AR28: 1 | AS28: 0 | AT28: 5 | AU28: 0 | AV28: 3 | AW28: 0 | AX28: 1 | AY28: 5 | AZ28: 5 | BA28: 2 | BB28: 1 | BE28: =SUM(O28:BD28) -> 83 | BF28: =COUNTIF(O28:BB28,0) -> 10 | BG28: =COUNTIF(O28:BB28,1) -> 10 | BH28: =COUNTIF(O28:BB28,2) -> 3 | BI28: =COUNTIF(O28:BB28,3) -> 9 | BJ28: =COUNTIF(O28:BB28,5) -> 8 | BK28: =COUNTIF(O28:BB28,10) -> 0 | BM28: =$D$9*$D$8 -> 40 | BN28: =SUM(BF28:BK28) -> 40 | BO28: =BN28/BM28 -> 1 | BP28: =BK28/BN28 -> 0
A29: 1956 | B29: S Sharp | C29: 60 | E29: 78 | F29: 92940 | G29: 50 | H29: Simon Sharp | I29: Gas | J29: N | K29: 1 | L29: Flasby | M29: 10:25:30 | N29: =M29+TIME(7,0,0) -> 17:25:30 | O29: 1 | P29: 1 | Q29: 3 | R29: 0 | S29: 3 | T29: 5 | U29: 5 | V29: 3 | W29: 2 | X29: 3 | Y29: 3 | Z29: 0 | AA29: 3 | AB29: 3 | AC29: 0 | AD29: 2 | AE29: 2 | AF29: 5 | AG29: 3 | AH29: 3 | AI29: 5 | AJ29: 3 | AK29: 1 | AL29: 2 | AM29: 0 | AN29: 0 | AO29: 5 | AP29: 0 | AQ29: 5 | AR29: 0 | AS29: 0 | AT29: 3 | AU29: 0 | AV29: 1 | AW29: 0 | AX29: 1 | AY29: 5 | AZ29: 3 | BA29: 1 | BB29: 0 | BE29: =SUM(O29:BD29) -> 85 | BF29: =COUNTIF(O29:BB29,0) -> 11 | BG29: =COUNTIF(O29:BB29,1) -> 6 | BH29: =COUNTIF(O29:BB29,2) -> 4 | BI29: =COUNTIF(O29:BB29,3) -> 12 | BJ29: =COUNTIF(O29:BB29,5) -> 7 | BK29: =COUNTIF(O29:BB29,10) -> 0 | BM29: =$D$9*$D$8 -> 40 | BN29: =SUM(BF29:BK29) -> 40 | BO29: =BN29/BM29 -> 1 | BP29: =BK29/BN29 -> 0
B30: PAY PAL | C30: 30 | E30: 88 | F30: 23655 | G30: 48 | H30: Danny Cockshott | I30: Gas | J30: I | K30: 1 | L30: Guiseley | M30: 10:24:30 | N30: =M30+TIME(7,0,0) -> 17:24:30 | O30: 1 | P30: 0 | Q30: 5 | R30: 0 | S30: 3 | T30: 0 | U30: 3 | V30: 3 | W30: 1 | X30: 5 | Y30: 1 | Z30: 0 | AA30: 2 | AB30: 3 | AC30: 5 | AD30: 5 | AE30: 5 | AF30: 0 | AG30: 5 | AH30: 3 | AI30: 3 | AJ30: 5 | AK30: 1 | AL30: 3 | AM30: 0 | AN30: 0 | AO30: 0 | AP30: 0 | AQ30: 3 | AR30: 3 | AS30: 0 | AT30: 1 | AU30: 0 | AV30: 3 | AW30: 0 | AX30: 0 | AY30: 5 | AZ30: 5 | BA30: 2 | BB30: 3 | BE30: =SUM(O30:BD30) -> 87 | BF30: =COUNTIF(O30:BB30,0) -> 13 | BG30: =COUNTIF(O30:BB30,1) -> 5 | BH30: =COUNTIF(O30:BB30,2) -> 2 | BI30: =COUNTIF(O30:BB30,3) -> 11 | BJ30: =COUNTIF(O30:BB30,5) -> 9 | BK30: =COUNTIF(O30:BB30,10) -> 0 | BM30: =$D$9*$D$8 -> 40 | BN30: =SUM(BF30:BK30) -> 40 | BO30: =BN30/BM30 -> 1 | BP30: =BK30/BN30 -> 0
B31: PAY PAL | C31: 30 | E31: 5 | G31: 41 | H31: Martin Crosswaite | I31: 4RT | J31: E | K31: 1 | L31: Keighley | M31: 10:21:00 | N31: =M31+TIME(7,0,0) -> 17:21:00 | O31: 0 | P31: 0 | Q31: 1 | R31: 0 | S31: 0 | T31: 0 | U31: 0 | V31: 1 | W31: 5 | BE31: RET | BF31: =COUNTIF(O31:BB31,0) -> 6 | BG31: =COUNTIF(O31:BB31,1) -> 2 | BH31: =COUNTIF(O31:BB31,2) -> 0 | BI31: =COUNTIF(O31:BB31,3) -> 0 | BJ31: =COUNTIF(O31:BB31,5) -> 1 | BK31: =COUNTIF(O31:BB31,10) -> 0 | BM31: =$D$9*$D$8 -> 40 | BN31: =SUM(BF31:BK31) -> 9 | BO31: =BN31/BM31 -> 0.225 | BP31: =BK31/BN31 -> 0
A32: 67 | B32: Gary Rushton | C32: 30 | E32: 81 | F32: 101963 | G32: 61 | H32: Thomas Rushton | I32: 4RT | J32: I | K32: 1 | L32: Trawden | M32: 10:31:00 | N32: =M32+TIME(7,0,0) -> 17:31:00 | O32: 0 | P32: 0 | Q32: 2 | R32: 0 | S32: 3 | T32: 1 | U32: 3 | V32: 2 | W32: 3 | X32: 3 | Y32: 0 | Z32: 0 | BE32: RET | BF32: =COUNTIF(O32:BB32,0) -> 5 | BG32: =COUNTIF(O32:BB32,1) -> 1 | BH32: =COUNTIF(O32:BB32,2) -> 2 | BI32: =COUNTIF(O32:BB32,3) -> 4 | BJ32: =COUNTIF(O32:BB32,5) -> 0 | BK32: =COUNTIF(O32:BB32,10) -> 0 | BM32: =$D$9*$D$8 -> 40 | BN32: =SUM(BF32:BK32) -> 12 | BO32: =BN32/BM32 -> 0.3 | BP32: =BK32/BN32 -> 0
A33: 100060 | B33: WJ Reynolds | C33: 30 | E33: 82 | F33: 90659 | G33: 46 | H33: William Reynolds | I33: Bet | J33: E | K33: 1 | L33: Skeeby | M33: 10:23:30 | N33: =M33+TIME(7,0,0) -> 17:23:30 | O33: 0 | P33: 1 | Q33: 3 | R33: 3 | S33: 3 | T33: 0 | U33: 1 | V33: 2 | W33: 3 | X33: 3 | Y33: 0 | Z33: 0 | AA33: 5 | AB33: 5 | BC33: 2 | BE33: RET | BF33: =COUNTIF(O33:BB33,0) -> 4 | BG33: =COUNTIF(O33:BB33,1) -> 2 | BH33: =COUNTIF(O33:BB33,2) -> 1 | BI33: =COUNTIF(O33:BB33,3) -> 5 | BJ33: =COUNTIF(O33:BB33,5) -> 2 | BK33: =COUNTIF(O33:BB33,10) -> 0 | BM33: =$D$9*$D$8 -> 40 | BN33: =SUM(BF33:BK33) -> 14 | BO33: =BN33/BM33 -> 0.35 | BP33: =BK33/BN33 -> 0
A34: . | E34: 42 | F34: 127000 | G34: 59 | H34: David West | I34: Gas | J34: I | K34: 1 | L34: Stoke on Trent | M34: 10:30:00 | N34: =M34+TIME(7,0,0) -> 17:30:00 | O34: 0 | P34: 0 | Q34: 0 | R34: 0 | S34: 5 | T34: 2 | U34: 3 | V34: 2 | W34: 5 | BE34: RET | BF34: =COUNTIF(O34:BB34,0) -> 4 | BG34: =COUNTIF(O34:BB34,1) -> 0 | BH34: =COUNTIF(O34:BB34,2) -> 2 | BI34: =COUNTIF(O34:BB34,3) -> 1 | BJ34: =COUNTIF(O34:BB34,5) -> 2 | BK34: =COUNTIF(O34:BB34,10) -> 0 | BM34: =$D$9*$D$8 -> 40 | BN34: =SUM(BF34:BK34) -> 9 | BO34: =BN34/BM34 -> 0.225 | BP34: =BK34/BN34 -> 0
A35: 100121 | B35: John Lydamore | C35: 30 | E35: 77 | F35: 117927 | G35: 52 | H35: John Lydamore | I35: Gas | J35: N | K35: 1 | L35: Loathley | M35: 10:26:30 | N35: =M35+TIME(7,0,0) -> 17:26:30 | O35: 1 | P35: 5 | Q35: 3 | R35: 2 | S35: 3 | T35: 0 | U35: 5 | V35: 3 | W35: 1 | X35: 5 | Y35: 3 | Z35: 0 | AC35: 3 | AD35: 0 | AE35: 1 | AF35: 1 | AG35: 3 | BE35: RET | BF35: =COUNTIF(O35:BB35,0) -> 3 | BG35: =COUNTIF(O35:BB35,1) -> 4 | BH35: =COUNTIF(O35:BB35,2) -> 1 | BI35: =COUNTIF(O35:BB35,3) -> 6 | BJ35: =COUNTIF(O35:BB35,5) -> 3 | BK35: =COUNTIF(O35:BB35,10) -> 0 | BM35: =$D$9*$D$8 -> 40 | BN35: =SUM(BF35:BK35) -> 17 | BO35: =BN35/BM35 -> 0.425 | BP35: =BK35/BN35 -> 0
A36: . | E36: 34 | F36: 64043 | G36: 53 | H36: Phil Disney | I36: 4RT | J36: E | K36: 1 | L36: Keighley | M36: 10:27:00 | N36: =M36+TIME(7,0,0) -> 17:27:00 | O36: 0 | P36: 0 | Q36: 2 | R36: 0 | S36: 1 | T36: 1 | U36: 1 | V36: 1 | W36: 5 | BC36: 2 | BE36: RET | BF36: =COUNTIF(O36:BB36,0) -> 3 | BG36: =COUNTIF(O36:BB36,1) -> 4 | BH36: =COUNTIF(O36:BB36,2) -> 1 | BI36: =COUNTIF(O36:BB36,3) -> 0 | BJ36: =COUNTIF(O36:BB36,5) -> 1 | BK36: =COUNTIF(O36:BB36,10) -> 0 | BM36: =$D$9*$D$8 -> 40 | BN36: =SUM(BF36:BK36) -> 9 | BO36: =BN36/BM36 -> 0.225 | BP36: =BK36/BN36 -> 0
A37: Chq No | B37: Name | C37: Amount | F37: ACU | G37: No. | H37: Name | I37: Bike | J37: CL | K37: CO | L37: Town | M37: Start | N37: Finish | O37: 1 | P37: 2 | Q37: 3 | R37: 4 | S37: 5 | T37: 6 | U37: 7 | V37: 8 | W37: 9 | X37: 10 | Y37: 11 | Z37: 12 | AA37: 13 | AB37: 14 | AC37: 15 | AD37: 16 | AE37: 17 | AF37: 18 | AG37: 19 | AH37: 20 | AI37: 21 | AJ37: 22 | AK37: 23 | AL37: 24 | AM37: 25 | AN37: 26 | AO37: 27 | AP37: 28 | AQ37: 29 | AR37: 30 | AS37: 31 | AT37: 32 | AU37: 33 | AV37: 34 | AW37: 35 | AX37: 36 | AY37: 37 | AZ37: 38 | BA37: 39 | BB37: 40 | BE37: tOTal | BF37: 0 | BG37: 1 | BH37: 2 | BI37: 3 | BJ37: 5 | BK37: 10 | BM37: =$D$9*$D$8 -> 40 | BN37: =SUM(BF37:BK37) -> 21 | BO37: =BN37/BM37 -> 0.525 | BP37: =BK37/BN37 -> 0.4761904762
A39: . | B39: PAY PAL 28.88 | E39: 75 | F39: 11146 | G39: 26 | H39: Roger Williams | I39: Mon | J39: I | K39: 2 | L39: Stockton on Tees | M39: 10:13:30 | N39: =M39+TIME(7,0,0) -> 17:13:30 | O39: 0 | P39: 0 | Q39: 0 | R39: 1 | S39: 0 | T39: 0 | U39: 0 | V39: 0 | W39: 0 | X39: 0 | Y39: 0 | Z39: 0 | AA39: 0 | AB39: 0 | AC39: 0 | AD39: 0 | AE39: 0 | AF39: 0 | AG39: 0 | AH39: 1 | AI39: 0 | AJ39: 0 | AK39: 0 | AL39: 0 | AM39: 0 | AN39: 0 | AO39: 0 | AP39: 0 | AQ39: 0 | AR39: 0 | AS39: 0 | AT39: 0 | AU39: 0 | AV39: 0 | AW39: 0 | AX39: 0 | AY39: 0 | AZ39: 0 | BA39: 0 | BB39: 0 | BE39: =SUM(O39:BD39) -> 2 | BF39: =COUNTIF(O39:BB39,0) -> 38 | BG39: =COUNTIF(O39:BB39,1) -> 2 | BH39: =COUNTIF(O39:BB39,2) -> 0 | BI39: =COUNTIF(O39:BB39,3) -> 0 | BJ39: =COUNTIF(O39:BB39,5) -> 0 | BK39: =COUNTIF(O39:BB39,10) -> 0 | BM39: =$D$9*$D$8 -> 40 | BN39: =SUM(BF39:BK39) -> 40 | BO39: =BN39/BM39 -> 1 | BP39: =BK39/BN39 -> 0
A40: 22113 | B40: Alan Mudd | C40: 30 | E40: 60 | F40: 113572 | G40: 88 | H40: Alan Mudd | I40: Bet | J40: N | K40: 2 | L40: Skipton | M40: 10:45:00 | N40: =M40+TIME(7,0,0) -> 17:45:00 | O40: 0 | P40: 0 | Q40: 0 | R40: 2 | S40: 0 | T40: 0 | U40: 1 | V40: 0 | W40: 0 | X40: 0 | Y40: 0 | Z40: 0 | AA40: 0 | AB40: 1 | AC40: 0 | AD40: 0 | AE40: 0 | AF40: 0 | AG40: 0 | AH40: 5 | AI40: 0 | AJ40: 0 | AK40: 2 | AL40: 0 | AM40: 1 | AN40: 0 | AO40: 0 | AP40: 0 | AQ40: 0 | AR40: 0 | AS40: 0 | AT40: 0 | AU40: 0 | AV40: 0 | AW40: 0 | AX40: 0 | AY40: 0 | AZ40: 2 | BA40: 0 | BB40: 0 | BE40: =SUM(O40:BD40) -> 14 | BF40: =COUNTIF(O40:BB40,0) -> 33 | BG40: =COUNTIF(O40:BB40,1) -> 3 | BH40: =COUNTIF(O40:BB40,2) -> 3 | BI40: =COUNTIF(O40:BB40,3) -> 0 | BJ40: =COUNTIF(O40:BB40,5) -> 1 | BK40: =COUNTIF(O40:BB40,10) -> 0 | BM40: =$D$9*$D$8 -> 40 | BN40: =SUM(BF40:BK40) -> 40 | BO40: =BN40/BM40 -> 1 | BP40: =BK40/BN40 -> 0
A41: 111 | E41: 7 | F41: 72694 | G41: 35 | H41: Steve Swanson | I41: Bet | J41: E | K41: 2 | L41: Finedon | M41: 10:18:00 | N41: =M41+TIME(7,0,0) -> 17:18:00 | O41: 0 | P41: 0 | Q41: 0 | R41: 0 | S41: 1 | T41: 2 | U41: 0 | V41: 0 | W41: 0 | X41: 2 | Y41: 0 | Z41: 0 | AA41: 0 | AB41: 0 | AC41: 0 | AD41: 0 | AE41: 0 | AF41: 0 | AG41: 1 | AH41: 2 | AI41: 0 | AJ41: 0 | AK41: 0 | AL41: 0 | AM41: 0 | AN41: 0 | AO41: 0 | AP41: 0 | AQ41: 0 | AR41: 0 | AS41: 0 | AT41: 0 | AU41: 0 | AV41: 2 | AW41: 0 | AX41: 0 | AY41: 0 | AZ41: 3 | BA41: 0 | BB41: 3 | BC41: 1 | BE41: =SUM(O41:BD41) -> 17 | BF41: =COUNTIF(O41:BB41,0) -> 32 | BG41: =COUNTIF(O41:BB41,1) -> 2 | BH41: =COUNTIF(O41:BB41,2) -> 4 | BI41: =COUNTIF(O41:BB41,3) -> 2 | BJ41: =COUNTIF(O41:BB41,5) -> 0 | BK41: =COUNTIF(O41:BB41,10) -> 0 | BM41: =$D$9*$D$8 -> 40 | BN41: =SUM(BF41:BK41) -> 40 | BO41: =BN41/BM41 -> 1 | BP41: =BK41/BN41 -> 0
A42: 562 | B42: TA Jackson | C42: 30 | E42: 17 | F42: 5957 | G42: 83 | H42: Andrew Jackson | I42: Sco | J42: N | K42: 2 | L42: Thornhill | M42: 10:42:30 | N42: =M42+TIME(7,0,0) -> 17:42:30 | O42: 0 | P42: 0 | Q42: 0 | R42: 2 | S42: 1 | T42: 0 | U42: 2 | V42: 0 | W42: 0 | X42: 0 | Y42: 1 | Z42: 1 | AA42: 0 | AB42: 1 | AC42: 0 | AD42: 0 | AE42: 0 | AF42: 0 | AG42: 0 | AH42: 2 | AI42: 0 | AJ42: 0 | AK42: 1 | AL42: 0 | AM42: 0 | AN42: 0 | AO42: 0 | AP42: 0 | AQ42: 0 | AR42: 0 | AS42: 0 | AT42: 3 | AU42: 0 | AV42: 0 | AW42: 0 | AX42: 1 | AY42: 0 | AZ42: 0 | BA42: 0 | BB42: 2 | BE42: =SUM(O42:BD42) -> 17 | BF42: =COUNTIF(O42:BB42,0) -> 29 | BG42: =COUNTIF(O42:BB42,1) -> 6 | BH42: =COUNTIF(O42:BB42,2) -> 4 | BI42: =COUNTIF(O42:BB42,3) -> 1 | BJ42: =COUNTIF(O42:BB42,5) -> 0 | BK42: =COUNTIF(O42:BB42,10) -> 0 | BM42: =$D$9*$D$8 -> 40 | BN42: =SUM(BF42:BK42) -> 40 | BO42: =BN42/BM42 -> 1 | BP42: =BK42/BN42 -> 0
A43: 536249 | B43: PD Bennett | C43: 150 | E43: 39 | F43: 10984 | G43: 67 | H43: Paul Bennett | I43: She | J43: I | K43: 2 | L43: Tunstall | M43: 10:34:00 | N43: =M43+TIME(7,0,0) -> 17:34:00 | O43: 0 | P43: 0 | Q43: 0 | R43: 3 | S43: 2 | T43: 0 | U43: 2 | V43: 0 | W43: 0 | X43: 0 | Y43: 1 | Z43: 1 | AA43: 0 | AB43: 0 | AC43: 0 | AD43: 2 | AE43: 0 | AF43: 1 | AG43: 0 | AH43: 1 | AI43: 0 | AJ43: 0 | AK43: 1 | AL43: 0 | AM43: 0 | AN43: 0 | AO43: 0 | AP43: 0 | AQ43: 0 | AR43: 0 | AS43: 0 | AT43: 0 | AU43: 0 | AV43: 0 | AW43: 0 | AX43: 1 | AY43: 0 | AZ43: 3 | BA43: 1 | BB43: 3 | BE43: =SUM(O43:BD43) -> 22 | BF43: =COUNTIF(O43:BB43,0) -> 27 | BG43: =COUNTIF(O43:BB43,1) -> 7 | BH43: =COUNTIF(O43:BB43,2) -> 3 | BI43: =COUNTIF(O43:BB43,3) -> 3 | BJ43: =COUNTIF(O43:BB43,5) -> 0 | BK43: =COUNTIF(O43:BB43,10) -> 0 | BM43: =$D$9*$D$8 -> 40 | BN43: =SUM(BF43:BK43) -> 40 | BO43: =BN43/BM43 -> 1 | BP43: =BK43/BN43 -> 0
B44: PAY PAL 29.88 | E44: 92 | F44: 10289 | G44: 30 | H44: Howard Gulley | I44: Gas | J44: N | K44: 2 | L44: Pudsey | M44: 10:15:30 | N44: =M44+TIME(7,0,0) -> 17:15:30 | O44: 0 | P44: 0 | Q44: 1 | R44: 0 | S44: 0 | T44: 3 | U44: 3 | V44: 0 | W44: 0 | X44: 0 | Y44: 1 | Z44: 0 | AA44: 0 | AB44: 1 | AC44: 0 | AD44: 1 | AE44: 1 | AF44: 1 | AG44: 0 | AH44: 2 | AI44: 0 | AJ44: 1 | AK44: 2 | AL44: 0 | AM44: 0 | AN44: 0 | AO44: 0 | AP44: 0 | AQ44: 0 | AR44: 0 | AS44: 0 | AT44: 3 | AU44: 0 | AV44: 0 | AW44: 0 | AX44: 1 | AY44: 0 | AZ44: 2 | BA44: 1 | BB44: 3 | BE44: =SUM(O44:BD44) -> 27 | BF44: =COUNTIF(O44:BB44,0) -> 24 | BG44: =COUNTIF(O44:BB44,1) -> 9 | BH44: =COUNTIF(O44:BB44,2) -> 3 | BI44: =COUNTIF(O44:BB44,3) -> 4 | BJ44: =COUNTIF(O44:BB44,5) -> 0 | BK44: =COUNTIF(O44:BB44,10) -> 0 | BM44: =$D$9*$D$8 -> 40 | BN44: =SUM(BF44:BK44) -> 40 | BO44: =BN44/BM44 -> 1 | BP44: =BK44/BN44 -> 0
A45: 100404 | B45: K Sunter | C45: 30 | E45: 35 | F45: 20279 | G45: 39 | H45: Katy Sunter | I45: Gas | J45: N | K45: 2 | L45: Sheffield | M45: 10:20:00 | N45: =M45+TIME(7,0,0) -> 17:20:00 | O45: 1 | P45: 0 | Q45: 1 | R45: 0 | S45: 1 | T45: 5 | U45: 5 | V45: 0 | W45: 1 | X45: 0 | Y45: 0 | Z45: 1 | AA45: 0 | AB45: 0 | AC45: 0 | AD45: 0 | AE45: 1 | AF45: 0 | AG45: 0 | AH45: 1 | AI45: 0 | AJ45: 2 | AK45: 0 | AL45: 0 | AM45: 0 | AN45: 0 | AO45: 0 | AP45: 0 | AQ45: 0 | AR45: 0 | AS45: 0 | AT45: 3 | AU45: 0 | AV45: 0 | AW45: 0 | AX45: 1 | AY45: 0 | AZ45: 3 | BA45: 0 | BB45: 3 | BE45: =SUM(O45:BD45) -> 29 | BF45: =COUNTIF(O45:BB45,0) -> 26 | BG45: =COUNTIF(O45:BB45,1) -> 8 | BH45: =COUNTIF(O45:BB45,2) -> 1 | BI45: =COUNTIF(O45:BB45,3) -> 3 | BJ45: =COUNTIF(O45:BB45,5) -> 2 | BK45: =COUNTIF(O45:BB45,10) -> 0 | BM45: =$D$9*$D$8 -> 40 | BN45: =SUM(BF45:BK45) -> 40 | BO45: =BN45/BM45 -> 1 | BP45: =BK45/BN45 -> 0
A46: 292 | B46: P Scott | C46: 30 | E46: 73 | F46: 108543 | G46: 80 | H46: Phil Scott | I46: Gas | J46: N | K46: 2 | L46: Barrowford | M46: 10:41:00 | N46: =M46+TIME(7,0,0) -> 17:41:00 | O46: 0 | P46: 0 | Q46: 1 | R46: 2 | S46: 2 | T46: 1 | U46: 1 | V46: 1 | W46: 0 | X46: 1 | Y46: 0 | Z46: 1 | AC46: 0 | AD46: 1 | AE46: 0 | AF46: 1 | AG46: 0 | AH46: 2 | AK46: 1 | AL46: 0 | AM46: 0 | AN46: 0 | AO46: 0 | AP46: 5 | AQ46: 0 | AR46: 0 | AS46: 0 | AT46: 1 | AU46: 1 | AV46: 0 | AW46: 0 | AX46: 1 | AY46: 0 | AZ46: 1 | BA46: 0 | BB46: 5 | BE46: =SUM(O46:BD46) -> 29 | BF46: =COUNTIF(O46:BB46,0) -> 18 | BG46: =COUNTIF(O46:BB46,1) -> 13 | BH46: =COUNTIF(O46:BB46,2) -> 3 | BI46: =COUNTIF(O46:BB46,3) -> 0 | BJ46: =COUNTIF(O46:BB46,5) -> 2 | BK46: =COUNTIF(O46:BB46,10) -> 0 | BM46: =$D$9*$D$8 -> 40 | BN46: =SUM(BF46:BK46) -> 36 | BO46: =BN46/BM46 -> 0.9 | BP46: =BK46/BN46 -> 0
A47: 100330 | B47: JH Lee | C47: 60 | E47: 6 | F47: 6173 | G47: 34 | H47: Jonathan Lee | I47: Bet | J47: E | K47: 2 | L47: Higham Ferrers | M47: 10:17:30 | N47: =M47+TIME(7,0,0) -> 17:17:30 | O47: 0 | P47: 0 | Q47: 0 | R47: 1 | S47: 2 | T47: 1 | U47: 2 | V47: 1 | W47: 0 | X47: 5 | Y47: 1 | Z47: 0 | AA47: 0 | AB47: 2 | AC47: 0 | AD47: 0 | AE47: 0 | AF47: 0 | AG47: 0 | AH47: 3 | AI47: 0 | AJ47: 3 | AK47: 1 | AL47: 0 | AM47: 0 | AN47: 0 | AO47: 0 | AP47: 0 | AQ47: 0 | AR47: 0 | AS47: 0 | AT47: 1 | AU47: 0 | AV47: 0 | AW47: 0 | AX47: 0 | AY47: 0 | AZ47: 2 | BA47: 0 | BB47: 3 | BC47: 2 | BE47: =SUM(O47:BD47) -> 30 | BF47: =COUNTIF(O47:BB47,0) -> 26 | BG47: =COUNTIF(O47:BB47,1) -> 6 | BH47: =COUNTIF(O47:BB47,2) -> 4 | BI47: =COUNTIF(O47:BB47,3) -> 3 | BJ47: =COUNTIF(O47:BB47,5) -> 1 | BK47: =COUNTIF(O47:BB47,10) -> 0 | BM47: =$D$9*$D$8 -> 40 | BN47: =SUM(BF47:BK47) -> 40 | BO47: =BN47/BM47 -> 1 | BP47: =BK47/BN47 -> 0
A48: 922 | B48: JT Gornall | C48: 30 | E48: 76 | F48: 96572 | G48: 74 | H48: John Gornall | I48: Gas | J48: I | K48: 2 | L48: Longridge | M48: 10:38:00 | N48: =M48+TIME(7,0,0) -> 17:38:00 | O48: 0 | P48: 0 | Q48: 0 | R48: 1 | S48: 1 | T48: 3 | U48: 1 | V48: 1 | W48: 0 | X48: 0 | Y48: 2 | Z48: 1 | AA48: 0 | AB48: 0 | AC48: 3 | AD48: 0 | AE48: 0 | AF48: 0 | AG48: 0 | AH48: 3 | AI48: 0 | AJ48: 3 | AK48: 0 | AL48: 0 | AM48: 0 | AN48: 0 | AO48: 0 | AP48: 0 | AQ48: 0 | AR48: 0 | AS48: 0 | AT48: 1 | AU48: 0 | AV48: 0 | AW48: 0 | AX48: 0 | AY48: 0 | AZ48: 3 | BA48: 2 | BB48: 5 | BE48: =SUM(O48:BD48) -> 30 | BF48: =COUNTIF(O48:BB48,0) -> 26 | BG48: =COUNTIF(O48:BB48,1) -> 6 | BH48: =COUNTIF(O48:BB48,2) -> 2 | BI48: =COUNTIF(O48:BB48,3) -> 5 | BJ48: =COUNTIF(O48:BB48,5) -> 1 | BK48: =COUNTIF(O48:BB48,10) -> 0 | BM48: =$D$9*$D$8 -> 40 | BN48: =SUM(BF48:BK48) -> 40 | BO48: =BN48/BM48 -> 1 | BP48: =BK48/BN48 -> 0
A49: 100417 | B49: M Hartley | C49: 30 | E49: 83 | F49: 145940 | G49: 37 | H49: Mark Hartley | I49: Gas | J49: N | K49: 2 | L49: Roughlee | M49: 10:19:00 | N49: =M49+TIME(7,0,0) -> 17:19:00 | O49: 1 | P49: 0 | Q49: 0 | R49: 3 | S49: 1 | T49: 3 | U49: 3 | V49: 0 | W49: 2 | X49: 2 | Y49: 2 | Z49: 1 | AA49: 0 | AB49: 0 | AC49: 1 | AD49: 0 | AE49: 0 | AF49: 1 | AG49: 0 | AH49: 2 | AI49: 0 | AJ49: 0 | AK49: 1 | AL49: 0 | AM49: 0 | AN49: 0 | AO49: 0 | AP49: 0 | AQ49: 0 | AR49: 0 | AS49: 0 | AU49: 0 | AV49: 0 | AW49: 0 | AX49: 0 | AY49: 0 | AZ49: 1 | BA49: 0 | BB49: 5 | BC49: 1 | BE49: =SUM(O49:BD49) -> 30 | BF49: =COUNTIF(O49:BB49,0) -> 24 | BG49: =COUNTIF(O49:BB49,1) -> 7 | BH49: =COUNTIF(O49:BB49,2) -> 4 | BI49: =COUNTIF(O49:BB49,3) -> 3 | BJ49: =COUNTIF(O49:BB49,5) -> 1 | BK49: =COUNTIF(O49:BB49,10) -> 0 | BM49: =$D$9*$D$8 -> 40 | BN49: =SUM(BF49:BK49) -> 39 | BO49: =BN49/BM49 -> 0.975 | BP49: =BK49/BN49 -> 0
A50: PAYPAL | B50: PAY PAL | E50: 65 | F50: 63824 | G50: 40 | H50: Paul Jackson | I50: Mon | J50: i | K50: 2 | L50: Baildon | M50: 10:20:30 | N50: =M50+TIME(7,0,0) -> 17:20:30 | O50: 2 | P50: 0 | Q50: 1 | R50: 3 | S50: 0 | T50: 1 | U50: 0 | V50: 0 | W50: 1 | X50: 1 | Y50: 1 | Z50: 0 | AA50: 0 | AB50: 0 | AC50: 0 | AD50: 0 | AE50: 0 | AF50: 0 | AG50: 0 | AH50: 1 | AI50: 0 | AJ50: 1 | AK50: 1 | AL50: 0 | AM50: 0 | AN50: 0 | AO50: 1 | AP50: 1 | AQ50: 1 | AR50: 0 | AS50: 0 | AT50: 2 | AU50: 0 | AV50: 0 | AW50: 0 | AX50: 2 | AY50: 1 | AZ50: 3 | BA50: 1 | BB50: 5 | BE50: =SUM(O50:BD50) -> 30 | BF50: =COUNTIF(O50:BB50,0) -> 21 | BG50: =COUNTIF(O50:BB50,1) -> 13 | BH50: =COUNTIF(O50:BB50,2) -> 3 | BI50: =COUNTIF(O50:BB50,3) -> 2 | BJ50: =COUNTIF(O50:BB50,5) -> 1 | BK50: =COUNTIF(O50:BB50,10) -> 0 | BM50: =$D$9*$D$8 -> 40 | BN50: =SUM(BF50:BK50) -> 40 | BO50: =BN50/BM50 -> 1 | BP50: =BK50/BN50 -> 0
B51: PAY PAL 29.88 | E51: 91 | F51: 83184 | G51: 29 | H51: Mark Chippendale | I51: Gas | J51: N | K51: 2 | L51: Pudsey | M51: 10:15:00 | N51: =M51+TIME(7,0,0) -> 17:15:00 | O51: 0 | P51: 0 | Q51: 1 | R51: 3 | S51: 0 | T51: 1 | U51: 3 | V51: 0 | W51: 0 | X51: 1 | Y51: 0 | Z51: 3 | AA51: 0 | AB51: 0 | AC51: 3 | AD51: 1 | AE51: 0 | AF51: 0 | AG51: 0 | AH51: 3 | AI51: 0 | AJ51: 2 | AK51: 0 | AL51: 0 | AM51: 0 | AN51: 0 | AO51: 3 | AP51: 0 | AQ51: 1 | AR51: 0 | AS51: 0 | AT51: 1 | AU51: 0 | AV51: 0 | AW51: 0 | AX51: 1 | AY51: 1 | AZ51: 1 | BA51: 0 | BB51: 3 | BE51: =SUM(O51:BD51) -> 32 | BF51: =COUNTIF(O51:BB51,0) -> 23 | BG51: =COUNTIF(O51:BB51,1) -> 9 | BH51: =COUNTIF(O51:BB51,2) -> 1 | BI51: =COUNTIF(O51:BB51,3) -> 7 | BJ51: =COUNTIF(O51:BB51,5) -> 0 | BK51: =COUNTIF(O51:BB51,10) -> 0 | BM51: =$D$9*$D$8 -> 40 | BN51: =SUM(BF51:BK51) -> 40 | BO51: =BN51/BM51 -> 1 | BP51: =BK51/BN51 -> 0
A52: 22103 | B52: Miss Morrell | C52: 30 | E52: 44 | F52: 90891 | G52: 32 | H52: Paul Gravestock | I52: Gas | J52: N | K52: 2 | L52: Shipley | M52: 10:16:30 | N52: =M52+TIME(7,0,0) -> 17:16:30 | O52: 0 | P52: 3 | Q52: 0 | R52: 3 | S52: 1 | T52: 3 | U52: 5 | V52: 0 | W52: 1 | X52: 0 | Y52: 1 | Z52: 1 | AA52: 2 | AB52: 1 | AC52: 0 | AD52: 1 | AE52: 0 | AF52: 2 | AG52: 0 | AH52: 3 | AI52: 0 | AJ52: 0 | AK52: 0 | AL52: 0 | AM52: 0 | AN52: 0 | AO52: 0 | AP52: 2 | AQ52: 0 | AR52: 0 | AS52: 0 | AT52: 1 | AU52: 0 | AV52: 0 | AW52: 0 | AX52: 0 | AY52: 0 | AZ52: 0 | BA52: 0 | BB52: 3 | BE52: =SUM(O52:BD52) -> 33 | BF52: =COUNTIF(O52:BB52,0) -> 24 | BG52: =COUNTIF(O52:BB52,1) -> 7 | BH52: =COUNTIF(O52:BB52,2) -> 3 | BI52: =COUNTIF(O52:BB52,3) -> 5 | BJ52: =COUNTIF(O52:BB52,5) -> 1 | BK52: =COUNTIF(O52:BB52,10) -> 0 | BM52: =$D$9*$D$8 -> 40 | BN52: =SUM(BF52:BK52) -> 40 | BO52: =BN52/BM52 -> 1 | BP52: =BK52/BN52 -> 0
A53: Cash | C53: 30 | E53: 37 | F53: 124050 | G53: 20 | H53: Julian Ingham | I53: Bet | J53: E | K53: 2 | L53: Bacup | M53: 10:10:30 | N53: =M53+TIME(7,0,0) -> 17:10:30 | O53: 1 | P53: 1 | Q53: 0 | R53: 3 | S53: 0 | T53: 3 | U53: 3 | V53: 0 | W53: 3 | X53: 0 | Y53: 0 | Z53: 1 | AA53: 0 | AB53: 0 | AC53: 3 | AD53: 2 | AE53: 1 | AF53: 0 | AG53: 1 | AH53: 3 | AI53: 0 | AJ53: 0 | AK53: 1 | AL53: 0 | AM53: 0 | AN53: 0 | AO53: 0 | AP53: 0 | AQ53: 0 | AR53: 0 | AS53: 0 | AT53: 0 | AU53: 1 | AV53: 0 | AW53: 0 | AX53: 1 | AY53: 0 | AZ53: 1 | BA53: 0 | BB53: 5 | BE53: =SUM(O53:BD53) -> 34 | BF53: =COUNTIF(O53:BB53,0) -> 23 | BG53: =COUNTIF(O53:BB53,1) -> 9 | BH53: =COUNTIF(O53:BB53,2) -> 1 | BI53: =COUNTIF(O53:BB53,3) -> 6 | BJ53: =COUNTIF(O53:BB53,5) -> 1 | BK53: =COUNTIF(O53:BB53,10) -> 0 | BM53: =$D$9*$D$8 -> 40 | BN53: =SUM(BF53:BK53) -> 40 | BO53: =BN53/BM53 -> 1 | BP53: =BK53/BN53 -> 0
B54: PAY PAL 29.88 | C54: 89.64 | E54: 90 | F54: 18081 | G54: 28 | H54: Mark Forster | I54: Gas | J54: N | K54: 2 | L54: Leeds | M54: 10:14:30 | N54: =M54+TIME(7,0,0) -> 17:14:30 | O54: 1 | P54: 0 | Q54: 0 | R54: 2 | S54: 0 | T54: 3 | U54: 1 | V54: 1 | W54: 0 | X54: 0 | Y54: 3 | Z54: 3 | AA54: 0 | AB54: 1 | AC54: 1 | AD54: 0 | AE54: 0 | AF54: 0 | AG54: 0 | AH54: 3 | AI54: 0 | AJ54: 2 | AK54: 5 | AL54: 0 | AM54: 0 | AN54: 0 | AO54: 1 | AP54: 1 | AQ54: 0 | AR54: 0 | AS54: 0 | AT54: 1 | AU54: 1 | AV54: 0 | AW54: 0 | AX54: 0 | AY54: 0 | AZ54: 0 | BA54: 1 | BB54: 3 | BE54: =SUM(O54:BD54) -> 34 | BF54: =COUNTIF(O54:BB54,0) -> 22 | BG54: =COUNTIF(O54:BB54,1) -> 10 | BH54: =COUNTIF(O54:BB54,2) -> 2 | BI54: =COUNTIF(O54:BB54,3) -> 5 | BJ54: =COUNTIF(O54:BB54,5) -> 1 | BK54: =COUNTIF(O54:BB54,10) -> 0 | BM54: =$D$9*$D$8 -> 40 | BN54: =SUM(BF54:BK54) -> 40 | BO54: =BN54/BM54 -> 1 | BP54: =BK54/BN54 -> 0
B55: cash | C55: 30 | E55: 21 | F55: 25882 | G55: 13 | H55: Chris Beecroft | I55: Gas | J55: N | K55: 2 | L55: Yeadon | M55: 10:07:00 | N55: =M55+TIME(7,0,0) -> 17:07:00 | O55: 1 | P55: 0 | Q55: 0 | R55: 5 | S55: 2 | T55: 0 | U55: 0 | V55: 0 | W55: 0 | X55: 2 | Y55: 0 | Z55: 3 | AA55: 0 | AB55: 3 | AC55: 3 | AD55: 1 | AE55: 0 | AF55: 1 | AG55: 1 | AH55: 3 | AI55: 0 | AJ55: 1 | AK55: 1 | AL55: 0 | AM55: 0 | AN55: 0 | AO55: 0 | AP55: 0 | AQ55: 0 | AR55: 0 | AS55: 0 | AT55: 2 | AU55: 1 | AV55: 0 | AW55: 0 | AX55: 0 | AY55: 0 | AZ55: 0 | BA55: 0 | BB55: 5 | BE55: =SUM(O55:BD55) -> 35 | BF55: =COUNTIF(O55:BB55,0) -> 24 | BG55: =COUNTIF(O55:BB55,1) -> 7 | BH55: =COUNTIF(O55:BB55,2) -> 3 | BI55: =COUNTIF(O55:BB55,3) -> 4 | BJ55: =COUNTIF(O55:BB55,5) -> 2 | BK55: =COUNTIF(O55:BB55,10) -> 0 | BM55: =$D$9*$D$8 -> 40 | BN55: =SUM(BF55:BK55) -> 40 | BO55: =BN55/BM55 -> 1 | BP55: =BK55/BN55 -> 0
A56: 100108 | B56: TJ Bennet | E56: 38 | F56: 78984 | G56: 66 | H56: Tom Bennett | I56: She | J56: N | K56: 2 | L56: Porthill | M56: 10:33:30 | N56: =M56+TIME(7,0,0) -> 17:33:30 | O56: 0 | P56: 0 | Q56: 0 | R56: 0 | S56: 1 | T56: 3 | U56: 1 | V56: 0 | W56: 0 | X56: 2 | Y56: 0 | Z56: 2 | AA56: 0 | AB56: 0 | AC56: 5 | AD56: 1 | AE56: 0 | AF56: 0 | AG56: 0 | AH56: 3 | AI56: 0 | AJ56: 2 | AK56: 3 | AL56: 0 | AM56: 0 | AN56: 1 | AO56: 0 | AP56: 1 | AQ56: 3 | AR56: 0 | AS56: 0 | AT56: 0 | AU56: 0 | AV56: 0 | AW56: 0 | AX56: 1 | AY56: 0 | AZ56: 3 | BA56: 0 | BB56: 3 | BE56: =SUM(O56:BD56) -> 35 | BF56: =COUNTIF(O56:BB56,0) -> 24 | BG56: =COUNTIF(O56:BB56,1) -> 6 | BH56: =COUNTIF(O56:BB56,2) -> 3 | BI56: =COUNTIF(O56:BB56,3) -> 6 | BJ56: =COUNTIF(O56:BB56,5) -> 1 | BK56: =COUNTIF(O56:BB56,10) -> 0 | BM56: =$D$9*$D$8 -> 40 | BN56: =SUM(BF56:BK56) -> 40 | BO56: =BN56/BM56 -> 1 | BP56: =BK56/BN56 -> 0
A57: 459 | B57: D Mitchell | C57: 30 | E57: 46 | F57: 16611 | G57: 64 | H57: Darren Mitchell | I57: 4RT | J57: N | K57: 2 | L57: Barnoldswick | M57: 10:32:30 | N57: =M57+TIME(7,0,0) -> 17:32:30 | O57: 1 | P57: 0 | Q57: 1 | R57: 3 | S57: 1 | T57: 3 | U57: 3 | V57: 0 | W57: 0 | X57: 1 | Y57: 0 | Z57: 2 | AA57: 0 | AB57: 0 | AC57: 2 | AD57: 0 | AE57: 3 | AF57: 0 | AG57: 0 | AH57: 3 | AI57: 0 | AJ57: 1 | AK57: 0 | AL57: 0 | AM57: 0 | AN57: 0 | AO57: 1 | AP57: 0 | AQ57: 0 | AR57: 0 | AS57: 0 | AT57: 2 | AU57: 0 | AV57: 0 | AW57: 1 | AX57: 0 | AY57: 0 | AZ57: 2 | BA57: 0 | BB57: 5 | BE57: =SUM(O57:BD57) -> 35 | BF57: =COUNTIF(O57:BB57,0) -> 23 | BG57: =COUNTIF(O57:BB57,1) -> 7 | BH57: =COUNTIF(O57:BB57,2) -> 4 | BI57: =COUNTIF(O57:BB57,3) -> 5 | BJ57: =COUNTIF(O57:BB57,5) -> 1 | BK57: =COUNTIF(O57:BB57,10) -> 0 | BM57: =$D$9*$D$8 -> 40 | BN57: =SUM(BF57:BK57) -> 40 | BO57: =BN57/BM57 -> 1 | BP57: =BK57/BN57 -> 0
A58: 852 | B58: Dent Excel | C58: 120 | E58: 63 | F58: 11579 | G58: 77 | H58: Barrie Darrell | I58: Bet | J58: N | K58: 2 | L58: York | M58: 10:39:30 | N58: =M58+TIME(7,0,0) -> 17:39:30 | O58: 0 | P58: 0 | Q58: 0 | R58: 0 | S58: 1 | T58: 3 | U58: 5 | V58: 0 | W58: 1 | X58: 0 | Y58: 0 | Z58: 0 | AA58: 0 | AB58: 2 | AC58: 2 | AD58: 1 | AE58: 0 | AF58: 0 | AG58: 0 | AH58: 2 | AI58: 0 | AJ58: 1 | AK58: 0 | AL58: 0 | AM58: 0 | AN58: 0 | AO58: 0 | AP58: 0 | AQ58: 2 | AR58: 0 | AS58: 0 | AT58: 1 | AU58: 3 | AV58: 0 | AW58: 0 | AX58: 5 | AY58: 0 | AZ58: 3 | BA58: 1 | BB58: 3 | BE58: =SUM(O58:BD58) -> 36 | BF58: =COUNTIF(O58:BB58,0) -> 24 | BG58: =COUNTIF(O58:BB58,1) -> 6 | BH58: =COUNTIF(O58:BB58,2) -> 4 | BI58: =COUNTIF(O58:BB58,3) -> 4 | BJ58: =COUNTIF(O58:BB58,5) -> 2 | BK58: =COUNTIF(O58:BB58,10) -> 0 | BM58: =$D$9*$D$8 -> 40 | BN58: =SUM(BF58:BK58) -> 40 | BO58: =BN58/BM58 -> 1 | BP58: =BK58/BN58 -> 0
A59: 458 | B59: SL Hirst | C59: 30 | E59: 68 | F59: 152687 | G59: 24 | H59: Simon Hirst | I59: Gas | J59: N | K59: 2 | L59: Scunthorpe | M59: 10:12:30 | N59: =M59+TIME(7,0,0) -> 17:12:30 | O59: 3 | P59: 0 | Q59: 0 | R59: 2 | S59: 2 | T59: 3 | U59: 0 | V59: 0 | W59: 0 | X59: 0 | Y59: 5 | Z59: 2 | AA59: 0 | AB59: 0 | AC59: 3 | AD59: 0 | AE59: 0 | AF59: 0 | AG59: 0 | AH59: 3 | AI59: 0 | AJ59: 0 | AK59: 1 | AL59: 0 | AM59: 0 | AN59: 1 | AO59: 0 | AP59: 2 | AQ59: 0 | AR59: 0 | AS59: 0 | AT59: 0 | AU59: 0 | AV59: 1 | AW59: 0 | AX59: 1 | AY59: 3 | AZ59: 0 | BA59: 0 | BB59: 5 | BE59: =SUM(O59:BD59) -> 37 | BF59: =COUNTIF(O59:BB59,0) -> 25 | BG59: =COUNTIF(O59:BB59,1) -> 4 | BH59: =COUNTIF(O59:BB59,2) -> 4 | BI59: =COUNTIF(O59:BB59,3) -> 5 | BJ59: =COUNTIF(O59:BB59,5) -> 2 | BK59: =COUNTIF(O59:BB59,10) -> 0 | BM59: =$D$9*$D$8 -> 40 | BN59: =SUM(BF59:BK59) -> 40 | BO59: =BN59/BM59 -> 1 | BP59: =BK59/BN59 -> 0
A60: 100096 | B60: S hartley | C60: 30 | E60: 84 | F60: 147798 | G60: 38 | H60: Simon Hartley | I60: She | J60: N | K60: 2 | L60: Barley | M60: 10:19:30 | N60: =M60+TIME(7,0,0) -> 17:19:30 | O60: 1 | P60: 0 | Q60: 0 | R60: 1 | S60: 3 | T60: 2 | U60: 3 | V60: 0 | W60: 2 | X60: 0 | Y60: 2 | Z60: 1 | AA60: 0 | AB60: 1 | AC60: 0 | AD60: 2 | AE60: 2 | AF60: 0 | AG60: 0 | AH60: 1 | AI60: 1 | AJ60: 1 | AK60: 1 | AL60: 0 | AM60: 0 | AN60: 0 | AO60: 0 | AP60: 0 | AQ60: 0 | AR60: 0 | AS60: 0 | AT60: 3 | AU60: 3 | AV60: 0 | AW60: 0 | AX60: 1 | AY60: 0 | AZ60: 2 | BA60: 0 | BB60: 5 | BE60: =SUM(O60:BD60) -> 38 | BF60: =COUNTIF(O60:BB60,0) -> 20 | BG60: =COUNTIF(O60:BB60,1) -> 9 | BH60: =COUNTIF(O60:BB60,2) -> 6 | BI60: =COUNTIF(O60:BB60,3) -> 4 | BJ60: =COUNTIF(O60:BB60,5) -> 1 | BK60: =COUNTIF(O60:BB60,10) -> 0 | BM60: =$D$9*$D$8 -> 40 | BN60: =SUM(BF60:BK60) -> 40 | BO60: =BN60/BM60 -> 1 | BP60: =BK60/BN60 -> 0
A61: 22858 | B61: Adams Garage | C61: 120 | E61: 22 | F61: 106360 | G61: 14 | H61: Adam McCanna | I61: Hon | J61: I | K61: 2 | L61: Leigh | M61: 10:07:30 | N61: =M61+TIME(7,0,0) -> 17:07:30 | O61: 0 | P61: 0 | Q61: 0 | R61: 3 | S61: 3 | T61: 3 | U61: 1 | V61: 0 | W61: 1 | X61: 2 | Y61: 0 | Z61: 3 | AA61: 0 | AB61: 0 | AC61: 5 | AD61: 0 | AE61: 0 | AF61: 0 | AG61: 1 | AH61: 3 | AI61: 0 | AJ61: 3 | AK61: 1 | AL61: 0 | AM61: 0 | AN61: 0 | AO61: 0 | AP61: 0 | AQ61: 0 | AR61: 0 | AS61: 0 | AT61: 3 | AU61: 1 | AV61: 0 | AW61: 0 | AX61: 1 | AY61: 0 | AZ61: 2 | BA61: 0 | BB61: 5 | BE61: =SUM(O61:BD61) -> 41 | BF61: =COUNTIF(O61:BB61,0) -> 23 | BG61: =COUNTIF(O61:BB61,1) -> 6 | BH61: =COUNTIF(O61:BB61,2) -> 2 | BI61: =COUNTIF(O61:BB61,3) -> 7 | BJ61: =COUNTIF(O61:BB61,5) -> 2 | BK61: =COUNTIF(O61:BB61,10) -> 0 | BM61: =$D$9*$D$8 -> 40 | BN61: =SUM(BF61:BK61) -> 40 | BO61: =BN61/BM61 -> 1 | BP61: =BK61/BN61 -> 0
A62: Cash | C62: 30 | E62: 36 | F62: 122607 | G62: 19 | H62: Oliver Ingham | I62: She | J62: I | K62: 2 | L62: Bacup | M62: 10:10:00 | N62: =M62+TIME(7,0,0) -> 17:10:00 | O62: 1 | P62: 0 | Q62: 0 | R62: 3 | S62: 2 | T62: 3 | U62: 3 | V62: 1 | W62: 0 | X62: 0 | Y62: 0 | Z62: 3 | AA62: 1 | AB62: 0 | AC62: 1 | AD62: 3 | AE62: 0 | AF62: 2 | AG62: 3 | AH62: 5 | AI62: 0 | AJ62: 1 | AK62: 0 | AL62: 0 | AM62: 0 | AN62: 0 | AO62: 0 | AP62: 0 | AQ62: 0 | AR62: 0 | AS62: 0 | AT62: 0 | AU62: 2 | AV62: 1 | AW62: 0 | AX62: 0 | AY62: 1 | AZ62: 1 | BA62: 0 | BB62: 5 | BE62: =SUM(O62:BD62) -> 42 | BF62: =COUNTIF(O62:BB62,0) -> 21 | BG62: =COUNTIF(O62:BB62,1) -> 8 | BH62: =COUNTIF(O62:BB62,2) -> 3 | BI62: =COUNTIF(O62:BB62,3) -> 6 | BJ62: =COUNTIF(O62:BB62,5) -> 2 | BK62: =COUNTIF(O62:BB62,10) -> 0 | BM62: =$D$9*$D$8 -> 40 | BN62: =SUM(BF62:BK62) -> 40 | BO62: =BN62/BM62 -> 1 | BP62: =BK62/BN62 -> 0
A63: . | E63: 26 | F63: 16260 | G63: 18 | H63: Ian Haigh | I63: Mon | J63: N | K63: 2 | L63: Huddersfield | M63: 10:09:30 | N63: =M63+TIME(7,0,0) -> 17:09:30 | O63: 1 | P63: 0 | Q63: 1 | R63: 3 | S63: 3 | T63: 2 | U63: 3 | V63: 0 | W63: 1 | X63: 0 | Y63: 3 | Z63: 0 | AA63: 0 | AB63: 3 | AC63: 3 | AD63: 1 | AE63: 0 | AF63: 1 | AG63: 0 | AH63: 3 | AI63: 0 | AJ63: 2 | AK63: 2 | AL63: 0 | AM63: 0 | AN63: 0 | AO63: 0 | AP63: 0 | AQ63: 0 | AR63: 0 | AS63: 0 | AT63: 1 | AU63: 3 | AV63: 0 | AW63: 0 | AX63: 0 | AY63: 0 | AZ63: 1 | BA63: 0 | BB63: 5 | BE63: =SUM(O63:BD63) -> 42 | BF63: =COUNTIF(O63:BB63,0) -> 21 | BG63: =COUNTIF(O63:BB63,1) -> 7 | BH63: =COUNTIF(O63:BB63,2) -> 3 | BI63: =COUNTIF(O63:BB63,3) -> 8 | BJ63: =COUNTIF(O63:BB63,5) -> 1 | BK63: =COUNTIF(O63:BB63,10) -> 0 | BM63: =$D$9*$D$8 -> 40 | BN63: =SUM(BF63:BK63) -> 40 | BO63: =BN63/BM63 -> 1 | BP63: =BK63/BN63 -> 0
A64: . | E64: 66 | F64: 10991 | G64: 79 | H64: David Hardy | I64: Mon | J64: N | K64: 2 | L64: Sutton on Forest | M64: 10:40:30 | N64: =M64+TIME(7,0,0) -> 17:40:30 | O64: 0 | P64: 0 | Q64: 1 | R64: 3 | S64: 1 | T64: 2 | U64: 1 | V64: 0 | W64: 1 | X64: 0 | Y64: 1 | Z64: 0 | AA64: 0 | AB64: 0 | AC64: 3 | AD64: 1 | AE64: 0 | AF64: 0 | AG64: 0 | AH64: 3 | AI64: 0 | AJ64: 1 | AK64: 0 | AL64: 0 | AM64: 0 | AN64: 0 | AO64: 0 | AP64: 0 | AQ64: 0 | AR64: 5 | AS64: 0 | AT64: 5 | AU64: 0 | AV64: 0 | AW64: 0 | AX64: 0 | AY64: 5 | AZ64: 5 | BA64: 0 | BB64: 5 | BE64: =SUM(O64:BD64) -> 43 | BF64: =COUNTIF(O64:BB64,0) -> 24 | BG64: =COUNTIF(O64:BB64,1) -> 7 | BH64: =COUNTIF(O64:BB64,2) -> 1 | BI64: =COUNTIF(O64:BB64,3) -> 3 | BJ64: =COUNTIF(O64:BB64,5) -> 5 | BK64: =COUNTIF(O64:BB64,10) -> 0 | BM64: =$D$9*$D$8 -> 40 | BN64: =SUM(BF64:BK64) -> 40 | BO64: =BN64/BM64 -> 1 | BP64: =BK64/BN64 -> 0
A65: 2 | B65: S McElnea | C65: 30 | E65: 14 | F65: 126271 | G65: 9 | H65: Rob McElnea | I65: Bet | J65: I | K65: 2 | L65: Scamton | M65: 10:05:00 | N65: =M65+TIME(7,0,0) -> 17:05:00 | O65: 1 | P65: 1 | Q65: 0 | R65: 3 | S65: 3 | T65: 2 | U65: 5 | V65: 0 | W65: 0 | X65: 0 | Y65: 3 | Z65: 0 | AA65: 0 | AB65: 1 | AC65: 2 | AD65: 5 | AE65: 0 | AF65: 0 | AG65: 0 | AH65: 5 | AI65: 0 | AJ65: 1 | AK65: 0 | AL65: 0 | AM65: 0 | AN65: 0 | AO65: 0 | AP65: 5 | AQ65: 0 | AR65: 0 | AS65: 0 | AT65: 1 | AU65: 2 | AV65: 0 | AW65: 0 | AX65: 0 | AY65: 0 | AZ65: 0 | BA65: 0 | BB65: 5 | BE65: =SUM(O65:BD65) -> 45 | BF65: =COUNTIF(O65:BB65,0) -> 24 | BG65: =COUNTIF(O65:BB65,1) -> 5 | BH65: =COUNTIF(O65:BB65,2) -> 3 | BI65: =COUNTIF(O65:BB65,3) -> 3 | BJ65: =COUNTIF(O65:BB65,5) -> 5 | BK65: =COUNTIF(O65:BB65,10) -> 0 | BM65: =$D$9*$D$8 -> 40 | BN65: =SUM(BF65:BK65) -> 40 | BO65: =BN65/BM65 -> 1 | BP65: =BK65/BN65 -> 0
A66: 161 | B66: PS Marwood | C66: 30 | E66: 15 | F66: 102454 | G66: 8 | H66: Paul Marwood | I66: She | J66: I | K66: 2 | L66: Alford | M66: 10:04:30 | N66: =M66+TIME(7,0,0) -> 17:04:30 | O66: 1 | P66: 0 | Q66: 0 | R66: 3 | S66: 3 | T66: 3 | U66: 3 | V66: 0 | W66: 1 | X66: 0 | Y66: 0 | Z66: 3 | AA66: 0 | AB66: 1 | AC66: 3 | AD66: 1 | AE66: 0 | AF66: 0 | AG66: 0 | AH66: 5 | AI66: 0 | AJ66: 3 | AK66: 3 | AL66: 0 | AM66: 0 | AN66: 0 | AO66: 0 | AP66: 3 | AQ66: 0 | AR66: 0 | AS66: 0 | AT66: 1 | AU66: 1 | AV66: 0 | AW66: 0 | AX66: 1 | AY66: 0 | AZ66: 3 | BA66: 0 | BB66: 3 | BE66: =SUM(O66:BD66) -> 45 | BF66: =COUNTIF(O66:BB66,0) -> 21 | BG66: =COUNTIF(O66:BB66,1) -> 7 | BH66: =COUNTIF(O66:BB66,2) -> 0 | BI66: =COUNTIF(O66:BB66,3) -> 11 | BJ66: =COUNTIF(O66:BB66,5) -> 1 | BK66: =COUNTIF(O66:BB66,10) -> 0 | BM66: =$D$9*$D$8 -> 40 | BN66: =SUM(BF66:BK66) -> 40 | BO66: =BN66/BM66 -> 1 | BP66: =BK66/BN66 -> 0
B67: PAY PAL | C67: 30 | F67: 103208 | G67: 92 | H67: Ryan Martin | I67: Gas | J67: N | K67: 2 | L67: St Johns Chapel | M67: 10:47:00 | N67: =M67+TIME(7,0,0) -> 17:47:00 | O67: 2 | P67: 0 | Q67: 1 | R67: 2 | S67: 3 | T67: 0 | U67: 2 | V67: 0 | W67: 5 | X67: 2 | Y67: 3 | Z67: 1 | AA67: 0 | AB67: 1 | AC67: 5 | AD67: 0 | AE67: 1 | AF67: 0 | AG67: 0 | AH67: 3 | AI67: 0 | AJ67: 1 | AK67: 1 | AL67: 0 | AM67: 0 | AN67: 0 | AO67: 0 | AP67: 0 | AQ67: 0 | AR67: 0 | AS67: 0 | AT67: 1 | AU67: 0 | AV67: 0 | AW67: 0 | AX67: 1 | AY67: 0 | AZ67: 3 | BA67: 2 | BB67: 5 | BE67: =SUM(O67:BD67) -> 45 | BF67: =COUNTIF(O67:BB67,0) -> 20 | BG67: =COUNTIF(O67:BB67,1) -> 8 | BH67: =COUNTIF(O67:BB67,2) -> 5 | BI67: =COUNTIF(O67:BB67,3) -> 4 | BJ67: =COUNTIF(O67:BB67,5) -> 3 | BK67: =COUNTIF(O67:BB67,10) -> 0 | BM67: =$D$9*$D$8 -> 40 | BN67: =SUM(BF67:BK67) -> 40 | BO67: =BN67/BM67 -> 1 | BP67: =BK67/BN67 -> 0
A68: … | E68: 29 | F68: 8866 | G68: 71 | H68: Geoff Fielding | I68: Gas | J68: N | K68: 2 | L68: Hunwick | M68: 10:36:30 | N68: =M68+TIME(7,0,0) -> 17:36:30 | O68: 1 | P68: 0 | Q68: 0 | R68: 3 | S68: 3 | T68: 3 | U68: 3 | V68: 1 | W68: 0 | X68: 1 | Y68: 0 | Z68: 1 | AA68: 0 | AB68: 3 | AC68: 3 | AD68: 1 | AE68: 0 | AF68: 3 | AG68: 0 | AH68: 2 | AI68: 0 | AJ68: 1 | AK68: 1 | AL68: 0 | AM68: 0 | AN68: 0 | AO68: 0 | AP68: 2 | AQ68: 0 | AR68: 0 | AS68: 0 | AT68: 2 | AU68: 1 | AV68: 1 | AW68: 0 | AX68: 0 | AY68: 1 | AZ68: 3 | BA68: 3 | BB68: 3 | BE68: =SUM(O68:BD68) -> 46 | BF68: =COUNTIF(O68:BB68,0) -> 17 | BG68: =COUNTIF(O68:BB68,1) -> 10 | BH68: =COUNTIF(O68:BB68,2) -> 3 | BI68: =COUNTIF(O68:BB68,3) -> 10 | BJ68: =COUNTIF(O68:BB68,5) -> 0 | BK68: =COUNTIF(O68:BB68,10) -> 0 | BM68: =$D$9*$D$8 -> 40 | BN68: =SUM(BF68:BK68) -> 40 | BO68: =BN68/BM68 -> 1 | BP68: =BK68/BN68 -> 0
A69: 100448 | B69: AR Beane | C69: 30 | E69: 18 | F69: 95195 | G69: 21 | H69: Andrew Beane | I69: Gas | J69: N | K69: 2 | L69: Yarm | M69: 10:11:00 | N69: =M69+TIME(7,0,0) -> 17:11:00 | O69: 1 | P69: 1 | Q69: 2 | R69: 1 | S69: 3 | T69: 3 | U69: 3 | V69: 3 | W69: 0 | X69: 0 | Y69: 3 | Z69: 3 | AA69: 3 | AB69: 0 | AC69: 3 | AD69: 1 | AE69: 0 | AF69: 1 | AG69: 0 | AH69: 3 | AI69: 0 | AJ69: 2 | AK69: 1 | AL69: 0 | AM69: 0 | AN69: 1 | AO69: 0 | AP69: 0 | AQ69: 0 | AR69: 0 | AS69: 0 | AT69: 0 | AU69: 0 | AV69: 0 | AW69: 0 | AX69: 1 | AY69: 0 | AZ69: 2 | BA69: 1 | BB69: 5 | BE69: =SUM(O69:BD69) -> 47 | BF69: =COUNTIF(O69:BB69,0) -> 18 | BG69: =COUNTIF(O69:BB69,1) -> 9 | BH69: =COUNTIF(O69:BB69,2) -> 3 | BI69: =COUNTIF(O69:BB69,3) -> 9 | BJ69: =COUNTIF(O69:BB69,5) -> 1 | BK69: =COUNTIF(O69:BB69,10) -> 0 | BM69: =$D$9*$D$8 -> 40 | BN69: =SUM(BF69:BK69) -> 40 | BO69: =BN69/BM69 -> 1 | BP69: =BK69/BN69 -> 0
A70: . | E70: 41 | F70: 20852 | G70: 69 | H70: Mick Flanagan | I70: Oss | J70: I | K70: 2 | L70: Bridgenorth | M70: 10:35:00 | N70: =M70+TIME(7,0,0) -> 17:35:00 | O70: 1 | P70: 0 | Q70: 1 | R70: 1 | S70: 2 | T70: 2 | U70: 3 | V70: 0 | W70: 1 | X70: 1 | Y70: 2 | Z70: 3 | AA70: 1 | AB70: 2 | AC70: 0 | AD70: 1 | AE70: 0 | AF70: 0 | AG70: 0 | AH70: 3 | AI70: 0 | AJ70: 1 | AK70: 2 | AL70: 0 | AM70: 0 | AN70: 0 | AO70: 0 | AP70: 1 | AQ70: 0 | AR70: 1 | AS70: 0 | AT70: 3 | AU70: 1 | AV70: 0 | AW70: 0 | AX70: 2 | AY70: 1 | AZ70: 5 | BA70: 3 | BB70: 5 | BE70: =SUM(O70:BD70) -> 49 | BF70: =COUNTIF(O70:BB70,0) -> 15 | BG70: =COUNTIF(O70:BB70,1) -> 12 | BH70: =COUNTIF(O70:BB70,2) -> 6 | BI70: =COUNTIF(O70:BB70,3) -> 5 | BJ70: =COUNTIF(O70:BB70,5) -> 2 | BK70: =COUNTIF(O70:BB70,10) -> 0 | BM70: =$D$9*$D$8 -> 40 | BN70: =SUM(BF70:BK70) -> 40 | BO70: =BN70/BM70 -> 1 | BP70: =BK70/BN70 -> 0
A71: . | E71: 23 | F71: 106361 | G71: 15 | H71: Jimmy McCanna | I71: Hon | J71: I | K71: 2 | L71: Leigh | M71: 10:08:00 | N71: =M71+TIME(7,0,0) -> 17:08:00 | O71: 1 | P71: 0 | Q71: 1 | R71: 2 | S71: 3 | T71: 1 | U71: 5 | V71: 0 | W71: 1 | X71: 3 | Y71: 1 | Z71: 2 | AA71: 0 | AB71: 0 | AC71: 3 | AD71: 2 | AE71: 1 | AF71: 0 | AG71: 1 | AH71: 2 | AI71: 0 | AJ71: 2 | AK71: 0 | AL71: 0 | AM71: 0 | AN71: 5 | AO71: 0 | AP71: 0 | AQ71: 0 | AR71: 0 | AS71: 0 | AT71: 1 | AU71: 3 | AV71: 3 | AW71: 0 | AX71: 1 | AY71: 0 | AZ71: 1 | BA71: 0 | BB71: 5 | BE71: =SUM(O71:BD71) -> 50 | BF71: =COUNTIF(O71:BB71,0) -> 17 | BG71: =COUNTIF(O71:BB71,1) -> 10 | BH71: =COUNTIF(O71:BB71,2) -> 5 | BI71: =COUNTIF(O71:BB71,3) -> 5 | BJ71: =COUNTIF(O71:BB71,5) -> 3 | BK71: =COUNTIF(O71:BB71,10) -> 0 | BM71: =$D$9*$D$8 -> 40 | BN71: =SUM(BF71:BK71) -> 40 | BO71: =BN71/BM71 -> 1 | BP71: =BK71/BN71 -> 0
A72: 3272 | B72: Mr W Wood | C72: 60 | E72: 25 | F72: 6258 | G72: 17 | H72: William Wood | I72: Bet | J72: N | K72: 2 | L72: Rotherham | M72: 10:09:00 | N72: =M72+TIME(7,0,0) -> 17:09:00 | O72: 2 | P72: 1 | Q72: 1 | R72: 3 | S72: 3 | T72: 2 | U72: 3 | V72: 0 | W72: 1 | X72: 1 | Y72: 1 | Z72: 3 | AA72: 0 | AB72: 2 | AC72: 0 | AD72: 1 | AE72: 2 | AF72: 1 | AG72: 0 | AH72: 3 | AI72: 0 | AJ72: 0 | AK72: 2 | AL72: 0 | AM72: 0 | AN72: 0 | AO72: 1 | AP72: 0 | AQ72: 0 | AR72: 1 | AS72: 0 | AT72: 2 | AU72: 0 | AV72: 2 | AW72: 0 | AX72: 1 | AY72: 0 | AZ72: 3 | BA72: 3 | BB72: 5 | BE72: =SUM(O72:BD72) -> 50 | BF72: =COUNTIF(O72:BB72,0) -> 15 | BG72: =COUNTIF(O72:BB72,1) -> 10 | BH72: =COUNTIF(O72:BB72,2) -> 7 | BI72: =COUNTIF(O72:BB72,3) -> 7 | BJ72: =COUNTIF(O72:BB72,5) -> 1 | BK72: =COUNTIF(O72:BB72,10) -> 0 | BM72: =$D$9*$D$8 -> 40 | BN72: =SUM(BF72:BK72) -> 40 | BO72: =BN72/BM72 -> 1 | BP72: =BK72/BN72 -> 0
B73: PAY PAL | C73: 30 | E73: 4 | F73: 19975 | G73: 84 | H73: Chris Tolson | I73: Bet | J73: N | K73: 2 | L73: Huddersfield | M73: 10:43:00 | N73: =M73+TIME(7,0,0) -> 17:43:00 | O73: 1 | P73: 0 | Q73: 0 | R73: 3 | S73: 2 | T73: 1 | U73: 3 | V73: 0 | W73: 1 | X73: 2 | Y73: 1 | Z73: 3 | AA73: 0 | AB73: 1 | AC73: 2 | AD73: 1 | AE73: 1 | AF73: 0 | AG73: 2 | AH73: 2 | AI73: 0 | AJ73: 3 | AK73: 1 | AL73: 0 | AM73: 0 | AN73: 2 | AO73: 5 | AP73: 2 | AQ73: 1 | AR73: 0 | AS73: 0 | AT73: 1 | AU73: 0 | AV73: 0 | AW73: 0 | AX73: 3 | AY73: 0 | AZ73: 3 | BA73: 1 | BB73: 3 | BE73: =SUM(O73:BD73) -> 51 | BF73: =COUNTIF(O73:BB73,0) -> 14 | BG73: =COUNTIF(O73:BB73,1) -> 11 | BH73: =COUNTIF(O73:BB73,2) -> 7 | BI73: =COUNTIF(O73:BB73,3) -> 7 | BJ73: =COUNTIF(O73:BB73,5) -> 1 | BK73: =COUNTIF(O73:BB73,10) -> 0 | BM73: =$D$9*$D$8 -> 40 | BN73: =SUM(BF73:BK73) -> 40 | BO73: =BN73/BM73 -> 1 | BP73: =BK73/BN73 -> 0
A74: 100066 | B74: AD Holmes | C74: 30 | E74: 27 | F74: 77934 | G74: 31 | H74: Tony Holmes | I74: Bet | J74: N | K74: 2 | L74: Skipton | M74: 10:16:00 | N74: =M74+TIME(7,0,0) -> 17:16:00 | O74: 3 | P74: 0 | Q74: 0 | R74: 1 | S74: 2 | T74: 2 | U74: 3 | V74: 0 | W74: 0 | X74: 1 | Y74: 2 | Z74: 3 | AA74: 0 | AB74: 2 | AC74: 3 | AD74: 2 | AE74: 2 | AF74: 0 | AG74: 5 | AH74: 3 | AI74: 0 | AJ74: 1 | AK74: 2 | AL74: 2 | AM74: 0 | AN74: 1 | AO74: 0 | AP74: 0 | AQ74: 2 | AR74: 0 | AS74: 0 | AT74: 2 | AU74: 2 | AV74: 1 | AW74: 0 | AX74: 0 | AY74: 2 | AZ74: 1 | BA74: 0 | BB74: 2 | BE74: =SUM(O74:BD74) -> 52 | BF74: =COUNTIF(O74:BB74,0) -> 15 | BG74: =COUNTIF(O74:BB74,1) -> 6 | BH74: =COUNTIF(O74:BB74,2) -> 13 | BI74: =COUNTIF(O74:BB74,3) -> 5 | BJ74: =COUNTIF(O74:BB74,5) -> 1 | BK74: =COUNTIF(O74:BB74,10) -> 0 | BM74: =$D$9*$D$8 -> 40 | BN74: =SUM(BF74:BK74) -> 40 | BO74: =BN74/BM74 -> 1 | BP74: =BK74/BN74 -> 0
A75: 300599 | B75: A Dennis | C75: 30 | E75: 19 | F75: 108572 | G75: 22 | H75: Andrew Dennis | I75: Bet | J75: N | K75: 2 | L75: Stockton on Tees | M75: 10:11:30 | N75: =M75+TIME(7,0,0) -> 17:11:30 | O75: 0 | P75: 1 | Q75: 0 | R75: 1 | S75: 0 | T75: 1 | U75: 3 | V75: 0 | W75: 1 | X75: 0 | Y75: 1 | Z75: 3 | AA75: 5 | AB75: 2 | AC75: 1 | AD75: 1 | AE75: 0 | AF75: 0 | AG75: 2 | AH75: 3 | AI75: 0 | AJ75: 5 | AK75: 2 | AL75: 1 | AM75: 0 | AN75: 0 | AO75: 0 | AP75: 3 | AQ75: 3 | AR75: 1 | AS75: 0 | AT75: 3 | AU75: 0 | AV75: 0 | AW75: 0 | AX75: 1 | AY75: 1 | AZ75: 3 | BA75: 1 | BB75: 5 | BE75: =SUM(O75:BD75) -> 54 | BF75: =COUNTIF(O75:BB75,0) -> 15 | BG75: =COUNTIF(O75:BB75,1) -> 12 | BH75: =COUNTIF(O75:BB75,2) -> 3 | BI75: =COUNTIF(O75:BB75,3) -> 7 | BJ75: =COUNTIF(O75:BB75,5) -> 3 | BK75: =COUNTIF(O75:BB75,10) -> 0 | BM75: =$D$9*$D$8 -> 40 | BN75: =SUM(BF75:BK75) -> 40 | BO75: =BN75/BM75 -> 1 | BP75: =BK75/BN75 -> 0
A76: 100063 | B76: I Rutter | C76: 60 | E76: 28 | F76: 15597 | G76: 72 | H76: Ian Rutter | I76: Gas | J76: N | K76: 2 | L76: Hunwick | M76: 10:37:00 | N76: =M76+TIME(7,0,0) -> 17:37:00 | O76: 0 | P76: 0 | Q76: 0 | R76: 5 | S76: 2 | T76: 1 | U76: 3 | V76: 0 | W76: 1 | X76: 0 | Y76: 0 | Z76: 3 | AA76: 1 | AB76: 1 | AC76: 0 | AD76: 1 | AE76: 2 | AF76: 0 | AG76: 0 | AH76: 3 | AI76: 5 | AJ76: 5 | AK76: 3 | AL76: 0 | AM76: 0 | AN76: 0 | AO76: 0 | AP76: 5 | AQ76: 0 | AR76: 0 | AS76: 0 | AT76: 3 | AU76: 1 | AV76: 2 | AW76: 0 | AX76: 2 | AY76: 0 | AZ76: 5 | BA76: 1 | BB76: 3 | BE76: =SUM(O76:BD76) -> 58 | BF76: =COUNTIF(O76:BB76,0) -> 18 | BG76: =COUNTIF(O76:BB76,1) -> 7 | BH76: =COUNTIF(O76:BB76,2) -> 4 | BI76: =COUNTIF(O76:BB76,3) -> 6 | BJ76: =COUNTIF(O76:BB76,5) -> 5 | BK76: =COUNTIF(O76:BB76,10) -> 0 | BM76: =$D$9*$D$8 -> 40 | BN76: =SUM(BF76:BK76) -> 40 | BO76: =BN76/BM76 -> 1 | BP76: =BK76/BN76 -> 0
A77: . | B77: PAY PAL | C77: 29.75 | E77: 80 | F77: 81073 | G77: 90 | H77: Martin Jackson | I77: She | J77: I | K77: 2 | L77: Rochdale | M77: 10:46:00 | N77: =M77+TIME(7,0,0) -> 17:46:00 | O77: 0 | P77: 5 | Q77: 0 | R77: 3 | S77: 3 | T77: 3 | U77: 3 | V77: 0 | W77: 0 | X77: 0 | Y77: 0 | Z77: 3 | AA77: 1 | AB77: 2 | AC77: 1 | AD77: 2 | AE77: 1 | AF77: 0 | AG77: 0 | AH77: 3 | AI77: 0 | AJ77: 1 | AK77: 2 | AL77: 0 | AM77: 0 | AN77: 5 | AO77: 3 | AP77: 2 | AQ77: 5 | AR77: 0 | AS77: 0 | AT77: 1 | AU77: 0 | AV77: 0 | AW77: 0 | AX77: 2 | AY77: 2 | AZ77: 3 | BA77: 0 | BB77: 3 | BE77: =SUM(O77:BD77) -> 59 | BF77: =COUNTIF(O77:BB77,0) -> 17 | BG77: =COUNTIF(O77:BB77,1) -> 5 | BH77: =COUNTIF(O77:BB77,2) -> 6 | BI77: =COUNTIF(O77:BB77,3) -> 9 | BJ77: =COUNTIF(O77:BB77,5) -> 3 | BK77: =COUNTIF(O77:BB77,10) -> 0 | BM77: =$D$9*$D$8 -> 40 | BN77: =SUM(BF77:BK77) -> 40 | BO77: =BN77/BM77 -> 1 | BP77: =BK77/BN77 -> 0
A78: . | E78: 71 | F78: 134345 | G78: 4 | H78: Ernie Byrne | I78: Bet | J78: N | K78: 2 | L78: Spennymoor | M78: 10:02:30 | N78: =M78+TIME(7,0,0) -> 17:02:30 | O78: 1 | P78: 1 | Q78: 0 | R78: 3 | S78: 2 | T78: 3 | U78: 3 | V78: 0 | W78: 0 | X78: 1 | Y78: 1 | Z78: 0 | AA78: 1 | AB78: 1 | AC78: 1 | AD78: 3 | AE78: 3 | AF78: 1 | AG78: 3 | AH78: 5 | AI78: 0 | AJ78: 5 | AK78: 5 | AL78: 1 | AM78: 1 | AN78: 1 | AO78: 0 | AP78: 1 | AQ78: 0 | AR78: 0 | AS78: 0 | AT78: 2 | AU78: 0 | AV78: 0 | AW78: 0 | AX78: 1 | AY78: 0 | AZ78: 3 | BA78: 1 | BB78: 5 | BE78: =SUM(O78:BD78) -> 59 | BF78: =COUNTIF(O78:BB78,0) -> 13 | BG78: =COUNTIF(O78:BB78,1) -> 14 | BH78: =COUNTIF(O78:BB78,2) -> 2 | BI78: =COUNTIF(O78:BB78,3) -> 7 | BJ78: =COUNTIF(O78:BB78,5) -> 4 | BK78: =COUNTIF(O78:BB78,10) -> 0 | BM78: =$D$9*$D$8 -> 40 | BN78: =SUM(BF78:BK78) -> 40 | BO78: =BN78/BM78 -> 1 | BP78: =BK78/BN78 -> 0
A79: 46 | B79: D Byrne | C79: 90 | E79: 70 | F79: 118824 | G79: 3 | H79: John Bennett | I79: Gas | J79: N | K79: 2 | L79: Spennymoor | M79: 10:02:00 | N79: =M79+TIME(7,0,0) -> 17:02:00 | O79: 0 | P79: 0 | Q79: 1 | R79: 2 | S79: 1 | T79: 3 | U79: 3 | V79: 3 | W79: 0 | X79: 0 | Y79: 3 | Z79: 3 | AA79: 0 | AB79: 3 | AC79: 3 | AD79: 2 | AE79: 2 | AF79: 0 | AG79: 0 | AH79: 3 | AI79: 1 | AJ79: 3 | AK79: 1 | AL79: 5 | AM79: 0 | AN79: 2 | AO79: 0 | AP79: 0 | AQ79: 2 | AR79: 0 | AS79: 0 | AT79: 3 | AU79: 1 | AV79: 3 | AW79: 0 | AX79: 1 | AY79: 0 | AZ79: 1 | BA79: 0 | BB79: 5 | BE79: =SUM(O79:BD79) -> 60 | BF79: =COUNTIF(O79:BB79,0) -> 15 | BG79: =COUNTIF(O79:BB79,1) -> 7 | BH79: =COUNTIF(O79:BB79,2) -> 5 | BI79: =COUNTIF(O79:BB79,3) -> 11 | BJ79: =COUNTIF(O79:BB79,5) -> 2 | BK79: =COUNTIF(O79:BB79,10) -> 0 | BM79: =$D$9*$D$8 -> 40 | BN79: =SUM(BF79:BK79) -> 40 | BO79: =BN79/BM79 -> 1 | BP79: =BK79/BN79 -> 0
A80: 485 | B80: JTL Chatto | C80: 30 | E80: 62 | F80: 153963 | G80: 76 | H80: John Chatto | I80: Gas | J80: N | K80: 2 | L80: Chesham | M80: 10:39:00 | N80: =M80+TIME(7,0,0) -> 17:39:00 | O80: 0 | P80: 0 | Q80: 0 | R80: 0 | S80: 2 | T80: 3 | U80: 3 | V80: 0 | W80: 0 | X80: 3 | Y80: 3 | Z80: 3 | AA80: 0 | AB80: 1 | AC80: 1 | AD80: 0 | AE80: 0 | AF80: 3 | AG80: 1 | AH80: 3 | AI80: 0 | AJ80: 3 | AK80: 3 | AL80: 0 | AM80: 0 | AN80: 1 | AO80: 5 | AP80: 3 | AQ80: 0 | AR80: 0 | AS80: 0 | AT80: 3 | AU80: 1 | AV80: 2 | AW80: 0 | AX80: 5 | AY80: 3 | AZ80: 3 | BA80: 0 | BB80: 3 | BE80: =SUM(O80:BD80) -> 61 | BF80: =COUNTIF(O80:BB80,0) -> 17 | BG80: =COUNTIF(O80:BB80,1) -> 5 | BH80: =COUNTIF(O80:BB80,2) -> 2 | BI80: =COUNTIF(O80:BB80,3) -> 14 | BJ80: =COUNTIF(O80:BB80,5) -> 2 | BK80: =COUNTIF(O80:BB80,10) -> 0 | BM80: =$D$9*$D$8 -> 40 | BN80: =SUM(BF80:BK80) -> 40 | BO80: =BN80/BM80 -> 1 | BP80: =BK80/BN80 -> 0
A81: 52 | B81: L Armstrong | C81: 30 | E81: 69 | F81: 124986 | G81: 89 | H81: Richard Armstrong | I81: Bet | J81: N | K81: 2 | L81: Silsden | M81: 10:45:30 | N81: =M81+TIME(7,0,0) -> 17:45:30 | O81: 1 | P81: 0 | Q81: 0 | R81: 2 | S81: 3 | T81: 5 | U81: 3 | V81: 1 | W81: 3 | X81: 1 | Y81: 3 | Z81: 1 | AA81: 2 | AB81: 1 | AC81: 3 | AD81: 1 | AE81: 5 | AF81: 0 | AG81: 0 | AH81: 3 | AI81: 0 | AJ81: 0 | AK81: 3 | AL81: 0 | AM81: 0 | AN81: 0 | AO81: 0 | AP81: 5 | AQ81: 0 | AR81: 1 | AS81: 0 | AT81: 3 | AU81: 1 | AV81: 0 | AW81: 0 | AX81: 3 | AY81: 2 | AZ81: 3 | BA81: 0 | BB81: 5 | BE81: =SUM(O81:BD81) -> 64 | BF81: =COUNTIF(O81:BB81,0) -> 15 | BG81: =COUNTIF(O81:BB81,1) -> 8 | BH81: =COUNTIF(O81:BB81,2) -> 3 | BI81: =COUNTIF(O81:BB81,3) -> 10 | BJ81: =COUNTIF(O81:BB81,5) -> 4 | BK81: =COUNTIF(O81:BB81,10) -> 0 | BM81: =$D$9*$D$8 -> 40 | BN81: =SUM(BF81:BK81) -> 40 | BO81: =BN81/BM81 -> 1 | BP81: =BK81/BN81 -> 0
A82: 16 | B82: N Farrow | C82: 30 | E82: 20 | F82: 25543 | G82: 12 | H82: Anthony Farrow | I82: Mon | J82: N | K82: 2 | L82: Brierfield | M82: 10:06:30 | N82: =M82+TIME(7,0,0) -> 17:06:30 | O82: 3 | P82: 0 | Q82: 1 | R82: 3 | S82: 1 | T82: 3 | U82: 3 | V82: 1 | W82: 1 | X82: 2 | Y82: 3 | Z82: 3 | AA82: 1 | AB82: 0 | AC82: 3 | AD82: 2 | AE82: 0 | AF82: 1 | AG82: 5 | AH82: 3 | AI82: 1 | AJ82: 0 | AK82: 2 | AL82: 0 | AM82: 0 | AN82: 2 | AO82: 0 | AP82: 0 | AQ82: 1 | AR82: 0 | AS82: 0 | AT82: 3 | AU82: 0 | AV82: 2 | AW82: 0 | AX82: 5 | AY82: 1 | AZ82: 0 | BA82: 3 | BB82: 5 | BE82: =SUM(O82:BD82) -> 64 | BF82: =COUNTIF(O82:BB82,0) -> 13 | BG82: =COUNTIF(O82:BB82,1) -> 9 | BH82: =COUNTIF(O82:BB82,2) -> 5 | BI82: =COUNTIF(O82:BB82,3) -> 10 | BJ82: =COUNTIF(O82:BB82,5) -> 3 | BK82: =COUNTIF(O82:BB82,10) -> 0 | BM82: =$D$9*$D$8 -> 40 | BN82: =SUM(BF82:BK82) -> 40 | BO82: =BN82/BM82 -> 1 | BP82: =BK82/BN82 -> 0
A83: . | E83: 72 | F83: 146405 | G83: 5 | H83: Zack Hubery | I83: She | J83: N | K83: 2 | L83: Spennymoor | M83: 10:03:00 | N83: =M83+TIME(7,0,0) -> 17:03:00 | O83: 2 | P83: 0 | Q83: 1 | R83: 3 | S83: 3 | T83: 3 | U83: 3 | V83: 3 | W83: 2 | X83: 3 | Y83: 3 | Z83: 1 | AA83: 1 | AB83: 1 | AC83: 3 | AD83: 0 | AE83: 5 | AF83: 1 | AG83: 3 | AH83: 3 | AI83: 1 | AJ83: 1 | AK83: 2 | AL83: 5 | AM83: 0 | AN83: 0 | AO83: 5 | AP83: 3 | AQ83: 1 | AR83: 0 | AS83: 0 | AT83: 3 | AU83: 3 | AV83: 0 | AW83: 0 | AX83: 0 | AY83: 0 | AZ83: 1 | BA83: 1 | BB83: 3 | BE83: =SUM(O83:BD83) -> 73 | BF83: =COUNTIF(O83:BB83,0) -> 10 | BG83: =COUNTIF(O83:BB83,1) -> 10 | BH83: =COUNTIF(O83:BB83,2) -> 3 | BI83: =COUNTIF(O83:BB83,3) -> 14 | BJ83: =COUNTIF(O83:BB83,5) -> 3 | BK83: =COUNTIF(O83:BB83,10) -> 0 | BM83: =$D$9*$D$8 -> 40 | BN83: =SUM(BF83:BK83) -> 40 | BO83: =BN83/BM83 -> 1 | BP83: =BK83/BN83 -> 0
A84: 179 | B84: Mr SJ Smith | C84: 60 | E84: 56 | F84: 122283 | G84: 1 | H84: Stephen Smith | I84: Gas | J84: N | K84: 2 | L84: Barnoldswick | M84: 10:01:00 | N84: =M84+TIME(7,0,0) -> 17:01:00 | O84: 1 | P84: 0 | Q84: 1 | R84: 3 | S84: 2 | T84: 2 | U84: 3 | V84: 0 | W84: 3 | X84: 2 | Y84: 1 | Z84: 3 | AA84: 5 | AB84: 0 | AC84: 3 | AD84: 0 | AE84: 1 | AF84: 1 | AG84: 3 | AH84: 3 | AI84: 3 | AJ84: 1 | AK84: 3 | AL84: 0 | AM84: 0 | AN84: 5 | AO84: 5 | AP84: 0 | AQ84: 0 | AR84: 0 | AS84: 0 | AT84: 3 | AU84: 2 | AV84: 5 | AW84: 0 | AX84: 2 | AY84: 1 | AZ84: 2 | BA84: 0 | BB84: 5 | BE84: =SUM(O84:BD84) -> 74 | BF84: =COUNTIF(O84:BB84,0) -> 12 | BG84: =COUNTIF(O84:BB84,1) -> 7 | BH84: =COUNTIF(O84:BB84,2) -> 6 | BI84: =COUNTIF(O84:BB84,3) -> 10 | BJ84: =COUNTIF(O84:BB84,5) -> 5 | BK84: =COUNTIF(O84:BB84,10) -> 0 | BM84: =$D$9*$D$8 -> 40 | BN84: =SUM(BF84:BK84) -> 40 | BO84: =BN84/BM84 -> 1 | BP84: =BK84/BN84 -> 0
A85: 100047 | B85: AG Frith | C85: 30 | E85: 16 | F85: 103690 | G85: 7 | H85: Adam Frith | I85: Gas | J85: N | K85: 2 | L85: Horncastle | M85: 10:04:00 | N85: =M85+TIME(7,0,0) -> 17:04:00 | O85: 3 | P85: 0 | Q85: 3 | R85: 5 | S85: 3 | T85: 5 | U85: 3 | V85: 1 | W85: 3 | X85: 1 | Y85: 1 | Z85: 3 | AA85: 3 | AB85: 0 | AC85: 3 | AD85: 1 | AE85: 5 | AF85: 1 | AG85: 1 | AH85: 5 | AI85: 0 | AJ85: 3 | AK85: 0 | AL85: 0 | AM85: 0 | AN85: 0 | AO85: 0 | AP85: 3 | AQ85: 5 | AR85: 0 | AS85: 0 | AT85: 1 | AU85: 3 | AV85: 0 | AW85: 0 | AX85: 2 | AY85: 0 | AZ85: 5 | BA85: 0 | BB85: 5 | BE85: =SUM(O85:BD85) -> 77 | BF85: =COUNTIF(O85:BB85,0) -> 14 | BG85: =COUNTIF(O85:BB85,1) -> 7 | BH85: =COUNTIF(O85:BB85,2) -> 1 | BI85: =COUNTIF(O85:BB85,3) -> 11 | BJ85: =COUNTIF(O85:BB85,5) -> 7 | BK85: =COUNTIF(O85:BB85,10) -> 0 | BM85: =$D$9*$D$8 -> 40 | BN85: =SUM(BF85:BK85) -> 40 | BO85: =BN85/BM85 -> 1 | BP85: =BK85/BN85 -> 0
A86: 100136 | B86: Mr N cockerham | C86: 30 | E86: 3 | F86: 99444 | G86: 73 | H86: Nigel Cockerham | I86: She | J86: N | K86: 2 | L86: Castleford | M86: 10:37:30 | N86: =M86+TIME(7,0,0) -> 17:37:30 | O86: 0 | P86: 0 | Q86: 2 | R86: 2 | S86: 3 | T86: 5 | U86: 5 | V86: 5 | W86: 0 | X86: 3 | Y86: 0 | Z86: 3 | AA86: 0 | AB86: 1 | AC86: 2 | AD86: 1 | AE86: 3 | AF86: 3 | AG86: 1 | AH86: 3 | AI86: 0 | AJ86: 3 | AK86: 3 | AL86: 0 | AM86: 0 | AN86: 0 | AO86: 2 | AP86: 3 | AQ86: 1 | AR86: 0 | AS86: 0 | AT86: 3 | AU86: 1 | AV86: 0 | AW86: 5 | AX86: 3 | AY86: 0 | AZ86: 3 | BA86: 2 | BB86: 3 | BC86: 3 | BE86: =SUM(O86:BD86) -> 77 | BF86: =COUNTIF(O86:BB86,0) -> 13 | BG86: =COUNTIF(O86:BB86,1) -> 5 | BH86: =COUNTIF(O86:BB86,2) -> 5 | BI86: =COUNTIF(O86:BB86,3) -> 13 | BJ86: =COUNTIF(O86:BB86,5) -> 4 | BK86: =COUNTIF(O86:BB86,10) -> 0 | BM86: =$D$9*$D$8 -> 40 | BN86: =SUM(BF86:BK86) -> 40 | BO86: =BN86/BM86 -> 1 | BP86: =BK86/BN86 -> 0
A87: 100198 | B87: JR Spensley | C87: 30 | E87: 50 | F87: 154960 | G87: 86 | H87: John Spensley | I87: Gas | J87: N | K87: 2 | L87: Skipton | M87: 10:44:00 | N87: =M87+TIME(7,0,0) -> 17:44:00 | O87: 1 | P87: 0 | Q87: 0 | R87: 2 | S87: 3 | T87: 3 | U87: 3 | V87: 1 | W87: 3 | X87: 3 | Y87: 1 | Z87: 0 | AA87: 3 | AB87: 1 | AC87: 5 | AD87: 2 | AE87: 3 | AF87: 0 | AG87: 1 | AH87: 5 | AI87: 1 | AJ87: 2 | AK87: 3 | AL87: 0 | AM87: 0 | AN87: 2 | AO87: 5 | AP87: 2 | AQ87: 1 | AR87: 0 | AS87: 0 | AT87: 3 | AU87: 1 | AV87: 0 | AW87: 0 | AX87: 0 | AY87: 3 | AZ87: 5 | BA87: 5 | BB87: 5 | BE87: =SUM(O87:BD87) -> 78 | BF87: =COUNTIF(O87:BB87,0) -> 11 | BG87: =COUNTIF(O87:BB87,1) -> 8 | BH87: =COUNTIF(O87:BB87,2) -> 5 | BI87: =COUNTIF(O87:BB87,3) -> 10 | BJ87: =COUNTIF(O87:BB87,5) -> 6 | BK87: =COUNTIF(O87:BB87,10) -> 0 | BM87: =$D$9*$D$8 -> 40 | BN87: =SUM(BF87:BK87) -> 40 | BO87: =BN87/BM87 -> 1 | BP87: =BK87/BN87 -> 0
A88: 100036 | B88: AJ West | C88: 30 | E88: 10 | F88: 86944 | G88: 10 | H88: Adam West | I88: Bet | J88: N | K88: 2 | L88: Messingham | M88: 10:05:30 | N88: =M88+TIME(7,0,0) -> 17:05:30 | O88: 1 | P88: 0 | Q88: 2 | R88: 3 | S88: 3 | T88: 5 | U88: 5 | V88: 1 | W88: 0 | X88: 3 | Y88: 3 | Z88: 3 | AA88: 1 | AB88: 1 | AC88: 5 | AD88: 1 | AE88: 2 | AF88: 1 | AG88: 0 | AH88: 3 | AI88: 0 | AJ88: 2 | AK88: 5 | AL88: 0 | AM88: 0 | AN88: 2 | AO88: 1 | AP88: 5 | AQ88: 0 | AR88: 2 | AS88: 0 | AT88: 5 | AU88: 2 | AV88: 0 | AW88: 2 | AX88: 3 | AY88: 2 | AZ88: 2 | BA88: 1 | BB88: 5 | BE88: =SUM(O88:BD88) -> 82 | BF88: =COUNTIF(O88:BB88,0) -> 9 | BG88: =COUNTIF(O88:BB88,1) -> 8 | BH88: =COUNTIF(O88:BB88,2) -> 9 | BI88: =COUNTIF(O88:BB88,3) -> 7 | BJ88: =COUNTIF(O88:BB88,5) -> 7 | BK88: =COUNTIF(O88:BB88,10) -> 0 | BM88: =$D$9*$D$8 -> 40 | BN88: =SUM(BF88:BK88) -> 40 | BO88: =BN88/BM88 -> 1 | BP88: =BK88/BN88 -> 0
B89: PAY PAL | C89: 30 | E89: 89 | F89: 96188 | G89: 27 | H89: Andrew Washington | I89: Bet | J89: N | K89: 2 | L89: Huddersfield | M89: 10:14:00 | N89: =M89+TIME(7,0,0) -> 17:14:00 | O89: 3 | P89: 0 | Q89: 2 | R89: 5 | S89: 5 | T89: 2 | U89: 3 | V89: 3 | W89: 1 | X89: 5 | Y89: 0 | Z89: 2 | AA89: 3 | AB89: 2 | AC89: 3 | AD89: 3 | AE89: 1 | AF89: 5 | AG89: 3 | AH89: 5 | AI89: 0 | AJ89: 1 | AK89: 3 | AL89: 1 | AM89: 0 | AN89: 0 | AO89: 5 | AP89: 1 | AQ89: 0 | AR89: 0 | AS89: 0 | AT89: 0 | AU89: 1 | AV89: 0 | AW89: 0 | AX89: 5 | AY89: 1 | AZ89: 3 | BA89: 2 | BB89: 5 | BE89: =SUM(O89:BD89) -> 84 | BF89: =COUNTIF(O89:BB89,0) -> 11 | BG89: =COUNTIF(O89:BB89,1) -> 7 | BH89: =COUNTIF(O89:BB89,2) -> 5 | BI89: =COUNTIF(O89:BB89,3) -> 9 | BJ89: =COUNTIF(O89:BB89,5) -> 8 | BK89: =COUNTIF(O89:BB89,10) -> 0 | BM89: =$D$9*$D$8 -> 40 | BN89: =SUM(BF89:BK89) -> 40 | BO89: =BN89/BM89 -> 1 | BP89: =BK89/BN89 -> 0
A90: 100127 | B90: RE Thornton | C90: 30 | E90: 59 | F90: 79834 | G90: 75 | H90: Richard Thornton | I90: Gas | J90: N | K90: 2 | L90: Leeds | M90: 10:38:30 | N90: =M90+TIME(7,0,0) -> 17:38:30 | O90: 0 | P90: 0 | Q90: 3 | R90: 3 | S90: 1 | T90: 3 | U90: 5 | V90: 3 | W90: 0 | X90: 3 | Y90: 3 | Z90: 3 | AA90: 3 | AB90: 2 | AC90: 3 | AD90: 2 | AE90: 3 | AF90: 3 | AG90: 2 | AH90: 5 | AI90: 1 | AJ90: 2 | AK90: 3 | AL90: 1 | AM90: 1 | AN90: 5 | AO90: 1 | AP90: 3 | AQ90: 2 | AR90: 5 | AS90: 0 | AT90: 3 | AU90: 0 | AV90: 0 | AW90: 0 | AX90: 3 | AY90: 3 | AZ90: 3 | BA90: 3 | BB90: 5 | BE90: =SUM(O90:BD90) -> 94 | BF90: =COUNTIF(O90:BB90,0) -> 7 | BG90: =COUNTIF(O90:BB90,1) -> 5 | BH90: =COUNTIF(O90:BB90,2) -> 5 | BI90: =COUNTIF(O90:BB90,3) -> 18 | BJ90: =COUNTIF(O90:BB90,5) -> 5 | BK90: =COUNTIF(O90:BB90,10) -> 0 | BM90: =$D$9*$D$8 -> 40 | BN90: =SUM(BF90:BK90) -> 40 | BO90: =BN90/BM90 -> 1 | BP90: =BK90/BN90 -> 0
A91: 100770 | B91: MR Whelan | C91: 30 | E91: 51 | F91: 77960 | G91: 6 | H91: Mark Whelan | I91: Gas | J91: N | K91: 2 | L91: Aberford | M91: 10:03:30 | N91: =M91+TIME(7,0,0) -> 17:03:30 | O91: 1 | P91: 0 | Q91: 1 | R91: 3 | S91: 3 | T91: 3 | U91: 5 | V91: 1 | W91: 3 | X91: 3 | Y91: 5 | Z91: 3 | AA91: 5 | AB91: 2 | AC91: 3 | AD91: 3 | AE91: 5 | AF91: 2 | AG91: 3 | AH91: 5 | AI91: 3 | AJ91: 3 | AK91: 5 | AL91: 3 | AM91: 0 | AN91: 0 | AO91: 2 | AP91: 3 | AQ91: 3 | AR91: 3 | AS91: 0 | AT91: 3 | AU91: 2 | AV91: 2 | AW91: 0 | AX91: 1 | AY91: 1 | AZ91: 3 | BA91: 3 | BB91: 5 | BE91: =SUM(O91:BD91) -> 104 | BF91: =COUNTIF(O91:BB91,0) -> 5 | BG91: =COUNTIF(O91:BB91,1) -> 5 | BH91: =COUNTIF(O91:BB91,2) -> 5 | BI91: =COUNTIF(O91:BB91,3) -> 18 | BJ91: =COUNTIF(O91:BB91,5) -> 7 | BK91: =COUNTIF(O91:BB91,10) -> 0 | BM91: =$D$9*$D$8 -> 40 | BN91: =SUM(BF91:BK91) -> 40 | BO91: =BN91/BM91 -> 1 | BP91: =BK91/BN91 -> 0
A92: 100209 | B92: S Hodson | C92: 30 | E92: 54 | F92: 103378 | G92: 65 | H92: Simon Hodson | I92: She | J92: N | K92: 2 | L92: Waddington | M92: 10:33:00 | N92: =M92+TIME(7,0,0) -> 17:33:00 | O92: 3 | P92: 0 | Q92: 3 | R92: 5 | S92: 3 | T92: 5 | U92: 5 | V92: 3 | W92: 2 | X92: 3 | Y92: 3 | Z92: 3 | AA92: 5 | AB92: 3 | AC92: 3 | AD92: 3 | AE92: 3 | AF92: 3 | AG92: 3 | AH92: 5 | AI92: 2 | AJ92: 3 | AK92: 3 | AL92: 3 | AM92: 0 | AN92: 0 | AO92: 3 | AP92: 5 | AQ92: 0 | AR92: 3 | AS92: 0 | AT92: 3 | AU92: 2 | AV92: 0 | AW92: 0 | AX92: 3 | AY92: 2 | AZ92: 5 | BA92: 3 | BB92: 5 | BE92: =SUM(O92:BD92) -> 111 | BF92: =COUNTIF(O92:BB92,0) -> 7 | BG92: =COUNTIF(O92:BB92,1) -> 0 | BH92: =COUNTIF(O92:BB92,2) -> 4 | BI92: =COUNTIF(O92:BB92,3) -> 21 | BJ92: =COUNTIF(O92:BB92,5) -> 8 | BK92: =COUNTIF(O92:BB92,10) -> 0 | BM92: =$D$9*$D$8 -> 40 | BN92: =SUM(BF92:BK92) -> 40 | BO92: =BN92/BM92 -> 1 | BP92: =BK92/BN92 -> 0
A93: . | E93: 64 | F93: 64911 | G93: 78 | H93: Richard Sanderson | I93: Gas | J93: N | K93: 2 | L93: Sutton on Forest | M93: 10:40:00 | N93: =M93+TIME(7,0,0) -> 17:40:00 | O93: 1 | P93: 0 | Q93: 3 | R93: 3 | S93: 1 | T93: 3 | U93: 5 | V93: 5 | W93: 3 | X93: 5 | Y93: 3 | Z93: 3 | AA93: 5 | AB93: 3 | AC93: 3 | AD93: 3 | AE93: 3 | AF93: 5 | AG93: 5 | AH93: 3 | AI93: 0 | AJ93: 3 | AK93: 2 | AL93: 3 | AM93: 1 | AN93: 5 | AO93: 2 | AP93: 3 | AQ93: 2 | AR93: 3 | AS93: 0 | AT93: 3 | AU93: 3 | AV93: 3 | AW93: 5 | AX93: 3 | AY93: 3 | AZ93: 5 | BA93: 3 | BB93: 5 | BE93: =SUM(O93:BD93) -> 122 | BF93: =COUNTIF(O93:BB93,0) -> 3 | BG93: =COUNTIF(O93:BB93,1) -> 3 | BH93: =COUNTIF(O93:BB93,2) -> 3 | BI93: =COUNTIF(O93:BB93,3) -> 21 | BJ93: =COUNTIF(O93:BB93,5) -> 10 | BK93: =COUNTIF(O93:BB93,10) -> 0 | BM93: =$D$9*$D$8 -> 40 | BN93: =SUM(BF93:BK93) -> 40 | BO93: =BN93/BM93 -> 1 | BP93: =BK93/BN93 -> 0
A94: . | E94: 57 | F94: 166345 | G94: 2 | H94: Lee Marsden | I94: She | J94: N | K94: 2 | L94: Barnoldswick | M94: 10:01:30 | N94: =M94+TIME(7,0,0) -> 17:01:30 | BE94: NS | BF94: =COUNTIF(O94:BB94,0) -> 0 | BG94: =COUNTIF(O94:BB94,1) -> 0 | BH94: =COUNTIF(O94:BB94,2) -> 0 | BI94: =COUNTIF(O94:BB94,3) -> 0 | BJ94: =COUNTIF(O94:BB94,5) -> 0 | BK94: =COUNTIF(O94:BB94,10) -> 0 | BM94: =$D$9*$D$8 -> 40 | BN94: =SUM(BF94:BK94) -> 0 | BO94: =BN94/BM94 -> 0 | BP94: =BK94/BN94 -> 
A95: . | E95: 24 | F95: 1947 | G95: 16 | H95: Peter McCanna | I95: Hon | J95: N | K95: 2 | L95: Leigh | M95: 10:08:30 | N95: =M95+TIME(7,0,0) -> 17:08:30 | BE95: NS | BF95: =COUNTIF(O95:BB95,0) -> 0 | BG95: =COUNTIF(O95:BB95,1) -> 0 | BH95: =COUNTIF(O95:BB95,2) -> 0 | BI95: =COUNTIF(O95:BB95,3) -> 0 | BJ95: =COUNTIF(O95:BB95,5) -> 0 | BK95: =COUNTIF(O95:BB95,10) -> 0 | BM95: =$D$9*$D$8 -> 40 | BN95: =SUM(BF95:BK95) -> 0 | BO95: =BN95/BM95 -> 0 | BP95: =BK95/BN95 -> 
A96: 4 | B96: B Quinlan | C96: 30 | E96: 48 | F96: 157076 | G96: 33 | H96: Brendon Quinlan | I96: Bet | J96: N | K96: 2 | L96: Guiseley | M96: 10:17:00 | N96: =M96+TIME(7,0,0) -> 17:17:00 | BE96: NS | BF96: =COUNTIF(O96:BB96,0) -> 0 | BG96: =COUNTIF(O96:BB96,1) -> 0 | BH96: =COUNTIF(O96:BB96,2) -> 0 | BI96: =COUNTIF(O96:BB96,3) -> 0 | BJ96: =COUNTIF(O96:BB96,5) -> 0 | BK96: =COUNTIF(O96:BB96,10) -> 0 | BM96: =$D$9*$D$8 -> 40 | BN96: =SUM(BF96:BK96) -> 0 | BO96: =BN96/BM96 -> 0 | BP96: =BK96/BN96 -> 
A97: 100134 | B97: E Payne | C97: 30 | E97: 45 | F97: 140012 | G97: 36 | H97: Ian payne | I97: Gas | J97: N | K97: 2 | L97: Clitheroe | M97: 10:18:30 | N97: =M97+TIME(7,0,0) -> 17:18:30 | BE97: NS | BF97: =COUNTIF(O97:BB97,0) -> 0 | BG97: =COUNTIF(O97:BB97,1) -> 0 | BH97: =COUNTIF(O97:BB97,2) -> 0 | BI97: =COUNTIF(O97:BB97,3) -> 0 | BJ97: =COUNTIF(O97:BB97,5) -> 0 | BK97: =COUNTIF(O97:BB97,10) -> 0 | BM97: =$D$9*$D$8 -> 40 | BN97: =SUM(BF97:BK97) -> 0 | BO97: =BN97/BM97 -> 0 | BP97: =BK97/BN97 -> 
A98: . | E98: 40 | F98: 20610 | G98: 68 | H98: Patrick Plant | I98: Gas | J98: N | K98: 2 | L98: Mow Cop | M98: 10:34:30 | N98: =M98+TIME(7,0,0) -> 17:34:30 | BE98: NS | BF98: =COUNTIF(O98:BB98,0) -> 0 | BG98: =COUNTIF(O98:BB98,1) -> 0 | BH98: =COUNTIF(O98:BB98,2) -> 0 | BI98: =COUNTIF(O98:BB98,3) -> 0 | BJ98: =COUNTIF(O98:BB98,5) -> 0 | BK98: =COUNTIF(O98:BB98,10) -> 0 | BM98: =$D$9*$D$8 -> 40 | BN98: =SUM(BF98:BK98) -> 0 | BO98: =BN98/BM98 -> 0 | BP98: =BK98/BN98 -> 
A99: 922 | B99: DM Holmes | C99: 30 | E99: 49 | F99: 106011 | G99: 85 | H99: Darren Holmes | I99: 4RT | J99: N | K99: 2 | L99: Oakworth | M99: 10:43:30 | N99: =M99+TIME(7,0,0) -> 17:43:30 | BE99: ns | BF99: =COUNTIF(O99:BB99,0) -> 0 | BG99: =COUNTIF(O99:BB99,1) -> 0 | BH99: =COUNTIF(O99:BB99,2) -> 0 | BI99: =COUNTIF(O99:BB99,3) -> 0 | BJ99: =COUNTIF(O99:BB99,5) -> 0 | BK99: =COUNTIF(O99:BB99,10) -> 0 | BM99: =$D$9*$D$8 -> 40 | BN99: =SUM(BF99:BK99) -> 0 | BO99: =BN99/BM99 -> 0 | BP99: =BK99/BN99 -> 
A100: 22003 | B100: G tales | C100: 30 | E100: 58 | F100: 20600 | G100: 87 | H100: Graham Tales | I100: Mon | J100: I | K100: 2 | L100: Ilkley | M100: 10:44:30 | N100: =M100+TIME(7,0,0) -> 17:44:30 | BE100: ns | BF100: =COUNTIF(O100:BB100,0) -> 0 | BG100: =COUNTIF(O100:BB100,1) -> 0 | BH100: =COUNTIF(O100:BB100,2) -> 0 | BI100: =COUNTIF(O100:BB100,3) -> 0 | BJ100: =COUNTIF(O100:BB100,5) -> 0 | BK100: =COUNTIF(O100:BB100,10) -> 0 | BM100: =$D$9*$D$8 -> 40 | BN100: =SUM(BF100:BK100) -> 0 | BO100: =BN100/BM100 -> 0 | BP100: =BK100/BN100 -> 
A101: 100921 | B101: David Fallows | C101: 30 | E101: 87 | F101: 94526 | G101: 91 | H101: David Fallows | I101: Gas | J101: N | K101: 2 | L101: Bolton | M101: 10:46:30 | N101: =M101+TIME(7,0,0) -> 17:46:30 | BE101: ns | BF101: =COUNTIF(O101:BB101,0) -> 0 | BG101: =COUNTIF(O101:BB101,1) -> 0 | BH101: =COUNTIF(O101:BB101,2) -> 0 | BI101: =COUNTIF(O101:BB101,3) -> 0 | BJ101: =COUNTIF(O101:BB101,5) -> 0 | BK101: =COUNTIF(O101:BB101,10) -> 0 | BM101: =$D$9*$D$8 -> 40 | BN101: =SUM(BF101:BK101) -> 0 | BO101: =BN101/BM101 -> 0 | BP101: =BK101/BN101 -> 
A102: 100173 | B102: DM Coulson | C102: 30 | E102: 9 | F102: 77921 | G102: 82 | H102: Mark Coulson | I102: Gas | J102: E | K102: 2 | L102: York | M102: 10:42:00 | N102: =M102+TIME(7,0,0) -> 17:42:00 | O102: 0 | P102: 0 | Q102: 0 | R102: 0 | S102: 0 | T102: 3 | U102: 3 | V102: 0 | W102: 0 | X102: 0 | Y102: 0 | Z102: 2 | AA102: 1 | AB102: 3 | BE102: RET | BF102: =COUNTIF(O102:BB102,0) -> 9 | BG102: =COUNTIF(O102:BB102,1) -> 1 | BH102: =COUNTIF(O102:BB102,2) -> 1 | BI102: =COUNTIF(O102:BB102,3) -> 3 | BJ102: =COUNTIF(O102:BB102,5) -> 0 | BK102: =COUNTIF(O102:BB102,10) -> 0 | BM102: =$D$9*$D$8 -> 40 | BN102: =SUM(BF102:BK102) -> 14 | BO102: =BN102/BM102 -> 0.35 | BP102: =BK102/BN102 -> 0
A103: 422456 | B103: Mayne |Gas heatin | C103: 30 | E103: 11 | F103: 141824 | G103: 11 | H103: Darren Mayne | I103: Gas | J103: N | K103: 2 | L103: Grimsby | M103: 10:06:00 | N103: =M103+TIME(7,0,0) -> 17:06:00 | O103: 3 | P103: 0 | Q103: 3 | R103: 5 | S103: 3 | T103: 5 | U103: 5 | V103: 3 | W103: 1 | X103: 5 | Y103: 1 | Z103: 3 | AA103: 0 | AB103: 3 | AC103: 5 | AD103: 3 | AE103: 5 | AF103: 5 | AG103: 3 | AH103: 5 | AI103: 0 | AJ103: 3 | AK103: 3 | AL103: 1 | AM103: 1 | AN103: 5 | AO103: 2 | AP103: 5 | AQ103: 3 | AR103: 0 | AS103: 0 | AT103: 3 | AU103: 5 | AV103: 5 | AW103: 0 | BC103: 1 | BE103: rET | BF103: =COUNTIF(O103:BB103,0) -> 6 | BG103: =COUNTIF(O103:BB103,1) -> 4 | BH103: =COUNTIF(O103:BB103,2) -> 1 | BI103: =COUNTIF(O103:BB103,3) -> 12 | BJ103: =COUNTIF(O103:BB103,5) -> 12 | BK103: =COUNTIF(O103:BB103,10) -> 0 | BM103: =$D$9*$D$8 -> 40 | BN103: =SUM(BF103:BK103) -> 35 | BO103: =BN103/BM103 -> 0.875 | BP103: =BK103/BN103 -> 0
A104: 100175 | B104: DM Coulson | C104: 30 | E104: 8 | F104: 108669 | G104: 81 | H104: David Coulson | I104: Gas | J104: N | K104: 2 | L104: York | M104: 10:41:30 | N104: =M104+TIME(7,0,0) -> 17:41:30 | O104: 0 | P104: 0 | Q104: 1 | R104: 3 | S104: 3 | T104: 2 | U104: 5 | V104: 0 | W104: 0 | X104: 3 | Y104: 3 | Z104: 3 | AA104: 0 | AB104: 3 | BE104: RET | BF104: =COUNTIF(O104:BB104,0) -> 5 | BG104: =COUNTIF(O104:BB104,1) -> 1 | BH104: =COUNTIF(O104:BB104,2) -> 1 | BI104: =COUNTIF(O104:BB104,3) -> 6 | BJ104: =COUNTIF(O104:BB104,5) -> 1 | BK104: =COUNTIF(O104:BB104,10) -> 0 | BM104: =$D$9*$D$8 -> 40 | BN104: =SUM(BF104:BK104) -> 14 | BO104: =BN104/BM104 -> 0.35 | BP104: =BK104/BN104 -> 0
A105: . | B105: PAY PAL 28.88 | C105: 57.76 | E105: 74 | F105: 55969 | G105: 25 | H105: Colin Chapman | I105: She | J105: N | K105: 2 | L105: Maltby | M105: 10:13:00 | N105: =M105+TIME(7,0,0) -> 17:13:00 | O105: 2 | P105: 0 | Q105: 0 | R105: 3 | S105: 2 | T105: 3 | U105: 3 | V105: 0 | W105: 0 | X105: 2 | Y105: 1 | Z105: 1 | AA105: 2 | AB105: 3 | BC105: 2 | BE105: RET | BF105: =COUNTIF(O105:BB105,0) -> 4 | BG105: =COUNTIF(O105:BB105,1) -> 2 | BH105: =COUNTIF(O105:BB105,2) -> 4 | BI105: =COUNTIF(O105:BB105,3) -> 4 | BJ105: =COUNTIF(O105:BB105,5) -> 0 | BK105: =COUNTIF(O105:BB105,10) -> 0 | BM105: =$D$9*$D$8 -> 40 | BN105: =SUM(BF105:BK105) -> 14 | BO105: =BN105/BM105 -> 0.35 | BP105: =BK105/BN105 -> 0
A106: . | E106: 43 | F106: 105434 | G106: 70 | H106: Richard Whalley | I106: Gas | J106: N | K106: 2 | L106: Bignall End | M106: 10:36:00 | N106: =M106+TIME(7,0,0) -> 17:36:00 | O106: 0 | P106: 1 | Q106: 1 | R106: 3 | S106: 3 | T106: 2 | U106: 3 | V106: 3 | W106: 1 | X106: 1 | Y106: 3 | Z106: 3 | AA106: 0 | AB106: 2 | BE106: RET | BF106: =COUNTIF(O106:BB106,0) -> 2 | BG106: =COUNTIF(O106:BB106,1) -> 4 | BH106: =COUNTIF(O106:BB106,2) -> 2 | BI106: =COUNTIF(O106:BB106,3) -> 6 | BJ106: =COUNTIF(O106:BB106,5) -> 0 | BK106: =COUNTIF(O106:BB106,10) -> 0 | BM106: =$D$9*$D$8 -> 40 | BN106: =SUM(BF106:BK106) -> 14 | BO106: =BN106/BM106 -> 0.35 | BP106: =BK106/BN106 -> 0
BE107: =SUM(O107:BD107) -> 0 | BF107: =COUNTIF(O107:BB107,0) -> 0 | BG107: =COUNTIF(O107:BB107,1) -> 0 | BH107: =COUNTIF(O107:BB107,2) -> 0 | BI107: =COUNTIF(O107:BB107,3) -> 0 | BJ107: =COUNTIF(O107:BB107,5) -> 0 | BK107: =COUNTIF(O107:BB107,10) -> 0 | BM107: =$D$9*$D$8 -> 40 | BN107: =SUM(BF107:BK107) -> 0 | BO107: =BN107/BM107 -> 0 | BP107: =BK107/BN107 -> 
A108: 100079 | B108: C Stelling | C108: 30 | E108: 47 | F108: 65440 | G108: 23 | H108: Chris Stelling | I108: Hon | J108: N | K108: 2 | L108: Gilstead | M108: 10:12:00 | N108: =M108+TIME(7,0,0) -> 17:12:00 | BE108: =SUM(O108:BD108) -> 0 | BF108: =COUNTIF(O108:BB108,0) -> 0 | BG108: =COUNTIF(O108:BB108,1) -> 0 | BH108: =COUNTIF(O108:BB108,2) -> 0 | BI108: =COUNTIF(O108:BB108,3) -> 0 | BJ108: =COUNTIF(O108:BB108,5) -> 0 | BK108: =COUNTIF(O108:BB108,10) -> 0 | BM108: =$D$9*$D$8 -> 40 | BN108: =SUM(BF108:BK108) -> 0 | BO108: =BN108/BM108 -> 0 | BP108: =BK108/BN108 -> 
BE114: 0 | BF114: 0 | BG114: 0 | BH114: 0 | BI114: 0 | BJ114: 0 | BK114: 0 | BM114: 40 | BN114: 0 | BO114: 0
N115: 0 | O115: =COUNTIF(O15:O114,0) -> 43 | P115: 65 | Q115: 39 | R115: 22 | S115: 13 | T115: 15 | U115: 10 | V115: 42 | W115: 35 | X115: 26 | Y115: 30 | Z115: 26 | AA115: 41 | AB115: 20 | AC115: 25 | AD115: 32 | AE115: 38 | AF115: 37 | AG115: 36 | AH115: 1 | AI115: 49 | AJ115: 18 | AK115: 24 | AL115: 56 | AM115: 61 | AN115: 55 | AO115: 50 | AP115: 41 | AQ115: 42 | AR115: 58 | AS115: 72 | AT115: 14 | AU115: 42 | AV115: 50 | AW115: 68 | AX115: 26 | AY115: 36 | AZ115: 11 | BA115: 35 | BB115: 12
N116: 1 | O116: =COUNTIF(O15:O114,1) -> 28 | P116: 9 | Q116: 24 | R116: 12 | S116: 17 | T116: 17 | U116: 11 | V116: 17 | W116: 25 | X116: 16 | Y116: 22 | Z116: 17 | AA116: 10 | AB116: 25 | AC116: 9 | AD116: 21 | AE116: 14 | AF116: 17 | AG116: 12 | AH116: 11 | AI116: 12 | AJ116: 18 | AK116: 19 | AL116: 7 | AM116: 9 | AN116: 6 | AO116: 8 | AP116: 8 | AQ116: 10 | AR116: 6 | AS116: 0 | AT116: 21 | AU116: 15 | AV116: 7 | AW116: 1 | AX116: 25 | AY116: 13 | AZ116: 11 | BA116: 19 | BB116: 4
N117: 2 | O117: =COUNTIF(O15:O114,2) -> 5 | P117: 2 | Q117: 6 | R117: 12 | S117: 16 | T117: 13 | U117: 6 | V117: 5 | W117: 6 | X117: 15 | Y117: 7 | Z117: 7 | AA117: 7 | AB117: 12 | AC117: 6 | AD117: 11 | AE117: 7 | AF117: 6 | AG117: 10 | AH117: 10 | AI117: 1 | AJ117: 12 | AK117: 12 | AL117: 2 | AM117: 1 | AN117: 5 | AO117: 4 | AP117: 6 | AQ117: 6 | AR117: 1 | AS117: 0 | AT117: 7 | AU117: 7 | AV117: 6 | AW117: 1 | AX117: 8 | AY117: 9 | AZ117: 10 | BA117: 7 | BB117: 2
N118: 3 | O118: =COUNTIF(O15:O114,3) -> 7 | P118: 2 | Q118: 13 | R118: 29 | S118: 32 | T118: 28 | U118: 40 | V118: 14 | W118: 12 | X118: 16 | Y118: 18 | Z118: 29 | AA118: 12 | AB118: 18 | AC118: 26 | AD118: 7 | AE118: 7 | AF118: 7 | AG118: 11 | AH118: 36 | AI118: 6 | AJ118: 14 | AK118: 12 | AL118: 4 | AM118: 0 | AN118: 0 | AO118: 3 | AP118: 9 | AQ118: 9 | AR118: 5 | AS118: 0 | AT118: 24 | AU118: 7 | AV118: 7 | AW118: 0 | AX118: 7 | AY118: 6 | AZ118: 27 | BA118: 9 | BB118: 20
N119: 5 | O119: =COUNTIF(O15:O114,5) -> 0 | P119: 5 | Q119: 1 | R119: 7 | S119: 5 | T119: 9 | U119: 15 | V119: 4 | W119: 4 | X119: 6 | Y119: 2 | Z119: 0 | AA119: 6 | AB119: 1 | AC119: 7 | AD119: 2 | AE119: 7 | AF119: 6 | AG119: 4 | AH119: 14 | AI119: 3 | AJ119: 9 | AK119: 5 | AL119: 3 | AM119: 1 | AN119: 6 | AO119: 7 | AP119: 8 | AQ119: 5 | AR119: 2 | AS119: 0 | AT119: 5 | AU119: 1 | AV119: 2 | AW119: 2 | AX119: 5 | AY119: 7 | AZ119: 12 | BA119: 1 | BB119: 33
N120: 10 | O120: =COUNTIF(O15:O114,10) -> 0 | P120: 0 | Q120: 0 | R120: 0 | S120: 0 | T120: 0 | U120: 0 | V120: 0 | W120: 0 | X120: 1 | Y120: 0 | Z120: 0 | AA120: 0 | AB120: 0 | AC120: 0 | AD120: 0 | AE120: 0 | AF120: 0 | AG120: 0 | AH120: 0 | AI120: 0 | AJ120: 0 | AK120: 0 | AL120: 0 | AM120: 0 | AN120: 0 | AO120: 0 | AP120: 0 | AQ120: 0 | AR120: 0 | AS120: 0 | AT120: 0 | AU120: 0 | AV120: 0 | AW120: 0 | AX120: 0 | AY120: 0 | AZ120: 0 | BA120: 0 | BB120: 0
